Workbook

Sheet Front
A1: Modelling Antibiotic Resistance
A3: This workbook has been produced by the Antibiotic Resistance Working Party for the Institute and Faculty of Actuaries and is compliant with TAS 300
A5: The workbook requires macros to be enabled for it to run. Cells have been locked and protected to ensure only inputs are changed, however there is no password if the user needs to explore/change the formulas
A7: Purpose | B7: The purpose of this workbook is to investigate the impact of antibiotic resistance on mortality and morbidity over time. The workbook has been designed to be simple, minimal and flexible so that users can tailor the inputs towards their own investigations, data or georgraphy. This model has been designed to capture at a very high level the interaction of varying resistance over time to both mortality and morbidity, it is not intended to fully capture the intricate dynamics that antibiotic resistance is likely to have or model pandemic type risks.
A8: Users | B8: The intended users of this workbook are members of the Institute & Faculty of Actuaries
A9: Data | B9: The model has been pre-populated with patrameters informed by data collected by the working party. The analysis completed on the available data accompanies this model and is available to the user. Further analysis on the limitations and availability of data is considered in detail in the Sessional Research paper on Antibiotic Resistance produced by the working party and published in August 2019
A10: Assumptions | B10: A detailed assessment of the modelling and data assumptions are contaiened within the Sessional Research paper produced by the working party and published in August 2019.
A11: Limitations | B11: This model is for illustrative purposes only and users should not rely on the output without fully assessing the model's limited capabilities and ensuring the data input is sufficient for their needs. The Antibiotic Resistance Working Party has made a best endeavour to explore this topic and provide this tool as a useful starting point so that users can consider the application of varying resistance to antibiotics in their own risk analysis. The working party makes no representation as to the accuracy or completeness of the model and it is for the user to ensure the results produced are of sufficient quality for their purposes.
A13: Written by: | B13: Ross Hamilton (ARN 9052944)
A14: Checked by: | B14: Sheridan Fitzgibbon (ARN 9033326)

Sheet Input_Scen
A1: Input Scenario
A2: This worksheet allows the user to input a custom resistance profile and contains the resistance profiles used within the working party study
A4: Instructions
A5: The following cells are inputs --> | B5: Inputs
A6: General inputs are not expected to be updated
A7: User inputs allow different scenarios to be run
A8: Scalar adjustments allow the user to explore varying infection / mortality rates for example to incorporate additional bacteria from available data
A9: Note that the expected number of deaths from the infection is set as proportionate to the infection rate, any mortality scalar input will be compounded with the infection rate scalar
A10: Inputs have not been restricted (except those that require look up lists), users should ensure inputs and outputs are reasonable based on their own expectations
A12: General Inputs | H12: Input Reference
A13: Starting Year | B13: 2017 | C13: ---> Updates the projection period throughout workbook | H13: [Input_Scen_1]
A14: Days in a year | B14: 365 | C14: ---> Number of days assumed in a year, would not expect users to update | H14: [Input_Scen_2]
A15: Assume deaths occur X through a year | B15: 0.5 | C15: ---> Deaths are assumed to occur half way through a year - would not expect a user to update | H15: [Input_Scen_3]
A17: User inputs to select age group, resistance profile and parameters where insufficient data was available to the working party | H17: Input Reference
A18: Age Group | B18: 1-14 yrs | C18: ---> Defined by data availability | H18: [Input_Scen_4]
A19: Resistance Profile | B19: 100% Resistance by 2050 | C19: ---> Use pre-populated scenarios or user can define custom resistance profile in "Input_Res" | H19: [Input_Scen_5]
A20: Relative mortality rate of resistance against susceptible infection | B20: 2.5 | C20: ---> Relative increase in mortality rate of resistant infection compared to susceptible infection | H20: [Input_Scen_6]
A21: Average hospitalised days with susceptible infection | B21: 10 | C21: ---> Average number of hospitalised days with susceptible infection until recovery or death | H21: [Input_Scen_7]
A22: Average hospitalised days with resistant infection | B22: 12 | C22: ---> Average number of hospitalised days with resistant infection until recovery or death | H22: [Input_Scen_8]
A24: Scalars to adjust infection and mortality rates over time (adjustments are applied cumulatively eg. a 2% scalar input in the next 10 years will give a scalar of 1.02^10 in 10 years' time) | H24: Input Reference
A26: Year | B26: Infection Rate Scalar | C26: Infection Mortality Rate Scalar
A27: =B13 -> 2017 | B27: 0 | C27: 0 | H27: [Input_Scen_9]
A28: =A27+1 -> 2018 | B28: 0 | C28: 0 | H28: [Input_Scen_10]
A29: =A28+1 -> 2019 | B29: 0 | C29: 0 | H29: [Input_Scen_11]
A30: 2020 | B30: 0 | C30: 0 | H30: [Input_Scen_12]
A31: 2021 | B31: 0 | C31: 0 | H31: [Input_Scen_13]
A32: 2022 | B32: 0 | C32: 0 | H32: [Input_Scen_14]
A33: 2023 | B33: 0 | C33: 0 | H33: [Input_Scen_15]
A34: 2024 | B34: 0 | C34: 0 | H34: [Input_Scen_16]
A35: 2025 | B35: 0 | C35: 0 | H35: [Input_Scen_17]
A36: 2026 | B36: 0 | C36: 0 | H36: [Input_Scen_18]
A37: 2027 | B37: 0 | C37: 0 | H37: [Input_Scen_19]
A38: 2028 | B38: 0 | C38: 0 | H38: [Input_Scen_20]
A39: 2029 | B39: 0 | C39: 0 | H39: [Input_Scen_21]
A40: 2030 | B40: 0 | C40: 0 | H40: [Input_Scen_22]
A41: 2031 | B41: 0 | C41: 0 | H41: [Input_Scen_23]
A42: 2032 | B42: 0 | C42: 0 | H42: [Input_Scen_24]
A43: 2033 | B43: 0 | C43: 0 | H43: [Input_Scen_25]
A44: 2034 | B44: 0 | C44: 0 | H44: [Input_Scen_26]
A45: 2035 | B45: 0 | C45: 0 | H45: [Input_Scen_27]
A46: 2036 | B46: 0 | C46: 0 | H46: [Input_Scen_28]
A47: 2037 | B47: 0 | C47: 0 | H47: [Input_Scen_29]
A48: 2038 | B48: 0 | C48: 0 | H48: [Input_Scen_30]
A49: 2039 | B49: 0 | C49: 0 | H49: [Input_Scen_31]
A50: 2040 | B50: 0 | C50: 0 | H50: [Input_Scen_32]
A51: 2041 | B51: 0 | C51: 0 | H51: [Input_Scen_33]
A52: 2042 | B52: 0 | C52: 0 | H52: [Input_Scen_34]
A53: 2043 | B53: 0 | C53: 0 | H53: [Input_Scen_35]
A54: 2044 | B54: 0 | C54: 0 | H54: [Input_Scen_36]
A55: 2045 | B55: 0 | C55: 0 | H55: [Input_Scen_37]
A56: 2046 | B56: 0 | C56: 0 | H56: [Input_Scen_38]
A57: 2047 | B57: 0 | C57: 0 | H57: [Input_Scen_39]
A58: 2048 | B58: 0 | C58: 0 | H58: [Input_Scen_40]
A59: 2049 | B59: 0 | C59: 0 | H59: [Input_Scen_41]
A60: 2050 | B60: 0 | C60: 0 | H60: [Input_Scen_42]

Sheet Input_Res
A1: Input Resistance Profiles
A2: This worksheet allows the user to input a custom resistance profile and contains the resistance profiles used within the working party study
A3: The "Selected Profile" is populated based on user inputs on 'Input_Scen' and linked through below. The selected profile is displayed in column B
A5: Key | B5: Input
A7: Scenario | B7: =Input_Scen!B18 -> 1-14 yrs
A8: Age Group | B8: =Input_Scen!B19 -> 100% Resistance by 2050
A9: Lookup Name | B9: =B8&"_"&B7 -> 100% Resistance by 2050_1-14 yrs | E9: User input resistance profile ---> | L9: Pre-populated resistance profiles by scenario, age group and year --->
A10: Match | B10: =MATCH(B9,$E$13:$AM$13,0) -> 30
D11: Scenario | E11: Custom Profile | L11: Linear Extrapolation | S11: +40% increase in resistance by 2050 | Z11: +100% increase in resistance by 2050 | AG11: 100% resistance by 2050
D12: Age Group | E12: <1 yr | F12: 1-14 yrs | G12: 15-44 yrs | H12: 45-64 yrs | I12: 65-74 yrs | J12: 75-84 yrs | K12: 85+ yrs | L12: <1 yr | M12: 1-14 yrs | N12: 15-44 yrs | O12: 45-64 yrs | P12: 65-74 yrs | Q12: 75-84 yrs | R12: 85+ yrs | S12: <1 yr | T12: 1-14 yrs | U12: 15-44 yrs | V12: 45-64 yrs | W12: 65-74 yrs | X12: 75-84 yrs | Y12: 85+ yrs | Z12: <1 yr | AA12: 1-14 yrs | AB12: 15-44 yrs | AC12: 45-64 yrs | AD12: 65-74 yrs | AE12: 75-84 yrs | AF12: 85+ yrs | AG12: <1 yr | AH12: 1-14 yrs | AI12: 15-44 yrs | AJ12: 45-64 yrs | AK12: 65-74 yrs | AL12: 75-84 yrs | AM12: 85+ yrs
A13: Year | B13: Selected Profile | D13: Profile Name | E13: =E11&"_"&E12 -> Custom Profile_<1 yr | F13: =E11&"_"&F12 -> Custom Profile_1-14 yrs | G13: =E11&"_"&G12 -> Custom Profile_15-44 yrs | H13: =E11&"_"&H12 -> Custom Profile_45-64 yrs | I13: =E11&"_"&I12 -> Custom Profile_65-74 yrs | J13: =E11&"_"&J12 -> Custom Profile_75-84 yrs | K13: =E11&"_"&K12 -> Custom Profile_85+ yrs | L13: =L11&"_"&L12 -> Linear Extrapolation_<1 yr | M13: =L11&"_"&M12 -> Linear Extrapolation_1-14 yrs | N13: =L11&"_"&N12 -> Linear Extrapolation_15-44 yrs | O13: =L11&"_"&O12 -> Linear Extrapolation_45-64 yrs | P13: =L11&"_"&P12 -> Linear Extrapolation_65-74 yrs | Q13: =L11&"_"&Q12 -> Linear Extrapolation_75-84 yrs | R13: =L11&"_"&R12 -> Linear Extrapolation_85+ yrs | S13: =S11&"_"&S12 -> +40% increase in resistance by 2050_<1 yr | T13: =S11&"_"&T12 -> +40% increase in resistance by 2050_1-14 yrs | U13: =S11&"_"&U12 -> +40% increase in resistance by 2050_15-44 yrs | V13: =S11&"_"&V12 -> +40% increase in resistance by 2050_45-64 yrs | W13: =S11&"_"&W12 -> +40% increase in resistance by 2050_65-74 yrs | X13: =S11&"_"&X12 -> +40% increase in resistance by 2050_75-84 yrs | Y13: =S11&"_"&Y12 -> +40% increase in resistance by 2050_85+ yrs | Z13: =Z11&"_"&Z12 -> +100% increase in resistance by 2050_<1 yr | AA13: =Z11&"_"&AA12 -> +100% increase in resistance by 2050_1-14 yrs | AB13: =Z11&"_"&AB12 -> +100% increase in resistance by 2050_15-44 yrs | AC13: =Z11&"_"&AC12 -> +100% increase in resistance by 2050_45-64 yrs | AD13: =Z11&"_"&AD12 -> +100% increase in resistance by 2050_65-74 yrs | AE13: =Z11&"_"&AE12 -> +100% increase in resistance by 2050_75-84 yrs | AF13: =Z11&"_"&AF12 -> +100% increase in resistance by 2050_85+ yrs | AG13: =AG11&"_"&AG12 -> 100% resistance by 2050_<1 yr | AH13: =AG11&"_"&AH12 -> 100% resistance by 2050_1-14 yrs | AI13: =AG11&"_"&AI12 -> 100% resistance by 2050_15-44 yrs | AJ13: =AG11&"_"&AJ12 -> 100% resistance by 2050_45-64 yrs | AK13: =AG11&"_"&AK12 -> 100% resistance by 2050_65-74 yrs | AL13: =AG11&"_"&AL12 -> 100% resistance by 2050_75-84 yrs | AM13: =AG11&"_"&AM12 -> 100% resistance by 2050_85+ yrs
A14: =Input_Scen!B13 -> 2017 | B14: =INDEX($E$14:$AM$47,MATCH(A14,$D$14:$D$47,0),$B$10) -> 11.53746576 | D14: =A14 -> 2017 | L14: 12.523014 | M14: 8.785026678 | N14: 12.35870455 | O14: 12.35870455 | P14: 13.94900831 | Q14: 13.94900831 | R14: 13.94900831 | S14: 8.987058931 | T14: 8.697422109 | U14: 9.976962545 | V14: 9.976962545 | W14: 10.56179104 | X14: 10.56179104 | Y14: 10.56179104 | Z14: 9.143809959 | AA14: 9.10195337 | AB14: 10.44100731 | AC14: 10.44100731 | AD14: 10.74600832 | AE14: 10.74600832 | AF14: 10.74600832 | AG14: 11.562483 | AH14: 11.53746576 | AI14: 12.80212782 | AJ14: 12.80212782 | AK14: 13.07312717 | AL14: 13.07312717 | AM14: 13.07312717
A15: =A14+1 -> 2018 | B15: =INDEX($E$14:$AM$47,MATCH(A15,$D$14:$D$47,0),$B$10) -> 14.2258102 | D15: =A15 -> 2018 | L15: 13.30460929 | M15: 9.09527023 | N15: 12.90131549 | O15: 12.90131549 | P15: 14.59725495 | Q15: 14.59725495 | R15: 14.59725495 | S15: 9.091559616 | T15: 8.798554924 | U15: 10.09297374 | V15: 10.09297374 | W15: 10.68460256 | X15: 10.68460256 | Y15: 10.68460256 | Z15: 9.405061672 | AA15: 9.354785408 | AB15: 10.7310353 | AC15: 10.7310353 | AD15: 11.05303713 | AE15: 11.05303713 | AF15: 11.05303713 | AG15: 14.24240776 | AH15: 14.2258102 | AI15: 15.45327631 | AJ15: 15.45327631 | AK15: 15.70727484 | AL15: 15.70727484 | AM15: 15.70727484
A16: =A15+1 -> 2019 | B16: 16.91415463 | D16: 2019 | L16: 14.08620458 | M16: 9.405513782 | N16: 13.44392643 | O16: 13.44392643 | P16: 15.24550159 | Q16: 15.24550159 | R16: 15.24550159 | S16: 9.196060301 | T16: 8.89968774 | U16: 10.20898493 | V16: 10.20898493 | W16: 10.80741408 | X16: 10.80741408 | Y16: 10.80741408 | Z16: 9.666313385 | AA16: 9.607617446 | AB16: 11.02106328 | AC16: 11.02106328 | AD16: 11.36006594 | AE16: 11.36006594 | AF16: 11.36006594 | AG16: 16.92233252 | AH16: 16.91415463 | AI16: 18.1044248 | AJ16: 18.1044248 | AK16: 18.3414225 | AL16: 18.3414225 | AM16: 18.3414225
A17: 2020 | B17: 19.60249906 | D17: 2020 | L17: 14.86779987 | M17: 9.715757334 | N17: 13.98653737 | O17: 13.98653737 | P17: 15.89374822 | Q17: 15.89374822 | R17: 15.89374822 | S17: 9.300560987 | T17: 9.000820555 | U17: 10.32499612 | V17: 10.32499612 | W17: 10.93022561 | X17: 10.93022561 | Y17: 10.93022561 | Z17: 9.927565098 | AA17: 9.860449484 | AB17: 11.31109126 | AC17: 11.31109126 | AD17: 11.66709475 | AE17: 11.66709475 | AF17: 11.66709475 | AG17: 19.60225728 | AH17: 19.60249906 | AI17: 20.75557329 | AJ17: 20.75557329 | AK17: 20.97557016 | AL17: 20.97557016 | AM17: 20.97557016
A18: 2021 | B18: 22.29084349 | D18: 2021 | L18: 15.64939516 | M18: 10.02600089 | N18: 14.52914832 | O18: 14.52914832 | P18: 16.54199486 | Q18: 16.54199486 | R18: 16.54199486 | S18: 9.405061672 | T18: 9.10195337 | U18: 10.44100731 | V18: 10.44100731 | W18: 11.05303713 | X18: 11.05303713 | Y18: 11.05303713 | Z18: 10.18881681 | AA18: 10.11328152 | AB18: 11.60111924 | AC18: 11.60111924 | AD18: 11.97412356 | AE18: 11.97412356 | AF18: 11.97412356 | AG18: 22.28218203 | AH18: 22.29084349 | AI18: 23.40672178 | AJ18: 23.40672178 | AK18: 23.60971782 | AL18: 23.60971782 | AM18: 23.60971782
A19: 2022 | B19: 24.97918793 | D19: 2022 | L19: 16.43099044 | M19: 10.33624444 | N19: 15.07175926 | O19: 15.07175926 | P19: 17.1902415 | Q19: 17.1902415 | R19: 17.1902415 | S19: 9.509562357 | T19: 9.203086185 | U19: 10.55701851 | V19: 10.55701851 | W19: 11.17584865 | X19: 11.17584865 | Y19: 11.17584865 | Z19: 10.45006852 | AA19: 10.36611356 | AB19: 11.89114722 | AC19: 11.89114722 | AD19: 12.28115237 | AE19: 12.28115237 | AF19: 12.28115237 | AG19: 24.96210679 | AH19: 24.97918793 | AI19: 26.05787027 | AJ19: 26.05787027 | AK19: 26.24386548 | AL19: 26.24386548 | AM19: 26.24386548
A20: 2023 | B20: 27.66753236 | D20: 2023 | L20: 17.21258573 | M20: 10.64648799 | N20: 15.6143702 | O20: 15.6143702 | P20: 17.83848813 | Q20: 17.83848813 | R20: 17.83848813 | S20: 9.614063042 | T20: 9.304219001 | U20: 10.6730297 | V20: 10.6730297 | W20: 11.29866018 | X20: 11.29866018 | Y20: 11.29866018 | Z20: 10.71132024 | AA20: 10.6189456 | AB20: 12.1811752 | AC20: 12.1811752 | AD20: 12.58818118 | AE20: 12.58818118 | AF20: 12.58818118 | AG20: 27.64203155 | AH20: 27.66753236 | AI20: 28.70901876 | AJ20: 28.70901876 | AK20: 28.87801314 | AL20: 28.87801314 | AM20: 28.87801314
A21: 2024 | B21: 30.35587679 | D21: 2024 | L21: 17.99418102 | M21: 10.95673154 | N21: 16.15698114 | O21: 16.15698114 | P21: 18.48673477 | Q21: 18.48673477 | R21: 18.48673477 | S21: 9.718563728 | T21: 9.405351816 | U21: 10.78904089 | V21: 10.78904089 | W21: 11.4214717 | X21: 11.4214717 | Y21: 11.4214717 | Z21: 10.97257195 | AA21: 10.87177764 | AB21: 12.47120318 | AC21: 12.47120318 | AD21: 12.89520999 | AE21: 12.89520999 | AF21: 12.89520999 | AG21: 30.32195631 | AH21: 30.35587679 | AI21: 31.36016725 | AJ21: 31.36016725 | AK21: 31.5121608 | AL21: 31.5121608 | AM21: 31.5121608
A22: 2025 | B22: 33.04422122 | D22: 2025 | L22: 18.77577631 | M22: 11.26697509 | N22: 16.69959208 | O22: 16.69959208 | P22: 19.13498141 | Q22: 19.13498141 | R22: 19.13498141 | S22: 9.823064413 | T22: 9.506484631 | U22: 10.90505208 | V22: 10.90505208 | W22: 11.54428323 | X22: 11.54428323 | Y22: 11.54428323 | Z22: 11.23382366 | AA22: 11.12460967 | AB22: 12.76123116 | AC22: 12.76123116 | AD22: 13.2022388 | AE22: 13.2022388 | AF22: 13.2022388 | AG22: 33.00188106 | AH22: 33.04422122 | AI22: 34.01131574 | AJ22: 34.01131574 | AK22: 34.14630847 | AL22: 34.14630847 | AM22: 34.14630847
A23: 2026 | B23: 35.73256566 | D23: 2026 | L23: 19.5573716 | M23: 11.57721865 | N23: 17.24220302 | O23: 17.24220302 | P23: 19.78322804 | Q23: 19.78322804 | R23: 19.78322804 | S23: 9.927565098 | T23: 9.607617446 | U23: 11.02106328 | V23: 11.02106328 | W23: 11.66709475 | X23: 11.66709475 | Y23: 11.66709475 | Z23: 11.49507538 | AA23: 11.37744171 | AB23: 13.05125914 | AC23: 13.05125914 | AD23: 13.5092676 | AE23: 13.5092676 | AF23: 13.5092676 | AG23: 35.68180582 | AH23: 35.73256566 | AI23: 36.66246423 | AJ23: 36.66246423 | AK23: 36.78045613 | AL23: 36.78045613 | AM23: 36.78045613
A24: 2027 | B24: 38.42091009 | D24: 2027 | L24: 20.33896689 | M24: 11.8874622 | N24: 17.78481397 | O24: 17.78481397 | P24: 20.43147468 | Q24: 20.43147468 | R24: 20.43147468 | S24: 10.03206578 | T24: 9.708750261 | U24: 11.13707447 | V24: 11.13707447 | W24: 11.78990627 | X24: 11.78990627 | Y24: 11.78990627 | Z24: 11.75632709 | AA24: 11.63027375 | AB24: 13.34128712 | AC24: 13.34128712 | AD24: 13.81629641 | AE24: 13.81629641 | AF24: 13.81629641 | AG24: 38.36173058 | AH24: 38.42091009 | AI24: 39.31361272 | AJ24: 39.31361272 | AK24: 39.41460379 | AL24: 39.41460379 | AM24: 39.41460379
A25: 2028 | B25: 41.10925452 | D25: 2028 | L25: 21.12056218 | M25: 12.19770575 | N25: 18.32742491 | O25: 18.32742491 | P25: 21.07972132 | Q25: 21.07972132 | R25: 21.07972132 | S25: 10.13656647 | T25: 9.809883077 | U25: 11.25308566 | V25: 11.25308566 | W25: 11.9127178 | X25: 11.9127178 | Y25: 11.9127178 | Z25: 12.0175788 | AA25: 11.88310579 | AB25: 13.63131511 | AC25: 13.63131511 | AD25: 14.12332522 | AE25: 14.12332522 | AF25: 14.12332522 | AG25: 41.04165534 | AH25: 41.10925452 | AI25: 41.96476121 | AJ25: 41.96476121 | AK25: 42.04875145 | AL25: 42.04875145 | AM25: 42.04875145
A26: 2029 | B26: 43.79759895 | D26: 2029 | L26: 21.90215746 | M26: 12.5079493 | N26: 18.87003585 | O26: 18.87003585 | P26: 21.72796796 | Q26: 21.72796796 | R26: 21.72796796 | S26: 10.24106715 | T26: 9.911015892 | U26: 11.36909685 | V26: 11.36909685 | W26: 12.03552932 | X26: 12.03552932 | Y26: 12.03552932 | Z26: 12.27883052 | AA26: 12.13593783 | AB26: 13.92134309 | AC26: 13.92134309 | AD26: 14.43035403 | AE26: 14.43035403 | AF26: 14.43035403 | AG26: 43.72158009 | AH26: 43.79759895 | AI26: 44.6159097 | AJ26: 44.6159097 | AK26: 44.68289911 | AL26: 44.68289911 | AM26: 44.68289911
A27: 2030 | B27: 46.48594339 | D27: 2030 | L27: 22.68375275 | M27: 12.81819285 | N27: 19.41264679 | O27: 19.41264679 | P27: 22.37621459 | Q27: 22.37621459 | R27: 22.37621459 | S27: 10.34556784 | T27: 10.01214871 | U27: 11.48510805 | V27: 11.48510805 | W27: 12.15834084 | X27: 12.15834084 | Y27: 12.15834084 | Z27: 12.54008223 | AA27: 12.38876986 | AB27: 14.21137107 | AC27: 14.21137107 | AD27: 14.73738284 | AE27: 14.73738284 | AF27: 14.73738284 | AG27: 46.40150485 | AH27: 46.48594339 | AI27: 47.26705819 | AJ27: 47.26705819 | AK27: 47.31704677 | AL27: 47.31704677 | AM27: 47.31704677
A28: 2031 | B28: 49.17428782 | D28: 2031 | L28: 23.46534804 | M28: 13.12843641 | N28: 19.95525773 | O28: 19.95525773 | P28: 23.02446123 | Q28: 23.02446123 | R28: 23.02446123 | S28: 10.45006852 | T28: 10.11328152 | U28: 11.60111924 | V28: 11.60111924 | W28: 12.28115237 | X28: 12.28115237 | Y28: 12.28115237 | Z28: 12.80133394 | AA28: 12.6416019 | AB28: 14.50139905 | AC28: 14.50139905 | AD28: 15.04441165 | AE28: 15.04441165 | AF28: 15.04441165 | AG28: 49.08142961 | AH28: 49.17428782 | AI28: 49.91820668 | AJ28: 49.91820668 | AK28: 49.95119443 | AL28: 49.95119443 | AM28: 49.95119443
A29: 2032 | B29: 51.86263225 | D29: 2032 | L29: 24.24694333 | M29: 13.43867996 | N29: 20.49786868 | O29: 20.49786868 | P29: 23.67270787 | Q29: 23.67270787 | R29: 23.67270787 | S29: 10.55456921 | T29: 10.21441434 | U29: 11.71713043 | V29: 11.71713043 | W29: 12.40396389 | X29: 12.40396389 | Y29: 12.40396389 | Z29: 13.06258566 | AA29: 12.89443394 | AB29: 14.79142703 | AC29: 14.79142703 | AD29: 15.35144046 | AE29: 15.35144046 | AF29: 15.35144046 | AG29: 51.76135437 | AH29: 51.86263225 | AI29: 52.56935517 | AJ29: 52.56935517 | AK29: 52.58534209 | AL29: 52.58534209 | AM29: 52.58534209
A30: 2033 | B30: 54.55097669 | D30: 2033 | L30: 25.02853862 | M30: 13.74892351 | N30: 21.04047962 | O30: 21.04047962 | P30: 24.3209545 | Q30: 24.3209545 | R30: 24.3209545 | S30: 10.65906989 | T30: 10.31554715 | U30: 11.83314162 | V30: 11.83314162 | W30: 12.52677542 | X30: 12.52677542 | Y30: 12.52677542 | Z30: 13.32383737 | AA30: 13.14726598 | AB30: 15.08145501 | AC30: 15.08145501 | AD30: 15.65846927 | AE30: 15.65846927 | AF30: 15.65846927 | AG30: 54.44127912 | AH30: 54.55097669 | AI30: 55.22050366 | AJ30: 55.22050366 | AK30: 55.21948976 | AL30: 55.21948976 | AM30: 55.21948976
A31: 2034 | B31: 57.23932112 | D31: 2034 | L31: 25.81013391 | M31: 14.05916706 | N31: 21.58309056 | O31: 21.58309056 | P31: 24.96920114 | Q31: 24.96920114 | R31: 24.96920114 | S31: 10.76357058 | T31: 10.41667997 | U31: 11.94915282 | V31: 11.94915282 | W31: 12.64958694 | X31: 12.64958694 | Y31: 12.64958694 | Z31: 13.58508908 | AA31: 13.40009802 | AB31: 15.37148299 | AC31: 15.37148299 | AD31: 15.96549808 | AE31: 15.96549808 | AF31: 15.96549808 | AG31: 57.12120388 | AH31: 57.23932112 | AI31: 57.87165215 | AJ31: 57.87165215 | AK31: 57.85363742 | AL31: 57.85363742 | AM31: 57.85363742
A32: 2035 | B32: 59.92766555 | D32: 2035 | L32: 26.5917292 | M32: 14.36941061 | N32: 22.1257015 | O32: 22.1257015 | P32: 25.61744778 | Q32: 25.61744778 | R32: 25.61744778 | S32: 10.86807127 | T32: 10.51781278 | U32: 12.06516401 | V32: 12.06516401 | W32: 12.77239846 | X32: 12.77239846 | Y32: 12.77239846 | Z32: 13.84634079 | AA32: 13.65293006 | AB32: 15.66151097 | AC32: 15.66151097 | AD32: 16.27252689 | AE32: 16.27252689 | AF32: 16.27252689 | AG32: 59.80112864 | AH32: 59.92766555 | AI32: 60.52280064 | AJ32: 60.52280064 | AK32: 60.48778508 | AL32: 60.48778508 | AM32: 60.48778508
A33: 2036 | B33: 62.61600998 | D33: 2036 | L33: 27.37332448 | M33: 14.67965417 | N33: 22.66831244 | O33: 22.66831244 | P33: 26.26569441 | Q33: 26.26569441 | R33: 26.26569441 | S33: 10.97257195 | T33: 10.6189456 | U33: 12.1811752 | V33: 12.1811752 | W33: 12.89520999 | X33: 12.89520999 | Y33: 12.89520999 | Z33: 14.10759251 | AA33: 13.90576209 | AB33: 15.95153895 | AC33: 15.95153895 | AD33: 16.5795557 | AE33: 16.5795557 | AF33: 16.5795557 | AG33: 62.4810534 | AH33: 62.61600998 | AI33: 63.17394913 | AJ33: 63.17394913 | AK33: 63.12193274 | AL33: 63.12193274 | AM33: 63.12193274
A34: 2037 | B34: 65.30435442 | D34: 2037 | L34: 28.15491977 | M34: 14.98989772 | N34: 23.21092338 | O34: 23.21092338 | P34: 26.91394105 | Q34: 26.91394105 | R34: 26.91394105 | S34: 11.07707264 | T34: 10.72007841 | U34: 12.29718639 | V34: 12.29718639 | W34: 13.01802151 | X34: 13.01802151 | Y34: 13.01802151 | Z34: 14.36884422 | AA34: 14.15859413 | AB34: 16.24156693 | AC34: 16.24156693 | AD34: 16.88658451 | AE34: 16.88658451 | AF34: 16.88658451 | AG34: 65.16097815 | AH34: 65.30435442 | AI34: 65.82509762 | AJ34: 65.82509762 | AK34: 65.7560804 | AL34: 65.7560804 | AM34: 65.7560804
A35: 2038 | B35: 67.99269885 | D35: 2038 | L35: 28.93651506 | M35: 15.30014127 | N35: 23.75353433 | O35: 23.75353433 | P35: 27.56218769 | Q35: 27.56218769 | R35: 27.56218769 | S35: 11.18157332 | T35: 10.82121123 | U35: 12.41319759 | V35: 12.41319759 | W35: 13.14083303 | X35: 13.14083303 | Y35: 13.14083303 | Z35: 14.63009593 | AA35: 14.41142617 | AB35: 16.53159492 | AC35: 16.53159492 | AD35: 17.19361331 | AE35: 17.19361331 | AF35: 17.19361331 | AG35: 67.84090291 | AH35: 67.99269885 | AI35: 68.47624611 | AJ35: 68.47624611 | AK35: 68.39022806 | AL35: 68.39022806 | AM35: 68.39022806
A36: 2039 | B36: 70.68104328 | D36: 2039 | L36: 29.71811035 | M36: 15.61038482 | N36: 24.29614527 | O36: 24.29614527 | P36: 28.21043432 | Q36: 28.21043432 | R36: 28.21043432 | S36: 11.28607401 | T36: 10.92234404 | U36: 12.52920878 | V36: 12.52920878 | W36: 13.26364456 | X36: 13.26364456 | Y36: 13.26364456 | Z36: 14.89134765 | AA36: 14.66425821 | AB36: 16.8216229 | AC36: 16.8216229 | AD36: 17.50064212 | AE36: 17.50064212 | AF36: 17.50064212 | AG36: 70.52082767 | AH36: 70.68104328 | AI36: 71.1273946 | AJ36: 71.1273946 | AK36: 71.02437572 | AL36: 71.02437572 | AM36: 71.02437572
A37: 2040 | B37: 73.36938771 | D37: 2040 | L37: 30.49970564 | M37: 15.92062837 | N37: 24.83875621 | O37: 24.83875621 | P37: 28.85868096 | Q37: 28.85868096 | R37: 28.85868096 | S37: 11.39057469 | T37: 11.02347686 | U37: 12.64521997 | V37: 12.64521997 | W37: 13.38645608 | X37: 13.38645608 | Y37: 13.38645608 | Z37: 15.15259936 | AA37: 14.91709025 | AB37: 17.11165088 | AC37: 17.11165088 | AD37: 17.80767093 | AE37: 17.80767093 | AF37: 17.80767093 | AG37: 73.20075243 | AH37: 73.36938771 | AI37: 73.77854308 | AJ37: 73.77854308 | AK37: 73.65852339 | AL37: 73.65852339 | AM37: 73.65852339
A38: 2041 | B38: 76.05773215 | D38: 2041 | L38: 31.28130093 | M38: 16.23087193 | N38: 25.38136715 | O38: 25.38136715 | P38: 29.5069276 | Q38: 29.5069276 | R38: 29.5069276 | S38: 11.49507538 | T38: 11.12460967 | U38: 12.76123116 | V38: 12.76123116 | W38: 13.5092676 | X38: 13.5092676 | Y38: 13.5092676 | Z38: 15.41385107 | AA38: 15.16992228 | AB38: 17.40167886 | AC38: 17.40167886 | AD38: 18.11469974 | AE38: 18.11469974 | AF38: 18.11469974 | AG38: 75.88067718 | AH38: 76.05773215 | AI38: 76.42969157 | AJ38: 76.42969157 | AK38: 76.29267105 | AL38: 76.29267105 | AM38: 76.29267105
A39: 2042 | B39: 78.74607658 | D39: 2042 | L39: 32.06289622 | M39: 16.54111548 | N39: 25.92397809 | O39: 25.92397809 | P39: 30.15517424 | Q39: 30.15517424 | R39: 30.15517424 | S39: 11.59957606 | T39: 11.22574249 | U39: 12.87724236 | V39: 12.87724236 | W39: 13.63207913 | X39: 13.63207913 | Y39: 13.63207913 | Z39: 15.67510279 | AA39: 15.42275432 | AB39: 17.69170684 | AC39: 17.69170684 | AD39: 18.42172855 | AE39: 18.42172855 | AF39: 18.42172855 | AG39: 78.56060194 | AH39: 78.74607658 | AI39: 79.08084006 | AJ39: 79.08084006 | AK39: 78.92681871 | AL39: 78.92681871 | AM39: 78.92681871
A40: 2043 | B40: 81.43442101 | D40: 2043 | L40: 32.8444915 | M40: 16.85135903 | N40: 26.46658904 | O40: 26.46658904 | P40: 30.80342087 | Q40: 30.80342087 | R40: 30.80342087 | S40: 11.70407675 | T40: 11.32687531 | U40: 12.99325355 | V40: 12.99325355 | W40: 13.75489065 | X40: 13.75489065 | Y40: 13.75489065 | Z40: 15.9363545 | AA40: 15.67558636 | AB40: 17.98173482 | AC40: 17.98173482 | AD40: 18.72875736 | AE40: 18.72875736 | AF40: 18.72875736 | AG40: 81.2405267 | AH40: 81.43442101 | AI40: 81.73198855 | AJ40: 81.73198855 | AK40: 81.56096637 | AL40: 81.56096637 | AM40: 81.56096637
A41: 2044 | B41: 84.12276544 | D41: 2044 | L41: 33.62608679 | M41: 17.16160258 | N41: 27.00919998 | O41: 27.00919998 | P41: 31.45166751 | Q41: 31.45166751 | R41: 31.45166751 | S41: 11.80857743 | T41: 11.42800812 | U41: 13.10926474 | V41: 13.10926474 | W41: 13.87770218 | X41: 13.87770218 | Y41: 13.87770218 | Z41: 16.19760621 | AA41: 15.9284184 | AB41: 18.2717628 | AC41: 18.2717628 | AD41: 19.03578617 | AE41: 19.03578617 | AF41: 19.03578617 | AG41: 83.92045146 | AH41: 84.12276544 | AI41: 84.38313704 | AJ41: 84.38313704 | AK41: 84.19511403 | AL41: 84.19511403 | AM41: 84.19511403
A42: 2045 | B42: 86.81110988 | D42: 2045 | L42: 34.40768208 | M42: 17.47184613 | N42: 27.55181092 | O42: 27.55181092 | P42: 32.09991415 | Q42: 32.09991415 | R42: 32.09991415 | S42: 11.91307812 | T42: 11.52914094 | U42: 13.22527593 | V42: 13.22527593 | W42: 14.0005137 | X42: 14.0005137 | Y42: 14.0005137 | Z42: 16.45885793 | AA42: 16.18125044 | AB42: 18.56179078 | AC42: 18.56179078 | AD42: 19.34281498 | AE42: 19.34281498 | AF42: 19.34281498 | AG42: 86.60037621 | AH42: 86.81110988 | AI42: 87.03428553 | AJ42: 87.03428553 | AK42: 86.82926169 | AL42: 86.82926169 | AM42: 86.82926169
A43: 2046 | B43: 89.49945431 | D43: 2046 | L43: 35.18927737 | M43: 17.78208969 | N43: 28.09442186 | O43: 28.09442186 | P43: 32.74816078 | Q43: 32.74816078 | R43: 32.74816078 | S43: 12.0175788 | T43: 11.63027375 | U43: 13.34128712 | V43: 13.34128712 | W43: 14.12332522 | X43: 14.12332522 | Y43: 14.12332522 | Z43: 16.72010964 | AA43: 16.43408247 | AB43: 18.85181876 | AC43: 18.85181876 | AD43: 19.64984379 | AE43: 19.64984379 | AF43: 19.64984379 | AG43: 89.28030097 | AH43: 89.49945431 | AI43: 89.68543402 | AJ43: 89.68543402 | AK43: 89.46340935 | AL43: 89.46340935 | AM43: 89.46340935
A44: 2047 | B44: 92.18779874 | D44: 2047 | L44: 35.97087266 | M44: 18.09233324 | N44: 28.6370328 | O44: 28.6370328 | P44: 33.39640742 | Q44: 33.39640742 | R44: 33.39640742 | S44: 12.12207949 | T44: 11.73140657 | U44: 13.45729832 | V44: 13.45729832 | W44: 14.24613675 | X44: 14.24613675 | Y44: 14.24613675 | Z44: 16.98136135 | AA44: 16.68691451 | AB44: 19.14184674 | AC44: 19.14184674 | AD44: 19.9568726 | AE44: 19.9568726 | AF44: 19.9568726 | AG44: 91.96022573 | AH44: 92.18779874 | AI44: 92.33658251 | AJ44: 92.33658251 | AK44: 92.09755702 | AL44: 92.09755702 | AM44: 92.09755702
A45: 2048 | B45: 94.87614317 | D45: 2048 | L45: 36.75246795 | M45: 18.40257679 | N45: 29.17964374 | O45: 29.17964374 | P45: 34.04465406 | Q45: 34.04465406 | R45: 34.04465406 | S45: 12.22658017 | T45: 11.83253938 | U45: 13.57330951 | V45: 13.57330951 | W45: 14.36894827 | X45: 14.36894827 | Y45: 14.36894827 | Z45: 17.24261307 | AA45: 16.93974655 | AB45: 19.43187473 | AC45: 19.43187473 | AD45: 20.26390141 | AE45: 20.26390141 | AF45: 20.26390141 | AG45: 94.64015049 | AH45: 94.87614317 | AI45: 94.987731 | AJ45: 94.987731 | AK45: 94.73170468 | AL45: 94.73170468 | AM45: 94.73170468
A46: 2049 | B46: 97.56448761 | D46: 2049 | L46: 37.53406323 | M46: 18.71282034 | N46: 29.72225469 | O46: 29.72225469 | P46: 34.69290069 | Q46: 34.69290069 | R46: 34.69290069 | S46: 12.33108086 | T46: 11.9336722 | U46: 13.6893207 | V46: 13.6893207 | W46: 14.49175979 | X46: 14.49175979 | Y46: 14.49175979 | Z46: 17.50386478 | AA46: 17.19257859 | AB46: 19.72190271 | AC46: 19.72190271 | AD46: 20.57093022 | AE46: 20.57093022 | AF46: 20.57093022 | AG46: 97.32007524 | AH46: 97.56448761 | AI46: 97.63887949 | AJ46: 97.63887949 | AK46: 97.36585234 | AL46: 97.36585234 | AM46: 97.36585234
A47: 2050 | B47: 100 | D47: 2050 | L47: 38.31565852 | M47: 19.02306389 | N47: 30.26486563 | O47: 30.26486563 | P47: 35.34114733 | Q47: 35.34114733 | R47: 35.34114733 | S47: 12.43558154 | T47: 12.03480501 | U47: 13.80533189 | V47: 13.80533189 | W47: 14.61457132 | X47: 14.61457132 | Y47: 14.61457132 | Z47: 17.76511649 | AA47: 17.19257859 | AB47: 19.72190271 | AC47: 19.72190271 | AD47: 20.87795903 | AE47: 20.87795903 | AF47: 20.87795903 | AG47: 100 | AH47: 100 | AI47: 100 | AJ47: 100 | AK47: 100 | AL47: 100 | AM47: 100

Sheet Input_Data
A1: Input Observation Data
A2: This worksheet can be used to input different observations from available data.The user can update the inputs based on their own data analysis.
A3: The pre-populated data has been on data analysis from the Office for National Statistics and Public Heath England
A5: Key | B5: Input
A7: Input Reference | B7: [Input_Data_1] | C7: [Input_Data_2] | D7: [Input_Data_3] | E7: [Input_Data_4]
A9: Age Group | B9: Population | C9: Total deaths in a year (including caused by infection) | D9: Reported Infections in a year | E9: Deaths caused by infection in a year
A10: =Input_Lists!A5 -> <1 yr | B10: 668198.5 | C10: 2579 | D10: 536.3125 | E10: 49.5
A11: =Input_Lists!A6 -> 1-14 yrs | B11: 9075507.25 | C11: 943 | D11: 202.0625 | E11: 7.8125
A12: =Input_Lists!A7 -> 15-44 yrs | B12: 21385762.75 | C12: 13821 | D12: 2785.75 | E12: 137.0625
A13: =Input_Lists!A8 -> 45-64 yrs | B13: 13820413.75 | C13: 57381 | D13: 6242.25 | E13: 758
A14: =Input_Lists!A9 -> 65-74 yrs | B14: 5221386.25 | C14: 79027 | D14: 7014.0625 | E14: 1001.8125
A15: =Input_Lists!A10 -> 75-84 yrs | B15: 3103747.75 | C15: 139112 | D15: 9757.125 | E15: 1683.5625
A16: =Input_Lists!A11 -> 85+ yrs | B16: 1284191 | C16: 192618 | D16: 7580.5625 | E16: 1783.9375
A18: Total | B18: =SUM(B10:B16) -> 54559207.25 | C18: =SUM(C10:C16) -> 485481 | D18: =SUM(D10:D16) -> 34118.125 | E18: =SUM(E10:E16) -> 5421.6875

Sheet Input_Lists
A1: Lists
A2: This worksheet is used to define any drop down lists used in the look up tables, users are not expected to update this worksheet
A4: Age Groups
A5: <1 yr
A6: 1-14 yrs
A7: 15-44 yrs
A8: 45-64 yrs
A9: 65-74 yrs
A10: 75-84 yrs
A11: 85+ yrs
A13: Resistance Profiles
A14: Custom Profile
A15: Linear Extrapolation
A16: +40% increase in resistance by 2050
A17: +100% increase in resistance by 2050
A18: 100% Resistance by 2050

Sheet Calc_TransProfile
A1: Calculation - Transition Profiles
A2: This worksheet calculates the transition profile over time by combining the initial observation data, resistance profiles and user input adjustments
A4: User inputs from 'Input_Scen'
A6: =Input_Scen!A18 -> Age Group | B6: =Input_Scen!B18 -> 1-14 yrs
A7: =Input_Scen!A19 -> Resistance Profile | B7: =Input_Scen!B19 -> 100% Resistance by 2050
A8: =Input_Scen!A20 -> Relative mortality rate of resistance against susceptible infection | B8: =Input_Scen!B20 -> 2.5
A9: =Input_Scen!A21 -> Average hospitalised days with susceptible infection | B9: =Input_Scen!B21 -> 10
A10: =Input_Scen!A22 -> Average hospitalised days with resistant infection | B10: =Input_Scen!B22 -> 12
A11: =Input_Scen!A14 -> Days in a year | B11: =Input_Scen!B14 -> 365
A12: =Input_Scen!A15 -> Assume deaths occur X through a year | B12: =Input_Scen!B15 -> 0.5
A14: Import data for selected age group
A16: Match Input_Data | B16: =MATCH(B6,Input_Data!A10:A16,0) -> 2
A18: Age Group | B18: =B6 -> 1-14 yrs
A19: Population | B19: =INDEX(Input_Data!$B$10:$E$16,$B$16,MATCH($A19,Input_Data!$B$9:$E$9,0)) -> 9075507.25
A20: Total deaths in a year (including caused by infection) | B20: =INDEX(Input_Data!$B$10:$E$16,$B$16,MATCH($A20,Input_Data!$B$9:$E$9,0)) -> 943
A21: Reported Infections in a year | B21: =INDEX(Input_Data!$B$10:$E$16,$B$16,MATCH($A21,Input_Data!$B$9:$E$9,0)) -> 202.0625
A22: Deaths caused by infection in a year | B22: =INDEX(Input_Data!$B$10:$E$16,$B$16,MATCH($A22,Input_Data!$B$9:$E$9,0)) -> 7.8125
A23: Implied case fatality rate | B23: =B22/B21 -> 0.03866377977
A26: Calculate impact of resistance profile over time
A28: Year | B28: Resistance Profile | C28: Infection Rate Scalar | D28: Mortality Rate Scalar | E28: Total Infections | F28: Total Deaths from Infection | G28: Resistant Infections | H28: Susceptible Infections | I28: Susceptible Deaths | J28: Resistant Deaths | K28: Total Deaths | L28: Deaths from other causes | M28: Susceptible Bed Days | N28: Resistant Bed Days | O28: Total Potential Bed Days | P28: Average Holding Time in H
A29: =Input_Scen!B13 -> 2017 | B29: =Input_Res!B14 -> 11.53746576 | C29: =Input_Scen!B27 -> 0 | D29: =Input_Scen!C27 -> 0 | E29: =B21*(1+C29) -> 202.0625 | F29: =E29*$B$23*(1+D29) -> 7.8125 | G29: =E29*B29/100 -> 23.31289176 | H29: =E29-G29 -> 178.7496082 | I29: =H29*F29/(H29+$B$8*G29) -> 5.891534776 | J29: =F29-I29 -> 1.920965224 | K29: =$B$20+F29-$B$22 -> 943 | L29: =K29-F29 -> 935.1875 | M29: =$B$9*H29 -> 1787.496082 | N29: =$B$10*G29 -> 279.7547011 | O29: =$B$19*$B$11 -> 3312560146 | P29: =O29-M29-N29-K29*$B$11*$B$12 -> 3312385981
A30: =A29+1 -> 2018 | B30: =Input_Res!B15 -> 14.2258102 | C30: =Input_Scen!B28 -> 0 | D30: =Input_Scen!C28 -> 0 | E30: =E29*(1+C30) -> 202.0625 | F30: =I30+J30 -> 8.081062418 | G30: =E30*B30/100 -> 28.74502773 | H30: =E30-G30 -> 173.3174723 | I30: =I29/H29*H30*(1+D30) -> 5.712493164 | J30: =J29/G29*G30*(1+D29) -> 2.368569254 | K30: =$B$20+F30-$B$22 -> 943.2685624 | L30: 935.1875 | M30: =$B$9*H30 -> 1733.174723 | N30: =$B$10*G30 -> 344.9403328 | O30: =$B$19*$B$11 -> 3312560146 | P30: =O30-M30-N30-K30*$B$11*$B$12 -> 3312385922
A31: =A30+1 -> 2019 | B31: =Input_Res!B16 -> 16.91415463 | C31: =Input_Scen!B29 -> 0 | D31: =Input_Scen!C29 -> 0 | E31: =E30*(1+C31) -> 202.0625 | F31: =I31+J31 -> 8.349624835 | G31: 34.1771637 | H31: 167.8853363 | I31: =I30/H30*H31*(1+D31) -> 5.533451552 | J31: =J30/G30*G31*(1+D30) -> 2.816173283 | K31: 943.5371248 | L31: 935.1875 | M31: 1678.853363 | N31: 410.1259644 | O31: 3312560146 | P31: 3312385862
A32: 2020 | B32: =Input_Res!B17 -> 19.60249906 | C32: =Input_Scen!B30 -> 0 | D32: =Input_Scen!C30 -> 0 | E32: 202.0625 | F32: 8.618187253 | G32: 39.60929967 | H32: 162.4532003 | I32: 5.35440994 | J32: 3.263777313 | K32: 943.8056873 | L32: 935.1875 | M32: 1624.532003 | N32: 475.311596 | O32: 3312560146 | P32: 3312385802
A33: 2021 | B33: =Input_Res!B18 -> 22.29084349 | C33: =Input_Scen!B31 -> 0 | D33: =Input_Scen!C31 -> 0 | E33: 202.0625 | F33: 8.886749671 | G33: 45.04143564 | H33: 157.0210644 | I33: 5.175368328 | J33: 3.711381342 | K33: 944.0742497 | L33: 935.1875 | M33: 1570.210644 | N33: 540.4972276 | O33: 3312560146 | P33: 3312385742
A34: 2022 | B34: =Input_Res!B19 -> 24.97918793 | C34: =Input_Scen!B32 -> 0 | D34: =Input_Scen!C32 -> 0 | E34: 202.0625 | F34: 9.155312088 | G34: 50.47357161 | H34: 151.5889284 | I34: 4.996326717 | J34: 4.158985372 | K34: 944.3428121 | L34: 935.1875 | M34: 1515.889284 | N34: 605.6828593 | O34: 3312560146 | P34: 3312385682
A35: 2023 | B35: =Input_Res!B20 -> 27.66753236 | C35: =Input_Scen!B33 -> 0 | D35: =Input_Scen!C33 -> 0 | E35: 202.0625 | F35: 9.423874506 | G35: 55.90570757 | H35: 146.1567924 | I35: 4.817285105 | J35: 4.606589401 | K35: 944.6113745 | L35: 935.1875 | M35: 1461.567924 | N35: 670.8684909 | O35: 3312560146 | P35: 3312385622
A36: 2024 | B36: =Input_Res!B21 -> 30.35587679 | C36: =Input_Scen!B34 -> 0 | D36: =Input_Scen!C34 -> 0 | E36: 202.0625 | F36: 9.692436924 | G36: 61.33784354 | H36: 140.7246565 | I36: 4.638243493 | J36: 5.054193431 | K36: 944.8799369 | L36: 935.1875 | M36: 1407.246565 | N36: 736.0541225 | O36: 3312560146 | P36: 3312385562
A37: 2025 | B37: =Input_Res!B22 -> 33.04422122 | C37: =Input_Scen!B35 -> 0 | D37: =Input_Scen!C35 -> 0 | E37: 202.0625 | F37: 9.960999342 | G37: 66.76997951 | H37: 135.2925205 | I37: 4.459201881 | J37: 5.50179746 | K37: 945.1484993 | L37: 935.1875 | M37: 1352.925205 | N37: 801.2397541 | O37: 3312560146 | P37: 3312385502
A38: 2026 | B38: =Input_Res!B23 -> 35.73256566 | C38: =Input_Scen!B36 -> 0 | D38: =Input_Scen!C36 -> 0 | E38: 202.0625 | F38: 10.22956176 | G38: 72.20211548 | H38: 129.8603845 | I38: 4.280160269 | J38: 5.94940149 | K38: 945.4170618 | L38: 935.1875 | M38: 1298.603845 | N38: 866.4253858 | O38: 3312560146 | P38: 3312385443
A39: 2027 | B39: =Input_Res!B24 -> 38.42091009 | C39: =Input_Scen!B37 -> 0 | D39: =Input_Scen!C37 -> 0 | E39: 202.0625 | F39: 10.49812418 | G39: 77.63425145 | H39: 124.4282485 | I39: 4.101118658 | J39: 6.397005519 | K39: 945.6856242 | L39: 935.1875 | M39: 1244.282485 | N39: 931.6110174 | O39: 3312560146 | P39: 3312385383
A40: 2028 | B40: =Input_Res!B25 -> 41.10925452 | C40: =Input_Scen!B38 -> 0 | D40: =Input_Scen!C38 -> 0 | E40: 202.0625 | F40: 10.76668659 | G40: 83.06638742 | H40: 118.9961126 | I40: 3.922077046 | J40: 6.844609549 | K40: 945.9541866 | L40: 935.1875 | M40: 1189.961126 | N40: 996.796649 | O40: 3312560146 | P40: 3312385323
A41: 2029 | B41: =Input_Res!B26 -> 43.79759895 | C41: =Input_Scen!B39 -> 0 | D41: =Input_Scen!C39 -> 0 | E41: 202.0625 | F41: 11.03524901 | G41: 88.49852339 | H41: 113.5639766 | I41: 3.743035434 | J41: 7.292213578 | K41: 946.222749 | L41: 935.1875 | M41: 1135.639766 | N41: 1061.982281 | O41: 3312560146 | P41: 3312385263
A42: 2030 | B42: =Input_Res!B27 -> 46.48594339 | C42: =Input_Scen!B40 -> 0 | D42: =Input_Scen!C40 -> 0 | E42: 202.0625 | F42: 11.30381143 | G42: 93.93065936 | H42: 108.1318406 | I42: 3.563993822 | J42: 7.739817608 | K42: 946.4913114 | L42: 935.1875 | M42: 1081.318406 | N42: 1127.167912 | O42: 3312560146 | P42: 3312385203
A43: 2031 | B43: =Input_Res!B28 -> 49.17428782 | C43: =Input_Scen!B41 -> 0 | D43: =Input_Scen!C41 -> 0 | E43: 202.0625 | F43: 11.57237385 | G43: 99.36279533 | H43: 102.6997047 | I43: 3.38495221 | J43: 8.187421637 | K43: 946.7598738 | L43: 935.1875 | M43: 1026.997047 | N43: 1192.353544 | O43: 3312560146 | P43: 3312385143
A44: 2032 | B44: =Input_Res!B29 -> 51.86263225 | C44: =Input_Scen!B42 -> 0 | D44: =Input_Scen!C42 -> 0 | E44: 202.0625 | F44: 11.84093627 | G44: 104.7949313 | H44: 97.2675687 | I44: 3.205910599 | J44: 8.635025667 | K44: 947.0284363 | L44: 935.1875 | M44: 972.675687 | N44: 1257.539176 | O44: 3312560146 | P44: 3312385083
A45: 2033 | B45: =Input_Res!B30 -> 54.55097669 | C45: =Input_Scen!B43 -> 0 | D45: =Input_Scen!C43 -> 0 | E45: 202.0625 | F45: 12.10949868 | G45: 110.2270673 | H45: 91.83543274 | I45: 3.026868987 | J45: 9.082629696 | K45: 947.2969987 | L45: 935.1875 | M45: 918.3543274 | N45: 1322.724807 | O45: 3312560146 | P45: 3312385023
A46: 2034 | B46: =Input_Res!B31 -> 57.23932112 | C46: =Input_Scen!B44 -> 0 | D46: =Input_Scen!C44 -> 0 | E46: 202.0625 | F46: 12.3780611 | G46: 115.6592032 | H46: 86.40329677 | I46: 2.847827375 | J46: 9.530233726 | K46: 947.5655611 | L46: 935.1875 | M46: 864.0329677 | N46: 1387.910439 | O46: 3312560146 | P46: 3312384964
A47: 2035 | B47: =Input_Res!B32 -> 59.92766555 | C47: =Input_Scen!B45 -> 0 | D47: =Input_Scen!C45 -> 0 | E47: 202.0625 | F47: 12.64662352 | G47: 121.0913392 | H47: 80.9711608 | I47: 2.668785763 | J47: 9.977837755 | K47: 947.8341235 | L47: 935.1875 | M47: 809.711608 | N47: 1453.09607 | O47: 3312560146 | P47: 3312384904
A48: 2036 | B48: =Input_Res!B33 -> 62.61600998 | C48: =Input_Scen!B46 -> 0 | D48: =Input_Scen!C46 -> 0 | E48: 202.0625 | F48: 12.91518594 | G48: 126.5234752 | H48: 75.53902483 | I48: 2.489744151 | J48: 10.42544178 | K48: 948.1026859 | L48: 935.1875 | M48: 755.3902483 | N48: 1518.281702 | O48: 3312560146 | P48: 3312384844
A49: 2037 | B49: =Input_Res!B34 -> 65.30435442 | C49: =Input_Scen!B47 -> 0 | D49: =Input_Scen!C47 -> 0 | E49: 202.0625 | F49: 13.18374835 | G49: 131.9556111 | H49: 70.10688886 | I49: 2.31070254 | J49: 10.87304581 | K49: 948.3712484 | L49: 935.1875 | M49: 701.0688886 | N49: 1583.467334 | O49: 3312560146 | P49: 3312384784
A50: 2038 | B50: =Input_Res!B35 -> 67.99269885 | C50: =Input_Scen!B48 -> 0 | D50: =Input_Scen!C48 -> 0 | E50: 202.0625 | F50: 13.45231077 | G50: 137.3877471 | H50: 64.67475289 | I50: 2.131660928 | J50: 11.32064984 | K50: 948.6398108 | L50: 935.1875 | M50: 646.7475289 | N50: 1648.652965 | O50: 3312560146 | P50: 3312384724
A51: 2039 | B51: =Input_Res!B36 -> 70.68104328 | C51: =Input_Scen!B49 -> 0 | D51: =Input_Scen!C49 -> 0 | E51: 202.0625 | F51: 13.72087319 | G51: 142.8198831 | H51: 59.24261692 | I51: 1.952619316 | J51: 11.76825387 | K51: 948.9083732 | L51: 935.1875 | M51: 592.4261692 | N51: 1713.838597 | O51: 3312560146 | P51: 3312384664
A52: 2040 | B52: =Input_Res!B37 -> 73.36938771 | C52: =Input_Scen!B50 -> 0 | D52: =Input_Scen!C50 -> 0 | E52: 202.0625 | F52: 13.98943561 | G52: 148.252019 | H52: 53.81048095 | I52: 1.773577704 | J52: 12.2158579 | K52: 949.1769356 | L52: 935.1875 | M52: 538.1048095 | N52: 1779.024229 | O52: 3312560146 | P52: 3312384604
A53: 2041 | B53: =Input_Res!B38 -> 76.05773215 | C53: =Input_Scen!B51 -> 0 | D53: =Input_Scen!C51 -> 0 | E53: 202.0625 | F53: 14.25799802 | G53: 153.684155 | H53: 48.37834498 | I53: 1.594536092 | J53: 12.66346193 | K53: 949.445498 | L53: 935.1875 | M53: 483.7834498 | N53: 1844.20986 | O53: 3312560146 | P53: 3312384544
A54: 2042 | B54: =Input_Res!B39 -> 78.74607658 | C54: =Input_Scen!B52 -> 0 | D54: =Input_Scen!C52 -> 0 | E54: 202.0625 | F54: 14.52656044 | G54: 159.116291 | H54: 42.94620901 | I54: 1.415494481 | J54: 13.11106596 | K54: 949.7140604 | L54: 935.1875 | M54: 429.4620901 | N54: 1909.395492 | O54: 3312560146 | P54: 3312384485
A55: 2043 | B55: =Input_Res!B40 -> 81.43442101 | C55: =Input_Scen!B53 -> 0 | D55: =Input_Scen!C53 -> 0 | E55: 202.0625 | F55: 14.79512286 | G55: 164.548427 | H55: 37.51407305 | I55: 1.236452869 | J55: 13.55866999 | K55: 949.9826229 | L55: 935.1875 | M55: 375.1407305 | N55: 1974.581123 | O55: 3312560146 | P55: 3312384425
A56: 2044 | B56: =Input_Res!B41 -> 84.12276544 | C56: =Input_Scen!B54 -> 0 | D56: =Input_Scen!C54 -> 0 | E56: 202.0625 | F56: 15.06368528 | G56: 169.9805629 | H56: 32.08193708 | I56: 1.057411257 | J56: 14.00627402 | K56: 950.2511853 | L56: 935.1875 | M56: 320.8193708 | N56: 2039.766755 | O56: 3312560146 | P56: 3312384365
A57: 2045 | B57: =Input_Res!B42 -> 86.81110988 | C57: =Input_Scen!B55 -> 0 | D57: =Input_Scen!C55 -> 0 | E57: 202.0625 | F57: 15.3322477 | G57: 175.4126989 | H57: 26.64980111 | I57: 0.8783696453 | J57: 14.45387805 | K57: 950.5197477 | L57: 935.1875 | M57: 266.4980111 | N57: 2104.952387 | O57: 3312560146 | P57: 3312384305
A58: 2046 | B58: =Input_Res!B43 -> 89.49945431 | C58: =Input_Scen!B56 -> 0 | D58: =Input_Scen!C56 -> 0 | E58: 202.0625 | F58: 15.60081011 | G58: 180.8448349 | H58: 21.21766514 | I58: 0.6993280335 | J58: 14.90148208 | K58: 950.7883101 | L58: 935.1875 | M58: 212.1766514 | N58: 2170.138018 | O58: 3312560146 | P58: 3312384245
A59: 2047 | B59: =Input_Res!B44 -> 92.18779874 | C59: =Input_Scen!B57 -> 0 | D59: =Input_Scen!C57 -> 0 | E59: 202.0625 | F59: 15.86937253 | G59: 186.2769708 | H59: 15.78552917 | I59: 0.5202864217 | J59: 15.34908611 | K59: 951.0568725 | L59: 935.1875 | M59: 157.8552917 | N59: 2235.32365 | O59: 3312560146 | P59: 3312384185
A60: 2048 | B60: =Input_Res!B45 -> 94.87614317 | C60: =Input_Scen!B58 -> 0 | D60: =Input_Scen!C58 -> 0 | E60: 202.0625 | F60: 16.13793495 | G60: 191.7091068 | H60: 10.3533932 | I60: 0.3412448099 | J60: 15.79669014 | K60: 951.3254349 | L60: 935.1875 | M60: 103.533932 | N60: 2300.509282 | O60: 3312560146 | P60: 3312384125
A61: 2049 | B61: =Input_Res!B46 -> 97.56448761 | C61: =Input_Scen!B59 -> 0 | D61: =Input_Scen!C59 -> 0 | E61: 202.0625 | F61: 16.40649737 | G61: 197.1412428 | H61: 4.921257232 | I61: 0.1622031981 | J61: 16.24429417 | K61: 951.5939974 | L61: 935.1875 | M61: 49.21257232 | N61: 2365.694913 | O61: 3312560146 | P61: 3312384065
A62: 2050 | B62: =Input_Res!B47 -> 100 | C62: =Input_Scen!B60 -> 0 | D62: =Input_Scen!C60 -> 0 | E62: 202.0625 | F62: 16.64980216 | G62: 202.0625 | H62: 0 | I62: 0 | J62: 16.64980216 | K62: 951.8373022 | L62: 935.1875 | M62: 0 | N62: 2424.75 | O62: 3312560146 | P62: 3312384011

Sheet Calc_TransProb
A1: Calculation - Transition Probabilities
A2: This worksheet converts the annual observations of state transitions into daily transition probabilities
B4: Number of transitions in a year | J4: Holding time in state t(i) | N4: Daily Transition rates σ(i) | V4: Total daily transition rate out of state λ(i) | Z4: Probability of transition from i to j given you are in state i: Pr(X(t+1) = j | X(t) = i)
A5: Year | B5: HS | C5: HR | D5: SD | E5: RD | F5: SH | G5: RH | H5: HD | J5: H | K5: S | L5: R | N5: HS | O5: HR | P5: SD | Q5: RD | R5: SH | S5: RH | T5: HD | V5: H | W5: R | X5: S | Z5: HS | AA5: HR | AB5: HH | AC5: HD | AD5: SH | AE5: SS | AF5: SD | AG5: RH | AH5: RR | AI5: RD | AJ5: DD
A6: =Calc_TransProfile!A29 -> 2017 | B6: =Calc_TransProfile!H29 -> 178.7496082 | C6: =Calc_TransProfile!G29 -> 23.31289176 | D6: =Calc_TransProfile!I29 -> 5.891534776 | E6: =Calc_TransProfile!J29 -> 1.920965224 | F6: =B6-D6 -> 172.8580735 | G6: =C6-E6 -> 21.39192654 | H6: =Calc_TransProfile!L29 -> 935.1875 | J6: =Calc_TransProfile!P29 -> 3312385981 | K6: =Calc_TransProfile!M29 -> 1787.496082 | L6: =Calc_TransProfile!N29 -> 279.7547011 | N6: =B6/J6 -> 5.396400336e-08 | O6: =C6/J6 -> 7.038096372e-09 | P6: =D6/K6 -> 0.003295970734 | Q6: =E6/L6 -> 0.006866605697 | R6: =F6/K6 -> 0.09670402927 | S6: =G6/L6 -> 0.07646672764 | T6: =H6/J6 -> 2.823304727e-07 | V6: =N6+O6+T6 -> 3.433325725e-07 | W6: =Q6+S6 -> 0.08333333333 | X6: =P6+R6 -> 0.1 | Z6: =(1-AB6)*N6/V6 -> 5.39639941e-08 | AA6: =(1-AB6)*O6/V6 -> 7.038095164e-09 | AB6: =EXP(-V6) -> 0.9999996567 | AC6: =(1-AB6)*T6/V6 -> 2.823304243e-07 | AD6: =(1-AE6)*R6/X6 -> 0.09202605111 | AE6: =EXP(-X6) -> 0.904837418 | AF6: =(1-AE6)*P6/X6 -> 0.003136530852 | AG6: =(1-AH6)*S6/W6 -> 0.07336730363 | AH6: =EXP(-W6) -> 0.9200444146 | AI6: =(1-AH6)*Q6/W6 -> 0.006588281736 | AJ6: 1
A7: =Calc_TransProfile!A30 -> 2018 | B7: =Calc_TransProfile!H30 -> 173.3174723 | C7: =Calc_TransProfile!G30 -> 28.74502773 | D7: =Calc_TransProfile!I30 -> 5.712493164 | E7: =Calc_TransProfile!J30 -> 2.368569254 | F7: =B7-D7 -> 167.6049791 | G7: =C7-E7 -> 26.37645848 | H7: =Calc_TransProfile!L30 -> 935.1875 | J7: =Calc_TransProfile!P30 -> 3312385922 | K7: =Calc_TransProfile!M30 -> 1733.174723 | L7: =Calc_TransProfile!N30 -> 344.9403328 | N7: =B7/J7 -> 5.232405776e-08 | O7: =C7/J7 -> 8.678043081e-09 | P7: 0.003295970734 | Q7: 0.006866605697 | R7: =F7/K7 -> 0.09670402927 | S7: 0.07646672764 | T7: =H7/J7 -> 2.823304778e-07 | V7: =N7+O7+T7 -> 3.433325787e-07 | W7: =Q7+S7 -> 0.08333333333 | X7: =P7+R7 -> 0.1 | Z7: =(1-AB7)*N7/V7 -> 5.232404878e-08 | AA7: =(1-AB7)*O7/V7 -> 8.678041592e-09 | AB7: =EXP(-V7) -> 0.9999996567 | AC7: =(1-AB7)*T7/V7 -> 2.823304294e-07 | AD7: =(1-AE7)*R7/X7 -> 0.09202605111 | AE7: =EXP(-X7) -> 0.904837418 | AF7: =(1-AE7)*P7/X7 -> 0.003136530852 | AG7: =(1-AH7)*S7/W7 -> 0.07336730363 | AH7: =EXP(-W7) -> 0.9200444146 | AI7: =(1-AH7)*Q7/W7 -> 0.006588281736 | AJ7: 1
A8: =Calc_TransProfile!A31 -> 2019 | B8: =Calc_TransProfile!H31 -> 167.8853363 | C8: =Calc_TransProfile!G31 -> 34.1771637 | D8: =Calc_TransProfile!I31 -> 5.533451552 | E8: =Calc_TransProfile!J31 -> 2.816173283 | F8: 162.3518847 | G8: 31.36099042 | H8: =Calc_TransProfile!L31 -> 935.1875 | J8: =Calc_TransProfile!P31 -> 3312385862 | K8: =Calc_TransProfile!M31 -> 1678.853363 | L8: =Calc_TransProfile!N31 -> 410.1259644 | N8: 5.068411209e-08 | O8: 1.031798985e-08 | P8: 0.003295970734 | Q8: 0.006866605697 | R8: 0.09670402927 | S8: 0.07646672764 | T8: 2.823304829e-07 | V8: 3.433325849e-07 | W8: 0.08333333333 | X8: 0.1 | Z8: 5.068410339e-08 | AA8: 1.031798808e-08 | AB8: 0.9999996567 | AC8: 2.823304345e-07 | AD8: 0.09202605111 | AE8: 0.904837418 | AF8: 0.003136530852 | AG8: 0.07336730363 | AH8: 0.9200444146 | AI8: 0.006588281736 | AJ8: 1
A9: =Calc_TransProfile!A32 -> 2020 | B9: =Calc_TransProfile!H32 -> 162.4532003 | C9: =Calc_TransProfile!G32 -> 39.60929967 | D9: =Calc_TransProfile!I32 -> 5.35440994 | E9: =Calc_TransProfile!J32 -> 3.263777313 | F9: 157.0987904 | G9: 36.34552235 | H9: =Calc_TransProfile!L32 -> 935.1875 | J9: =Calc_TransProfile!P32 -> 3312385802 | K9: =Calc_TransProfile!M32 -> 1624.532003 | L9: =Calc_TransProfile!N32 -> 475.311596 | N9: 4.904416637e-08 | O9: 1.195793668e-08 | P9: 0.003295970734 | Q9: 0.006866605697 | R9: 0.09670402927 | S9: 0.07646672764 | T9: 2.82330488e-07 | V9: 3.433325911e-07 | W9: 0.08333333333 | X9: 0.1 | Z9: 4.904415795e-08 | AA9: 1.195793463e-08 | AB9: 0.9999996567 | AC9: 2.823304396e-07 | AD9: 0.09202605111 | AE9: 0.904837418 | AF9: 0.003136530852 | AG9: 0.07336730363 | AH9: 0.9200444146 | AI9: 0.006588281736 | AJ9: 1
A10: =Calc_TransProfile!A33 -> 2021 | B10: =Calc_TransProfile!H33 -> 157.0210644 | C10: =Calc_TransProfile!G33 -> 45.04143564 | D10: =Calc_TransProfile!I33 -> 5.175368328 | E10: =Calc_TransProfile!J33 -> 3.711381342 | F10: 151.845696 | G10: 41.33005429 | H10: =Calc_TransProfile!L33 -> 935.1875 | J10: =Calc_TransProfile!P33 -> 3312385742 | K10: =Calc_TransProfile!M33 -> 1570.210644 | L10: =Calc_TransProfile!N33 -> 540.4972276 | N10: 4.740422058e-08 | O10: 1.359788356e-08 | P10: 0.003295970734 | Q10: 0.006866605697 | R10: 0.09670402927 | S10: 0.07646672764 | T10: 2.823304931e-07 | V10: 3.433325973e-07 | W10: 0.08333333333 | X10: 0.1 | Z10: 4.740421245e-08 | AA10: 1.359788123e-08 | AB10: 0.9999996567 | AC10: 2.823304447e-07 | AD10: 0.09202605111 | AE10: 0.904837418 | AF10: 0.003136530852 | AG10: 0.07336730363 | AH10: 0.9200444146 | AI10: 0.006588281736 | AJ10: 1
A11: =Calc_TransProfile!A34 -> 2022 | B11: =Calc_TransProfile!H34 -> 151.5889284 | C11: =Calc_TransProfile!G34 -> 50.47357161 | D11: =Calc_TransProfile!I34 -> 4.996326717 | E11: =Calc_TransProfile!J34 -> 4.158985372 | F11: 146.5926017 | G11: 46.31458623 | H11: =Calc_TransProfile!L34 -> 935.1875 | J11: =Calc_TransProfile!P34 -> 3312385682 | K11: =Calc_TransProfile!M34 -> 1515.889284 | L11: =Calc_TransProfile!N34 -> 605.6828593 | N11: 4.576427474e-08 | O11: 1.523783051e-08 | P11: 0.003295970734 | Q11: 0.006866605697 | R11: 0.09670402927 | S11: 0.07646672764 | T11: 2.823304982e-07 | V11: 3.433326035e-07 | W11: 0.08333333333 | X11: 0.1 | Z11: 4.576426688e-08 | AA11: 1.523782789e-08 | AB11: 0.9999996567 | AC11: 2.823304497e-07 | AD11: 0.09202605111 | AE11: 0.904837418 | AF11: 0.003136530852 | AG11: 0.07336730363 | AH11: 0.9200444146 | AI11: 0.006588281736 | AJ11: 1
A12: =Calc_TransProfile!A35 -> 2023 | B12: =Calc_TransProfile!H35 -> 146.1567924 | C12: =Calc_TransProfile!G35 -> 55.90570757 | D12: =Calc_TransProfile!I35 -> 4.817285105 | E12: =Calc_TransProfile!J35 -> 4.606589401 | F12: 141.3395073 | G12: 51.29911817 | H12: =Calc_TransProfile!L35 -> 935.1875 | J12: =Calc_TransProfile!P35 -> 3312385622 | K12: =Calc_TransProfile!M35 -> 1461.567924 | L12: =Calc_TransProfile!N35 -> 670.8684909 | N12: 4.412432884e-08 | O12: 1.687777751e-08 | P12: 0.003295970734 | Q12: 0.006866605697 | R12: 0.09670402927 | S12: 0.07646672764 | T12: 2.823305033e-07 | V12: 3.433326097e-07 | W12: 0.08333333333 | X12: 0.1 | Z12: 4.412432126e-08 | AA12: 1.687777462e-08 | AB12: 0.9999996567 | AC12: 2.823304549e-07 | AD12: 0.09202605111 | AE12: 0.904837418 | AF12: 0.003136530852 | AG12: 0.07336730363 | AH12: 0.9200444146 | AI12: 0.006588281736 | AJ12: 1
A13: =Calc_TransProfile!A36 -> 2024 | B13: =Calc_TransProfile!H36 -> 140.7246565 | C13: =Calc_TransProfile!G36 -> 61.33784354 | D13: =Calc_TransProfile!I36 -> 4.638243493 | E13: =Calc_TransProfile!J36 -> 5.054193431 | F13: 136.086413 | G13: 56.28365011 | H13: =Calc_TransProfile!L36 -> 935.1875 | J13: =Calc_TransProfile!P36 -> 3312385562 | K13: =Calc_TransProfile!M36 -> 1407.246565 | L13: =Calc_TransProfile!N36 -> 736.0541225 | N13: 4.248438287e-08 | O13: 1.851772458e-08 | P13: 0.003295970734 | Q13: 0.006866605697 | R13: 0.09670402927 | S13: 0.07646672764 | T13: 2.823305084e-07 | V13: 3.433326159e-07 | W13: 0.08333333333 | X13: 0.1 | Z13: 4.248437558e-08 | AA13: 1.85177214e-08 | AB13: 0.9999996567 | AC13: 2.8233046e-07 | AD13: 0.09202605111 | AE13: 0.904837418 | AF13: 0.003136530852 | AG13: 0.07336730363 | AH13: 0.9200444146 | AI13: 0.006588281736 | AJ13: 1
A14: =Calc_TransProfile!A37 -> 2025 | B14: =Calc_TransProfile!H37 -> 135.2925205 | C14: =Calc_TransProfile!G37 -> 66.76997951 | D14: =Calc_TransProfile!I37 -> 4.459201881 | E14: =Calc_TransProfile!J37 -> 5.50179746 | F14: 130.8333186 | G14: 61.26818205 | H14: =Calc_TransProfile!L37 -> 935.1875 | J14: =Calc_TransProfile!P37 -> 3312385502 | K14: =Calc_TransProfile!M37 -> 1352.925205 | L14: =Calc_TransProfile!N37 -> 801.2397541 | N14: 4.084443685e-08 | O14: 2.01576717e-08 | P14: 0.003295970734 | Q14: 0.006866605697 | R14: 0.09670402927 | S14: 0.07646672764 | T14: 2.823305136e-07 | V14: 3.433326221e-07 | W14: 0.08333333333 | X14: 0.1 | Z14: 4.084442984e-08 | AA14: 2.015766824e-08 | AB14: 0.9999996567 | AC14: 2.823304651e-07 | AD14: 0.09202605111 | AE14: 0.904837418 | AF14: 0.003136530852 | AG14: 0.07336730363 | AH14: 0.9200444146 | AI14: 0.006588281736 | AJ14: 1
A15: =Calc_TransProfile!A38 -> 2026 | B15: =Calc_TransProfile!H38 -> 129.8603845 | C15: =Calc_TransProfile!G38 -> 72.20211548 | D15: =Calc_TransProfile!I38 -> 4.280160269 | E15: =Calc_TransProfile!J38 -> 5.94940149 | F15: 125.5802242 | G15: 66.25271399 | H15: =Calc_TransProfile!L38 -> 935.1875 | J15: =Calc_TransProfile!P38 -> 3312385443 | K15: =Calc_TransProfile!M38 -> 1298.603845 | L15: =Calc_TransProfile!N38 -> 866.4253858 | N15: 3.920449077e-08 | O15: 2.179761889e-08 | P15: 0.003295970734 | Q15: 0.006866605697 | R15: 0.09670402927 | S15: 0.07646672764 | T15: 2.823305187e-07 | V15: 3.433326283e-07 | W15: 0.08333333333 | X15: 0.1 | Z15: 3.920448404e-08 | AA15: 2.179761514e-08 | AB15: 0.9999996567 | AC15: 2.823304702e-07 | AD15: 0.09202605111 | AE15: 0.904837418 | AF15: 0.003136530852 | AG15: 0.07336730363 | AH15: 0.9200444146 | AI15: 0.006588281736 | AJ15: 1
A16: =Calc_TransProfile!A39 -> 2027 | B16: =Calc_TransProfile!H39 -> 124.4282485 | C16: =Calc_TransProfile!G39 -> 77.63425145 | D16: =Calc_TransProfile!I39 -> 4.101118658 | E16: =Calc_TransProfile!J39 -> 6.397005519 | F16: 120.3271299 | G16: 71.23724593 | H16: =Calc_TransProfile!L39 -> 935.1875 | J16: =Calc_TransProfile!P39 -> 3312385383 | K16: =Calc_TransProfile!M39 -> 1244.282485 | L16: =Calc_TransProfile!N39 -> 931.6110174 | N16: 3.756454463e-08 | O16: 2.343756613e-08 | P16: 0.003295970734 | Q16: 0.006866605697 | R16: 0.09670402927 | S16: 0.07646672764 | T16: 2.823305238e-07 | V16: 3.433326345e-07 | W16: 0.08333333333 | X16: 0.1 | Z16: 3.756453819e-08 | AA16: 2.343756211e-08 | AB16: 0.9999996567 | AC16: 2.823304753e-07 | AD16: 0.09202605111 | AE16: 0.904837418 | AF16: 0.003136530852 | AG16: 0.07336730363 | AH16: 0.9200444146 | AI16: 0.006588281736 | AJ16: 1
A17: =Calc_TransProfile!A40 -> 2028 | B17: =Calc_TransProfile!H40 -> 118.9961126 | C17: =Calc_TransProfile!G40 -> 83.06638742 | D17: =Calc_TransProfile!I40 -> 3.922077046 | E17: =Calc_TransProfile!J40 -> 6.844609549 | F17: 115.0740355 | G17: 76.22177787 | H17: =Calc_TransProfile!L40 -> 935.1875 | J17: =Calc_TransProfile!P40 -> 3312385323 | K17: =Calc_TransProfile!M40 -> 1189.961126 | L17: =Calc_TransProfile!N40 -> 996.796649 | N17: 3.592459843e-08 | O17: 2.507751343e-08 | P17: 0.003295970734 | Q17: 0.006866605697 | R17: 0.09670402927 | S17: 0.07646672764 | T17: 2.823305289e-07 | V17: 3.433326407e-07 | W17: 0.08333333333 | X17: 0.1 | Z17: 3.592459227e-08 | AA17: 2.507750913e-08 | AB17: 0.9999996567 | AC17: 2.823304804e-07 | AD17: 0.09202605111 | AE17: 0.904837418 | AF17: 0.003136530852 | AG17: 0.07336730363 | AH17: 0.9200444146 | AI17: 0.006588281736 | AJ17: 1
A18: =Calc_TransProfile!A41 -> 2029 | B18: =Calc_TransProfile!H41 -> 113.5639766 | C18: =Calc_TransProfile!G41 -> 88.49852339 | D18: =Calc_TransProfile!I41 -> 3.743035434 | E18: =Calc_TransProfile!J41 -> 7.292213578 | F18: 109.8209412 | G18: 81.20630981 | H18: =Calc_TransProfile!L41 -> 935.1875 | J18: =Calc_TransProfile!P41 -> 3312385263 | K18: =Calc_TransProfile!M41 -> 1135.639766 | L18: =Calc_TransProfile!N41 -> 1061.982281 | N18: 3.428465218e-08 | O18: 2.671746079e-08 | P18: 0.003295970734 | Q18: 0.006866605697 | R18: 0.09670402927 | S18: 0.07646672764 | T18: 2.82330534e-07 | V18: 3.433326469e-07 | W18: 0.08333333333 | X18: 0.1 | Z18: 3.428464629e-08 | AA18: 2.671745621e-08 | AB18: 0.9999996567 | AC18: 2.823304855e-07 | AD18: 0.09202605111 | AE18: 0.904837418 | AF18: 0.003136530852 | AG18: 0.07336730363 | AH18: 0.9200444146 | AI18: 0.006588281736 | AJ18: 1
A19: =Calc_TransProfile!A42 -> 2030 | B19: =Calc_TransProfile!H42 -> 108.1318406 | C19: =Calc_TransProfile!G42 -> 93.93065936 | D19: =Calc_TransProfile!I42 -> 3.563993822 | E19: =Calc_TransProfile!J42 -> 7.739817608 | F19: 104.5678468 | G19: 86.19084175 | H19: =Calc_TransProfile!L42 -> 935.1875 | J19: =Calc_TransProfile!P42 -> 3312385203 | K19: =Calc_TransProfile!M42 -> 1081.318406 | L19: =Calc_TransProfile!N42 -> 1127.167912 | N19: 3.264470586e-08 | O19: 2.835740821e-08 | P19: 0.003295970734 | Q19: 0.006866605697 | R19: 0.09670402927 | S19: 0.07646672764 | T19: 2.823305391e-07 | V19: 3.433326531e-07 | W19: 0.08333333333 | X19: 0.1 | Z19: 3.264470026e-08 | AA19: 2.835740335e-08 | AB19: 0.9999996567 | AC19: 2.823304906e-07 | AD19: 0.09202605111 | AE19: 0.904837418 | AF19: 0.003136530852 | AG19: 0.07336730363 | AH19: 0.9200444146 | AI19: 0.006588281736 | AJ19: 1
A20: =Calc_TransProfile!A43 -> 2031 | B20: =Calc_TransProfile!H43 -> 102.6997047 | C20: =Calc_TransProfile!G43 -> 99.36279533 | D20: =Calc_TransProfile!I43 -> 3.38495221 | E20: =Calc_TransProfile!J43 -> 8.187421637 | F20: 99.31475246 | G20: 91.17537369 | H20: =Calc_TransProfile!L43 -> 935.1875 | J20: =Calc_TransProfile!P43 -> 3312385143 | K20: =Calc_TransProfile!M43 -> 1026.997047 | L20: =Calc_TransProfile!N43 -> 1192.353544 | N20: 3.100475948e-08 | O20: 2.999735569e-08 | P20: 0.003295970734 | Q20: 0.006866605697 | R20: 0.09670402927 | S20: 0.07646672764 | T20: 2.823305442e-07 | V20: 3.433326593e-07 | W20: 0.08333333333 | X20: 0.1 | Z20: 3.100475416e-08 | AA20: 2.999735055e-08 | AB20: 0.9999996567 | AC20: 2.823304958e-07 | AD20: 0.09202605111 | AE20: 0.904837418 | AF20: 0.003136530852 | AG20: 0.07336730363 | AH20: 0.9200444146 | AI20: 0.006588281736 | AJ20: 1
A21: =Calc_TransProfile!A44 -> 2032 | B21: =Calc_TransProfile!H44 -> 97.2675687 | C21: =Calc_TransProfile!G44 -> 104.7949313 | D21: =Calc_TransProfile!I44 -> 3.205910599 | E21: =Calc_TransProfile!J44 -> 8.635025667 | F21: 94.06165811 | G21: 96.15990563 | H21: =Calc_TransProfile!L44 -> 935.1875 | J21: =Calc_TransProfile!P44 -> 3312385083 | K21: =Calc_TransProfile!M44 -> 972.675687 | L21: =Calc_TransProfile!N44 -> 1257.539176 | N21: 2.936481304e-08 | O21: 3.163730323e-08 | P21: 0.003295970734 | Q21: 0.006866605697 | R21: 0.09670402927 | S21: 0.07646672764 | T21: 2.823305493e-07 | V21: 3.433326656e-07 | W21: 0.08333333333 | X21: 0.1 | Z21: 2.9364808e-08 | AA21: 3.163729779e-08 | AB21: 0.9999996567 | AC21: 2.823305008e-07 | AD21: 0.09202605111 | AE21: 0.904837418 | AF21: 0.003136530852 | AG21: 0.07336730363 | AH21: 0.9200444146 | AI21: 0.006588281736 | AJ21: 1
A22: =Calc_TransProfile!A45 -> 2033 | B22: =Calc_TransProfile!H45 -> 91.83543274 | C22: =Calc_TransProfile!G45 -> 110.2270673 | D22: =Calc_TransProfile!I45 -> 3.026868987 | E22: =Calc_TransProfile!J45 -> 9.082629696 | F22: 88.80856375 | G22: 101.1444376 | H22: =Calc_TransProfile!L45 -> 935.1875 | J22: =Calc_TransProfile!P45 -> 3312385023 | K22: =Calc_TransProfile!M45 -> 918.3543274 | L22: =Calc_TransProfile!N45 -> 1322.724807 | N22: 2.772486655e-08 | O22: 3.327725083e-08 | P22: 0.003295970734 | Q22: 0.006866605697 | R22: 0.09670402927 | S22: 0.07646672764 | T22: 2.823305544e-07 | V22: 3.433326718e-07 | W22: 0.08333333333 | X22: 0.1 | Z22: 2.772486179e-08 | AA22: 3.327724511e-08 | AB22: 0.9999996567 | AC22: 2.823305059e-07 | AD22: 0.09202605111 | AE22: 0.904837418 | AF22: 0.003136530852 | AG22: 0.07336730363 | AH22: 0.9200444146 | AI22: 0.006588281736 | AJ22: 1
A23: =Calc_TransProfile!A46 -> 2034 | B23: =Calc_TransProfile!H46 -> 86.40329677 | C23: =Calc_TransProfile!G46 -> 115.6592032 | D23: =Calc_TransProfile!I46 -> 2.847827375 | E23: =Calc_TransProfile!J46 -> 9.530233726 | F23: 83.55546939 | G23: 106.1289695 | H23: =Calc_TransProfile!L46 -> 935.1875 | J23: =Calc_TransProfile!P46 -> 3312384964 | K23: =Calc_TransProfile!M46 -> 864.0329677 | L23: =Calc_TransProfile!N46 -> 1387.910439 | N23: 2.608491999e-08 | O23: 3.491719849e-08 | P23: 0.003295970734 | Q23: 0.006866605697 | R23: 0.09670402927 | S23: 0.07646672764 | T23: 2.823305595e-07 | V23: 3.43332678e-07 | W23: 0.08333333333 | X23: 0.1 | Z23: 2.608491551e-08 | AA23: 3.491719249e-08 | AB23: 0.9999996567 | AC23: 2.82330511e-07 | AD23: 0.09202605111 | AE23: 0.904837418 | AF23: 0.003136530852 | AG23: 0.07336730363 | AH23: 0.9200444146 | AI23: 0.006588281736 | AJ23: 1
A24: =Calc_TransProfile!A47 -> 2035 | B24: =Calc_TransProfile!H47 -> 80.9711608 | C24: =Calc_TransProfile!G47 -> 121.0913392 | D24: =Calc_TransProfile!I47 -> 2.668785763 | E24: =Calc_TransProfile!J47 -> 9.977837755 | F24: 78.30237503 | G24: 111.1135014 | H24: =Calc_TransProfile!L47 -> 935.1875 | J24: =Calc_TransProfile!P47 -> 3312384904 | K24: =Calc_TransProfile!M47 -> 809.711608 | L24: =Calc_TransProfile!N47 -> 1453.09607 | N24: 2.444497338e-08 | O24: 3.65571462e-08 | P24: 0.003295970734 | Q24: 0.006866605697 | R24: 0.09670402927 | S24: 0.07646672764 | T24: 2.823305646e-07 | V24: 3.433326842e-07 | W24: 0.08333333333 | X24: 0.1 | Z24: 2.444496918e-08 | AA24: 3.655713992e-08 | AB24: 0.9999996567 | AC24: 2.823305161e-07 | AD24: 0.09202605111 | AE24: 0.904837418 | AF24: 0.003136530852 | AG24: 0.07336730363 | AH24: 0.9200444146 | AI24: 0.006588281736 | AJ24: 1
A25: =Calc_TransProfile!A48 -> 2036 | B25: =Calc_TransProfile!H48 -> 75.53902483 | C25: =Calc_TransProfile!G48 -> 126.5234752 | D25: =Calc_TransProfile!I48 -> 2.489744151 | E25: =Calc_TransProfile!J48 -> 10.42544178 | F25: 73.04928068 | G25: 116.0980334 | H25: =Calc_TransProfile!L48 -> 935.1875 | J25: =Calc_TransProfile!P48 -> 3312384844 | K25: =Calc_TransProfile!M48 -> 755.3902483 | L25: =Calc_TransProfile!N48 -> 1518.281702 | N25: 2.280502671e-08 | O25: 3.819709398e-08 | P25: 0.003295970734 | Q25: 0.006866605697 | R25: 0.09670402927 | S25: 0.07646672764 | T25: 2.823305697e-07 | V25: 3.433326904e-07 | W25: 0.08333333333 | X25: 0.1 | Z25: 2.280502279e-08 | AA25: 3.819708742e-08 | AB25: 0.9999996567 | AC25: 2.823305212e-07 | AD25: 0.09202605111 | AE25: 0.904837418 | AF25: 0.003136530852 | AG25: 0.07336730363 | AH25: 0.9200444146 | AI25: 0.006588281736 | AJ25: 1
A26: =Calc_TransProfile!A49 -> 2037 | B26: =Calc_TransProfile!H49 -> 70.10688886 | C26: =Calc_TransProfile!G49 -> 131.9556111 | D26: =Calc_TransProfile!I49 -> 2.31070254 | E26: =Calc_TransProfile!J49 -> 10.87304581 | F26: 67.79618632 | G26: 121.0825653 | H26: =Calc_TransProfile!L49 -> 935.1875 | J26: =Calc_TransProfile!P49 -> 3312384784 | K26: =Calc_TransProfile!M49 -> 701.0688886 | L26: =Calc_TransProfile!N49 -> 1583.467334 | N26: 2.116507997e-08 | O26: 3.983704181e-08 | P26: 0.003295970734 | Q26: 0.006866605697 | R26: 0.09670402927 | S26: 0.07646672764 | T26: 2.823305748e-07 | V26: 3.433326966e-07 | W26: 0.08333333333 | X26: 0.1 | Z26: 2.116507634e-08 | AA26: 3.983703498e-08 | AB26: 0.9999996567 | AC26: 2.823305263e-07 | AD26: 0.09202605111 | AE26: 0.904837418 | AF26: 0.003136530852 | AG26: 0.07336730363 | AH26: 0.9200444146 | AI26: 0.006588281736 | AJ26: 1
A27: =Calc_TransProfile!A50 -> 2038 | B27: =Calc_TransProfile!H50 -> 64.67475289 | C27: =Calc_TransProfile!G50 -> 137.3877471 | D27: =Calc_TransProfile!I50 -> 2.131660928 | E27: =Calc_TransProfile!J50 -> 11.32064984 | F27: 62.54309196 | G27: 126.0670973 | H27: =Calc_TransProfile!L50 -> 935.1875 | J27: =Calc_TransProfile!P50 -> 3312384724 | K27: =Calc_TransProfile!M50 -> 646.7475289 | L27: =Calc_TransProfile!N50 -> 1648.652965 | N27: 1.952513318e-08 | O27: 4.147698971e-08 | P27: 0.003295970734 | Q27: 0.006866605697 | R27: 0.09670402927 | S27: 0.07646672764 | T27: 2.823305799e-07 | V27: 3.433327028e-07 | W27: 0.08333333333 | X27: 0.1 | Z27: 1.952512983e-08 | AA27: 4.147698259e-08 | AB27: 0.9999996567 | AC27: 2.823305314e-07 | AD27: 0.09202605111 | AE27: 0.904837418 | AF27: 0.003136530852 | AG27: 0.07336730363 | AH27: 0.9200444146 | AI27: 0.006588281736 | AJ27: 1
A28: =Calc_TransProfile!A51 -> 2039 | B28: =Calc_TransProfile!H51 -> 59.24261692 | C28: =Calc_TransProfile!G51 -> 142.8198831 | D28: =Calc_TransProfile!I51 -> 1.952619316 | E28: =Calc_TransProfile!J51 -> 11.76825387 | F28: 57.28999761 | G28: 131.0516292 | H28: =Calc_TransProfile!L51 -> 935.1875 | J28: =Calc_TransProfile!P51 -> 3312384664 | K28: =Calc_TransProfile!M51 -> 592.4261692 | L28: =Calc_TransProfile!N51 -> 1713.838597 | N28: 1.788518633e-08 | O28: 4.311693766e-08 | P28: 0.003295970734 | Q28: 0.006866605697 | R28: 0.09670402927 | S28: 0.07646672764 | T28: 2.82330585e-07 | V28: 3.43332709e-07 | W28: 0.08333333333 | X28: 0.1 | Z28: 1.788518326e-08 | AA28: 4.311693026e-08 | AB28: 0.9999996567 | AC28: 2.823305366e-07 | AD28: 0.09202605111 | AE28: 0.904837418 | AF28: 0.003136530852 | AG28: 0.07336730363 | AH28: 0.9200444146 | AI28: 0.006588281736 | AJ28: 1
A29: =Calc_TransProfile!A52 -> 2040 | B29: =Calc_TransProfile!H52 -> 53.81048095 | C29: =Calc_TransProfile!G52 -> 148.252019 | D29: =Calc_TransProfile!I52 -> 1.773577704 | E29: =Calc_TransProfile!J52 -> 12.2158579 | F29: 52.03690325 | G29: 136.0361611 | H29: =Calc_TransProfile!L52 -> 935.1875 | J29: =Calc_TransProfile!P52 -> 3312384604 | K29: =Calc_TransProfile!M52 -> 538.1048095 | L29: =Calc_TransProfile!N52 -> 1779.024229 | N29: 1.624523942e-08 | O29: 4.475688567e-08 | P29: 0.003295970734 | Q29: 0.006866605697 | R29: 0.09670402927 | S29: 0.07646672764 | T29: 2.823305901e-07 | V29: 3.433327152e-07 | W29: 0.08333333333 | X29: 0.1 | Z29: 1.624523663e-08 | AA29: 4.4756878e-08 | AB29: 0.9999996567 | AC29: 2.823305417e-07 | AD29: 0.09202605111 | AE29: 0.904837418 | AF29: 0.003136530852 | AG29: 0.07336730363 | AH29: 0.9200444146 | AI29: 0.006588281736 | AJ29: 1
A30: =Calc_TransProfile!A53 -> 2041 | B30: =Calc_TransProfile!H53 -> 48.37834498 | C30: =Calc_TransProfile!G53 -> 153.684155 | D30: =Calc_TransProfile!I53 -> 1.594536092 | E30: =Calc_TransProfile!J53 -> 12.66346193 | F30: 46.78380889 | G30: 141.0206931 | H30: =Calc_TransProfile!L53 -> 935.1875 | J30: =Calc_TransProfile!P53 -> 3312384544 | K30: =Calc_TransProfile!M53 -> 483.7834498 | L30: =Calc_TransProfile!N53 -> 1844.20986 | N30: 1.460529245e-08 | O30: 4.639683375e-08 | P30: 0.003295970734 | Q30: 0.006866605697 | R30: 0.09670402927 | S30: 0.07646672764 | T30: 2.823305952e-07 | V30: 3.433327214e-07 | W30: 0.08333333333 | X30: 0.1 | Z30: 1.460528995e-08 | AA30: 4.639682579e-08 | AB30: 0.9999996567 | AC30: 2.823305468e-07 | AD30: 0.09202605111 | AE30: 0.904837418 | AF30: 0.003136530852 | AG30: 0.07336730363 | AH30: 0.9200444146 | AI30: 0.006588281736 | AJ30: 1
A31: =Calc_TransProfile!A54 -> 2042 | B31: =Calc_TransProfile!H54 -> 42.94620901 | C31: =Calc_TransProfile!G54 -> 159.116291 | D31: =Calc_TransProfile!I54 -> 1.415494481 | E31: =Calc_TransProfile!J54 -> 13.11106596 | F31: 41.53071453 | G31: 146.005225 | H31: =Calc_TransProfile!L54 -> 935.1875 | J31: =Calc_TransProfile!P54 -> 3312384485 | K31: =Calc_TransProfile!M54 -> 429.4620901 | L31: =Calc_TransProfile!N54 -> 1909.395492 | N31: 1.296534542e-08 | O31: 4.803678188e-08 | P31: 0.003295970734 | Q31: 0.006866605697 | R31: 0.09670402927 | S31: 0.07646672764 | T31: 2.823306003e-07 | V31: 3.433327276e-07 | W31: 0.08333333333 | X31: 0.1 | Z31: 1.29653432e-08 | AA31: 4.803677363e-08 | AB31: 0.9999996567 | AC31: 2.823305518e-07 | AD31: 0.09202605111 | AE31: 0.904837418 | AF31: 0.003136530852 | AG31: 0.07336730363 | AH31: 0.9200444146 | AI31: 0.006588281736 | AJ31: 1
A32: =Calc_TransProfile!A55 -> 2043 | B32: =Calc_TransProfile!H55 -> 37.51407305 | C32: =Calc_TransProfile!G55 -> 164.548427 | D32: =Calc_TransProfile!I55 -> 1.236452869 | E32: =Calc_TransProfile!J55 -> 13.55866999 | F32: 36.27762018 | G32: 150.989757 | H32: =Calc_TransProfile!L55 -> 935.1875 | J32: =Calc_TransProfile!P55 -> 3312384425 | K32: =Calc_TransProfile!M55 -> 375.1407305 | L32: =Calc_TransProfile!N55 -> 1974.581123 | N32: 1.132539833e-08 | O32: 4.967673007e-08 | P32: 0.003295970734 | Q32: 0.006866605697 | R32: 0.09670402927 | S32: 0.07646672764 | T32: 2.823306054e-07 | V32: 3.433327338e-07 | W32: 0.08333333333 | X32: 0.1 | Z32: 1.132539639e-08 | AA32: 4.967672154e-08 | AB32: 0.9999996567 | AC32: 2.823305569e-07 | AD32: 0.09202605111 | AE32: 0.904837418 | AF32: 0.003136530852 | AG32: 0.07336730363 | AH32: 0.9200444146 | AI32: 0.006588281736 | AJ32: 1
A33: =Calc_TransProfile!A56 -> 2044 | B33: =Calc_TransProfile!H56 -> 32.08193708 | C33: =Calc_TransProfile!G56 -> 169.9805629 | D33: =Calc_TransProfile!I56 -> 1.057411257 | E33: =Calc_TransProfile!J56 -> 14.00627402 | F33: 31.02452582 | G33: 155.9742889 | H33: =Calc_TransProfile!L56 -> 935.1875 | J33: =Calc_TransProfile!P56 -> 3312384365 | K33: =Calc_TransProfile!M56 -> 320.8193708 | L33: =Calc_TransProfile!N56 -> 2039.766755 | N33: 9.685451187e-09 | O33: 5.131667832e-08 | P33: 0.003295970734 | Q33: 0.006866605697 | R33: 0.09670402927 | S33: 0.07646672764 | T33: 2.823306105e-07 | V33: 3.4333274e-07 | W33: 0.08333333333 | X33: 0.1 | Z33: 9.685449523e-09 | AA33: 5.131666951e-08 | AB33: 0.9999996567 | AC33: 2.82330562e-07 | AD33: 0.09202605111 | AE33: 0.904837418 | AF33: 0.003136530852 | AG33: 0.07336730363 | AH33: 0.9200444146 | AI33: 0.006588281736 | AJ33: 1
A34: =Calc_TransProfile!A57 -> 2045 | B34: =Calc_TransProfile!H57 -> 26.64980111 | C34: =Calc_TransProfile!G57 -> 175.4126989 | D34: =Calc_TransProfile!I57 -> 0.8783696453 | E34: =Calc_TransProfile!J57 -> 14.45387805 | F34: 25.77143146 | G34: 160.9588208 | H34: =Calc_TransProfile!L57 -> 935.1875 | J34: =Calc_TransProfile!P57 -> 3312384305 | K34: =Calc_TransProfile!M57 -> 266.4980111 | L34: =Calc_TransProfile!N57 -> 2104.952387 | N34: 8.04550398e-09 | O34: 5.295662663e-08 | P34: 0.003295970734 | Q34: 0.006866605697 | R34: 0.09670402927 | S34: 0.07646672764 | T34: 2.823306156e-07 | V34: 3.433327462e-07 | W34: 0.08333333333 | X34: 0.1 | Z34: 8.045502598e-09 | AA34: 5.295661754e-08 | AB34: 0.9999996567 | AC34: 2.823305671e-07 | AD34: 0.09202605111 | AE34: 0.904837418 | AF34: 0.003136530852 | AG34: 0.07336730363 | AH34: 0.9200444146 | AI34: 0.006588281736 | AJ34: 1
A35: =Calc_TransProfile!A58 -> 2046 | B35: =Calc_TransProfile!H58 -> 21.21766514 | C35: =Calc_TransProfile!G58 -> 180.8448349 | D35: =Calc_TransProfile!I58 -> 0.6993280335 | E35: =Calc_TransProfile!J58 -> 14.90148208 | F35: 20.51833711 | G35: 165.9433528 | H35: =Calc_TransProfile!L58 -> 935.1875 | J35: =Calc_TransProfile!P58 -> 3312384245 | K35: =Calc_TransProfile!M58 -> 212.1766514 | L35: =Calc_TransProfile!N58 -> 2170.138018 | N35: 6.405556714e-09 | O35: 5.4596575e-08 | P35: 0.003295970734 | Q35: 0.006866605697 | R35: 0.09670402927 | S35: 0.07646672764 | T35: 2.823306207e-07 | V35: 3.433327524e-07 | W35: 0.08333333333 | X35: 0.1 | Z35: 6.405555614e-09 | AA35: 5.459656563e-08 | AB35: 0.9999996567 | AC35: 2.823305723e-07 | AD35: 0.09202605111 | AE35: 0.904837418 | AF35: 0.003136530852 | AG35: 0.07336730363 | AH35: 0.9200444146 | AI35: 0.006588281736 | AJ35: 1
A36: =Calc_TransProfile!A59 -> 2047 | B36: =Calc_TransProfile!H59 -> 15.78552917 | C36: =Calc_TransProfile!G59 -> 186.2769708 | D36: =Calc_TransProfile!I59 -> 0.5202864217 | E36: =Calc_TransProfile!J59 -> 15.34908611 | F36: 15.26524275 | G36: 170.9278847 | H36: =Calc_TransProfile!L59 -> 935.1875 | J36: =Calc_TransProfile!P59 -> 3312384185 | K36: =Calc_TransProfile!M59 -> 157.8552917 | L36: =Calc_TransProfile!N59 -> 2235.32365 | N36: 4.765609388e-09 | O36: 5.623652343e-08 | P36: 0.003295970734 | Q36: 0.006866605697 | R36: 0.09670402927 | S36: 0.07646672764 | T36: 2.823306258e-07 | V36: 3.433327586e-07 | W36: 0.08333333333 | X36: 0.1 | Z36: 4.76560857e-09 | AA36: 5.623651377e-08 | AB36: 0.9999996567 | AC36: 2.823305774e-07 | AD36: 0.09202605111 | AE36: 0.904837418 | AF36: 0.003136530852 | AG36: 0.07336730363 | AH36: 0.9200444146 | AI36: 0.006588281736 | AJ36: 1
A37: =Calc_TransProfile!A60 -> 2048 | B37: =Calc_TransProfile!H60 -> 10.3533932 | C37: =Calc_TransProfile!G60 -> 191.7091068 | D37: =Calc_TransProfile!I60 -> 0.3412448099 | E37: =Calc_TransProfile!J60 -> 15.79669014 | F37: 10.01214839 | G37: 175.9124167 | H37: =Calc_TransProfile!L60 -> 935.1875 | J37: =Calc_TransProfile!P60 -> 3312384125 | K37: =Calc_TransProfile!M60 -> 103.533932 | L37: =Calc_TransProfile!N60 -> 2300.509282 | N37: 3.125662003e-09 | O37: 5.787647191e-08 | P37: 0.003295970734 | Q37: 0.006866605697 | R37: 0.09670402927 | S37: 0.07646672764 | T37: 2.823306309e-07 | V37: 3.433327649e-07 | W37: 0.08333333333 | X37: 0.1 | Z37: 3.125661467e-09 | AA37: 5.787646198e-08 | AB37: 0.9999996567 | AC37: 2.823305825e-07 | AD37: 0.09202605111 | AE37: 0.904837418 | AF37: 0.003136530852 | AG37: 0.07336730363 | AH37: 0.9200444146 | AI37: 0.006588281736 | AJ37: 1
A38: =Calc_TransProfile!A61 -> 2049 | B38: =Calc_TransProfile!H61 -> 4.921257232 | C38: =Calc_TransProfile!G61 -> 197.1412428 | D38: =Calc_TransProfile!I61 -> 0.1622031981 | E38: =Calc_TransProfile!J61 -> 16.24429417 | F38: 4.759054034 | G38: 180.8969486 | H38: =Calc_TransProfile!L61 -> 935.1875 | J38: =Calc_TransProfile!P61 -> 3312384065 | K38: =Calc_TransProfile!M61 -> 49.21257232 | L38: =Calc_TransProfile!N61 -> 2365.694913 | N38: 1.485714559e-09 | O38: 5.951642046e-08 | P38: 0.003295970734 | Q38: 0.006866605697 | R38: 0.09670402927 | S38: 0.07646672764 | T38: 2.82330636e-07 | V38: 3.433327711e-07 | W38: 0.08333333333 | X38: 0.1 | Z38: 1.485714304e-09 | AA38: 5.951641025e-08 | AB38: 0.9999996567 | AC38: 2.823305876e-07 | AD38: 0.09202605111 | AE38: 0.904837418 | AF38: 0.003136530852 | AG38: 0.07336730363 | AH38: 0.9200444146 | AI38: 0.006588281736 | AJ38: 1
A39: =Calc_TransProfile!A62 -> 2050 | B39: =Calc_TransProfile!H62 -> 0 | C39: =Calc_TransProfile!G62 -> 202.0625 | D39: =Calc_TransProfile!I62 -> 0 | E39: =Calc_TransProfile!J62 -> 16.64980216 | F39: 0 | G39: 185.4126978 | H39: =Calc_TransProfile!L62 -> 935.1875 | J39: =Calc_TransProfile!P62 -> 3312384011 | K39: =Calc_TransProfile!M62 -> 0 | L39: =Calc_TransProfile!N62 -> 2424.75 | N39: 0 | O39: 6.100213602e-08 | Q39: 0.006866605697 | S39: 0.07646672764 | T39: 2.823306407e-07 | V39: 3.433327767e-07 | W39: 0.08333333333 | Z39: 0 | AA39: 6.100212554e-08 | AB39: 0.9999996567 | AC39: 2.823305922e-07 | AG39: 0.07336730363 | AH39: 0.9200444146 | AI39: 0.006588281736 | AJ39: 1

Sheet Calc_Matrix
A1: Matrix Calculations
A2: This worksheet calculates the 1 year transition matrix based on the user inputs and data
A4: =Input_Scen!A14 -> Days in a year | B4: =Input_Scen!B14 -> 365
A6: Daily Transition Probability Matrix in Year X | H6: Transition Probability Matrix For Year X
A8: Year | B8: =Input_Scen!B13 -> 2017 | I8: Qx | J8: =L12 -> 0.0001038800951 | K8: Pr(D[365] | H[0] )
A9: Match Year | B9: =MATCH(B8,[1]TransProb!$A$12:$A$45) -> 1
B11: H | C11: S | D11: R | E11: D | I11: H | J11: S | K11: R | L11: D
A12: H | B12: =IFERROR(INDEX(Calc_TransProb!$Z$6:$AJ$39,B9,MATCH(A12&B11,Calc_TransProb!$Z$5:$AJ$5,0)),0) -> 0.9999996567 | C12: =IFERROR(INDEX(Calc_TransProb!$Z$6:$AJ$39,B9,MATCH(A12&C11,Calc_TransProb!$Z$5:$AJ$5,0)),0) -> 5.39639941e-08 | D12: =IFERROR(INDEX(Calc_TransProb!$Z$6:$AJ$39,B9,MATCH(A12&D11,Calc_TransProb!$Z$5:$AJ$5,0)),0) -> 7.038095164e-09 | E12: =IFERROR(INDEX(Calc_TransProb!$Z$6:$AJ$39,B9,MATCH(A12&E11,Calc_TransProb!$Z$5:$AJ$5,0)),0) -> 2.823304243e-07 | F12: =SUM(B12:E12) -> 1 | H12: H | I12: =powermatrix(B12:E15,$B$4) -> 0.9998954649 | J12: 5.670139804e-07 | K12: 8.801617124e-08 | L12: 0.0001038800951 | M12: =SUM(I12:L12) -> 1
A13: S | B13: =IFERROR(INDEX(Calc_TransProb!$Z$6:$AJ$39,B9,MATCH(A13&B11,Calc_TransProb!$Z$5:$AJ$5,0)),0) -> 0.09202605111 | C13: =IFERROR(INDEX(Calc_TransProb!$Z$6:$AJ$39,B9,MATCH(A13&C11,Calc_TransProb!$Z$5:$AJ$5,0)),0) -> 0.904837418 | D13: =IFERROR(INDEX(Calc_TransProb!$Z$6:$AJ$39,B9,MATCH(A13&D11,Calc_TransProb!$Z$5:$AJ$5,0)),0) -> 0 | E13: =IFERROR(INDEX(Calc_TransProb!$Z$6:$AJ$39,B9,MATCH(A13&E11,Calc_TransProb!$Z$5:$AJ$5,0)),0) -> 0.003136530852 | F13: =SUM(B13:E13) -> 1 | H13: S | I13: 0.9669420957 | J13: 5.483270061e-07 | K13: 8.511543863e-08 | L13: 0.03305727087 | M13: =SUM(I13:L13) -> 1
A14: R | B14: =IFERROR(INDEX(Calc_TransProb!$Z$6:$AJ$39,B9,MATCH(A14&B11,Calc_TransProb!$Z$5:$AJ$5,0)),0) -> 0.07336730363 | C14: =IFERROR(INDEX(Calc_TransProb!$Z$6:$AJ$39,B9,MATCH(A14&C11,Calc_TransProb!$Z$5:$AJ$5,0)),0) -> 0 | D14: =IFERROR(INDEX(Calc_TransProb!$Z$6:$AJ$39,B9,MATCH(A14&D11,Calc_TransProb!$Z$5:$AJ$5,0)),0) -> 0.9200444146 | E14: =IFERROR(INDEX(Calc_TransProb!$Z$6:$AJ$39,B9,MATCH(A14&E11,Calc_TransProb!$Z$5:$AJ$5,0)),0) -> 0.006588281736 | F14: =SUM(B14:E14) -> 1 | H14: R | I14: 0.917508077 | J14: 5.202942959e-07 | K14: 8.076405238e-08 | L14: 0.08249132194 | M14: =SUM(I14:L14) -> 1
A15: D | B15: =IFERROR(INDEX(Calc_TransProb!$Z$6:$AJ$39,B9,MATCH(A15&B11,Calc_TransProb!$Z$5:$AJ$5,0)),0) -> 0 | C15: =IFERROR(INDEX(Calc_TransProb!$Z$6:$AJ$39,B9,MATCH(A15&C11,Calc_TransProb!$Z$5:$AJ$5,0)),0) -> 0 | D15: =IFERROR(INDEX(Calc_TransProb!$Z$6:$AJ$39,B9,MATCH(A15&D11,Calc_TransProb!$Z$5:$AJ$5,0)),0) -> 0 | E15: =IFERROR(INDEX(Calc_TransProb!$Z$6:$AJ$39,B9,MATCH(A15&E11,Calc_TransProb!$Z$5:$AJ$5,0)),0) -> 1 | F15: =SUM(B15:E15) -> 1 | H15: D | I15: 0 | J15: 0 | K15: 0 | L15: 1 | M15: =SUM(I15:L15) -> 1
A17: Year | B17: =B8+1 -> 2018 | I17: Qx | J17: =L21 -> 0.0001039085652 | K17: Pr(D[365] | H[0] )
A18: Match Year | B18: =MATCH(B17,[1]TransProb!$A$12:$A$45) -> 2
B20: H | C20: S | D20: R | E20: D | I20: H | J20: S | K20: R | L20: D
A21: H | B21: =IFERROR(INDEX(Calc_TransProb!$Z$6:$AJ$39,B18,MATCH(A21&B20,Calc_TransProb!$Z$5:$AJ$5,0)),0) -> 0.9999996567 | C21: =IFERROR(INDEX(Calc_TransProb!$Z$6:$AJ$39,B18,MATCH(A21&C20,Calc_TransProb!$Z$5:$AJ$5,0)),0) -> 5.232404878e-08 | D21: =IFERROR(INDEX(Calc_TransProb!$Z$6:$AJ$39,B18,MATCH(A21&D20,Calc_TransProb!$Z$5:$AJ$5,0)),0) -> 8.678041592e-09 | E21: =IFERROR(INDEX(Calc_TransProb!$Z$6:$AJ$39,B18,MATCH(A21&E20,Calc_TransProb!$Z$5:$AJ$5,0)),0) -> 2.823304294e-07 | F21: =SUM(B21:E21) -> 1 | H21: H | I21: =powermatrix(B21:E24,$B$4) -> 0.9998954331 | J21: 5.497826235e-07 | K21: 1.085248144e-07 | L21: 0.0001039085652 | M21: =SUM(I21:L21) -> 1
A22: S | B22: =IFERROR(INDEX(Calc_TransProb!$Z$6:$AJ$39,B18,MATCH(A22&B20,Calc_TransProb!$Z$5:$AJ$5,0)),0) -> 0.09202605111 | C22: =IFERROR(INDEX(Calc_TransProb!$Z$6:$AJ$39,B18,MATCH(A22&C20,Calc_TransProb!$Z$5:$AJ$5,0)),0) -> 0.904837418 | D22: =IFERROR(INDEX(Calc_TransProb!$Z$6:$AJ$39,B18,MATCH(A22&D20,Calc_TransProb!$Z$5:$AJ$5,0)),0) -> 0 | E22: =IFERROR(INDEX(Calc_TransProb!$Z$6:$AJ$39,B18,MATCH(A22&E20,Calc_TransProb!$Z$5:$AJ$5,0)),0) -> 0.003136530852 | F22: =SUM(B22:E22) -> 1 | H22: S | I22: 0.9669420658 | J22: 5.316635403e-07 | K22: 1.049481823e-07 | L22: 0.03305729758 | M22: =SUM(I22:L22) -> 1
A23: R | B23: =IFERROR(INDEX(Calc_TransProb!$Z$6:$AJ$39,B18,MATCH(A23&B20,Calc_TransProb!$Z$5:$AJ$5,0)),0) -> 0.07336730363 | C23: =IFERROR(INDEX(Calc_TransProb!$Z$6:$AJ$39,B18,MATCH(A23&C20,Calc_TransProb!$Z$5:$AJ$5,0)),0) -> 0 | D23: =IFERROR(INDEX(Calc_TransProb!$Z$6:$AJ$39,B18,MATCH(A23&D20,Calc_TransProb!$Z$5:$AJ$5,0)),0) -> 0.9200444146 | E23: =IFERROR(INDEX(Calc_TransProb!$Z$6:$AJ$39,B18,MATCH(A23&E20,Calc_TransProb!$Z$5:$AJ$5,0)),0) -> 0.006588281736 | F23: =SUM(B23:E23) -> 1 | H23: R | I23: 0.9175080488 | J23: 5.044827344e-07 | K23: 9.958286544e-08 | L23: 0.08249134714 | M23: =SUM(I23:L23) -> 1
A24: D | B24: =IFERROR(INDEX(Calc_TransProb!$Z$6:$AJ$39,B18,MATCH(A24&B20,Calc_TransProb!$Z$5:$AJ$5,0)),0) -> 0 | C24: =IFERROR(INDEX(Calc_TransProb!$Z$6:$AJ$39,B18,MATCH(A24&C20,Calc_TransProb!$Z$5:$AJ$5,0)),0) -> 0 | D24: =IFERROR(INDEX(Calc_TransProb!$Z$6:$AJ$39,B18,MATCH(A24&D20,Calc_TransProb!$Z$5:$AJ$5,0)),0) -> 0 | E24: =IFERROR(INDEX(Calc_TransProb!$Z$6:$AJ$39,B18,MATCH(A24&E20,Calc_TransProb!$Z$5:$AJ$5,0)),0) -> 1 | F24: =SUM(B24:E24) -> 1 | H24: D | I24: 0 | J24: 0 | K24: 0 | L24: 1 | M24: =SUM(I24:L24) -> 1
A26: Year | B26: =B17+1 -> 2019 | I26: Qx | J26: =L30 -> 0.0001039370354 | K26: Pr(D[365] | H[0] )
A27: Match Year | B27: =MATCH(B26,[1]TransProb!$A$12:$A$45) -> 3
B29: H | C29: S | D29: R | E29: D | I29: H | J29: S | K29: R | L29: D
A30: H | B30: =IFERROR(INDEX(Calc_TransProb!$Z$6:$AJ$39,B27,MATCH(A30&B29,Calc_TransProb!$Z$5:$AJ$5,0)),0) -> 0.9999996567 | C30: =IFERROR(INDEX(Calc_TransProb!$Z$6:$AJ$39,B27,MATCH(A30&C29,Calc_TransProb!$Z$5:$AJ$5,0)),0) -> 5.068410339e-08 | D30: =IFERROR(INDEX(Calc_TransProb!$Z$6:$AJ$39,B27,MATCH(A30&D29,Calc_TransProb!$Z$5:$AJ$5,0)),0) -> 1.031798808e-08 | E30: =IFERROR(INDEX(Calc_TransProb!$Z$6:$AJ$39,B27,MATCH(A30&E29,Calc_TransProb!$Z$5:$AJ$5,0)),0) -> 2.823304345e-07 | F30: =SUM(B30:E30) -> 1 | H30: H | I30: =powermatrix(B30:E33,$B$4) -> 0.9998954014 | J30: 5.325512671e-07 | K30: 1.29033457e-07 | L30: 0.0001039370354 | M30: =SUM(I30:L30) -> 1
A31: S | B31: =IFERROR(INDEX(Calc_TransProb!$Z$6:$AJ$39,B27,MATCH(A31&B29,Calc_TransProb!$Z$5:$AJ$5,0)),0) -> 0.09202605111 | C31: =IFERROR(INDEX(Calc_TransProb!$Z$6:$AJ$39,B27,MATCH(A31&C29,Calc_TransProb!$Z$5:$AJ$5,0)),0) -> 0.904837418 | D31: =IFERROR(INDEX(Calc_TransProb!$Z$6:$AJ$39,B27,MATCH(A31&D29,Calc_TransProb!$Z$5:$AJ$5,0)),0) -> 0 | E31: =IFERROR(INDEX(Calc_TransProb!$Z$6:$AJ$39,B27,MATCH(A31&E29,Calc_TransProb!$Z$5:$AJ$5,0)),0) -> 0.003136530852 | F31: =SUM(B31:E31) -> 1 | H31: S | I31: 0.9669420359 | J31: 5.150000749e-07 | K31: 1.247809255e-07 | L31: 0.03305732429 | M31: =SUM(I31:L31) -> 1
A32: R | B32: =IFERROR(INDEX(Calc_TransProb!$Z$6:$AJ$39,B27,MATCH(A32&B29,Calc_TransProb!$Z$5:$AJ$5,0)),0) -> 0.07336730363 | C32: =IFERROR(INDEX(Calc_TransProb!$Z$6:$AJ$39,B27,MATCH(A32&C29,Calc_TransProb!$Z$5:$AJ$5,0)),0) -> 0 | D32: =IFERROR(INDEX(Calc_TransProb!$Z$6:$AJ$39,B27,MATCH(A32&D29,Calc_TransProb!$Z$5:$AJ$5,0)),0) -> 0.9200444146 | E32: =IFERROR(INDEX(Calc_TransProb!$Z$6:$AJ$39,B27,MATCH(A32&E29,Calc_TransProb!$Z$5:$AJ$5,0)),0) -> 0.006588281736 | F32: =SUM(B32:E32) -> 1 | H32: R | I32: 0.9175080206 | J32: 4.886711733e-07 | K32: 1.184016781e-07 | L32: 0.08249137233 | M32: =SUM(I32:L32) -> 1
A33: D | B33: =IFERROR(INDEX(Calc_TransProb!$Z$6:$AJ$39,B27,MATCH(A33&B29,Calc_TransProb!$Z$5:$AJ$5,0)),0) -> 0 | C33: =IFERROR(INDEX(Calc_TransProb!$Z$6:$AJ$39,B27,MATCH(A33&C29,Calc_TransProb!$Z$5:$AJ$5,0)),0) -> 0 | D33: =IFERROR(INDEX(Calc_TransProb!$Z$6:$AJ$39,B27,MATCH(A33&D29,Calc_TransProb!$Z$5:$AJ$5,0)),0) -> 0 | E33: =IFERROR(INDEX(Calc_TransProb!$Z$6:$AJ$39,B27,MATCH(A33&E29,Calc_TransProb!$Z$5:$AJ$5,0)),0) -> 1 | F33: =SUM(B33:E33) -> 1 | H33: D | I33: 0 | J33: 0 | K33: 0 | L33: 1 | M33: =SUM(I33:L33) -> 1
A35: Year | B35: =B26+1 -> 2020 | I35: Qx | J35: =L39 -> 0.0001039655056 | K35: Pr(D[365] | H[0] )
A36: Match Year | B36: =MATCH(B35,[1]TransProb!$A$12:$A$45) -> 4
B38: H | C38: S | D38: R | E38: D | I38: H | J38: S | K38: R | L38: D
A39: H | B39: =IFERROR(INDEX(Calc_TransProb!$Z$6:$AJ$39,B36,MATCH(A39&B38,Calc_TransProb!$Z$5:$AJ$5,0)),0) -> 0.9999996567 | C39: =IFERROR(INDEX(Calc_TransProb!$Z$6:$AJ$39,B36,MATCH(A39&C38,Calc_TransProb!$Z$5:$AJ$5,0)),0) -> 4.904415795e-08 | D39: =IFERROR(INDEX(Calc_TransProb!$Z$6:$AJ$39,B36,MATCH(A39&D38,Calc_TransProb!$Z$5:$AJ$5,0)),0) -> 1.195793463e-08 | E39: =IFERROR(INDEX(Calc_TransProb!$Z$6:$AJ$39,B36,MATCH(A39&E38,Calc_TransProb!$Z$5:$AJ$5,0)),0) -> 2.823304396e-07 | F39: =SUM(B39:E39) -> 1 | H39: H | I39: =powermatrix(B39:E42,$B$4) -> 0.9998953696 | J39: 5.153199111e-07 | K39: 1.495420991e-07 | L39: 0.0001039655056 | M39: =SUM(I39:L39) -> 1
A40: S | B40: =IFERROR(INDEX(Calc_TransProb!$Z$6:$AJ$39,B36,MATCH(A40&B38,Calc_TransProb!$Z$5:$AJ$5,0)),0) -> 0.09202605111 | C40: =IFERROR(INDEX(Calc_TransProb!$Z$6:$AJ$39,B36,MATCH(A40&C38,Calc_TransProb!$Z$5:$AJ$5,0)),0) -> 0.904837418 | D40: =IFERROR(INDEX(Calc_TransProb!$Z$6:$AJ$39,B36,MATCH(A40&D38,Calc_TransProb!$Z$5:$AJ$5,0)),0) -> 0 | E40: =IFERROR(INDEX(Calc_TransProb!$Z$6:$AJ$39,B36,MATCH(A40&E38,Calc_TransProb!$Z$5:$AJ$5,0)),0) -> 0.003136530852 | F40: =SUM(B40:E40) -> 1 | H40: S | I40: 0.9669420061 | J40: 4.983366099e-07 | K40: 1.446136683e-07 | L40: 0.033057351 | M40: =SUM(I40:L40) -> 1
A41: R | B41: =IFERROR(INDEX(Calc_TransProb!$Z$6:$AJ$39,B36,MATCH(A41&B38,Calc_TransProb!$Z$5:$AJ$5,0)),0) -> 0.07336730363 | C41: =IFERROR(INDEX(Calc_TransProb!$Z$6:$AJ$39,B36,MATCH(A41&C38,Calc_TransProb!$Z$5:$AJ$5,0)),0) -> 0 | D41: =IFERROR(INDEX(Calc_TransProb!$Z$6:$AJ$39,B36,MATCH(A41&D38,Calc_TransProb!$Z$5:$AJ$5,0)),0) -> 0.9200444146 | E41: =IFERROR(INDEX(Calc_TransProb!$Z$6:$AJ$39,B36,MATCH(A41&E38,Calc_TransProb!$Z$5:$AJ$5,0)),0) -> 0.006588281736 | F41: 1 | H41: R | I41: 0.9175079924 | J41: 4.728596125e-07 | K41: 1.372204902e-07 | L41: 0.08249139753 | M41: =SUM(I41:L41) -> 1
A42: D | B42: =IFERROR(INDEX(Calc_TransProb!$Z$6:$AJ$39,B36,MATCH(A42&B38,Calc_TransProb!$Z$5:$AJ$5,0)),0) -> 0 | C42: =IFERROR(INDEX(Calc_TransProb!$Z$6:$AJ$39,B36,MATCH(A42&C38,Calc_TransProb!$Z$5:$AJ$5,0)),0) -> 0 | D42: =IFERROR(INDEX(Calc_TransProb!$Z$6:$AJ$39,B36,MATCH(A42&D38,Calc_TransProb!$Z$5:$AJ$5,0)),0) -> 0 | E42: =IFERROR(INDEX(Calc_TransProb!$Z$6:$AJ$39,B36,MATCH(A42&E38,Calc_TransProb!$Z$5:$AJ$5,0)),0) -> 1 | F42: 1 | H42: D | I42: 0 | J42: 0 | K42: 0 | L42: 1 | M42: =SUM(I42:L42) -> 1
A44: Year | B44: =B35+1 -> 2021 | I44: Qx | J44: =L48 -> 0.0001039939758 | K44: Pr(D[365] | H[0] )
A45: Match Year | B45: =MATCH(B44,[1]TransProb!$A$12:$A$45) -> 5
B47: H | C47: S | D47: R | E47: D | I47: H | J47: S | K47: R | L47: D
A48: H | B48: =IFERROR(INDEX(Calc_TransProb!$Z$6:$AJ$39,B45,MATCH(A48&B47,Calc_TransProb!$Z$5:$AJ$5,0)),0) -> 0.9999996567 | C48: =IFERROR(INDEX(Calc_TransProb!$Z$6:$AJ$39,B45,MATCH(A48&C47,Calc_TransProb!$Z$5:$AJ$5,0)),0) -> 4.740421245e-08 | D48: =IFERROR(INDEX(Calc_TransProb!$Z$6:$AJ$39,B45,MATCH(A48&D47,Calc_TransProb!$Z$5:$AJ$5,0)),0) -> 1.359788123e-08 | E48: =IFERROR(INDEX(Calc_TransProb!$Z$6:$AJ$39,B45,MATCH(A48&E47,Calc_TransProb!$Z$5:$AJ$5,0)),0) -> 2.823304447e-07 | F48: =SUM(B48:E48) -> 1 | H48: H | I48: =powermatrix(B48:E51,$B$4) -> 0.9998953379 | J48: 4.980885555e-07 | K48: 1.700507407e-07 | L48: 0.0001039939758 | M48: =SUM(I48:L48) -> 1
A49: S | B49: =IFERROR(INDEX(Calc_TransProb!$Z$6:$AJ$39,B45,MATCH(A49&B47,Calc_TransProb!$Z$5:$AJ$5,0)),0) -> 0.09202605111 | C49: =IFERROR(INDEX(Calc_TransProb!$Z$6:$AJ$39,B45,MATCH(A49&C47,Calc_TransProb!$Z$5:$AJ$5,0)),0) -> 0.904837418 | D49: =IFERROR(INDEX(Calc_TransProb!$Z$6:$AJ$39,B45,MATCH(A49&D47,Calc_TransProb!$Z$5:$AJ$5,0)),0) -> 0 | E49: =IFERROR(INDEX(Calc_TransProb!$Z$6:$AJ$39,B45,MATCH(A49&E47,Calc_TransProb!$Z$5:$AJ$5,0)),0) -> 0.003136530852 | F49: =SUM(B49:E49) -> 1 | H49: S | I49: 0.9669419762 | J49: 4.816731452e-07 | K49: 1.644464106e-07 | L49: 0.0330573777 | M49: =SUM(I49:L49) -> 1
A50: R | B50: =IFERROR(INDEX(Calc_TransProb!$Z$6:$AJ$39,B45,MATCH(A50&B47,Calc_TransProb!$Z$5:$AJ$5,0)),0) -> 0.07336730363 | C50: =IFERROR(INDEX(Calc_TransProb!$Z$6:$AJ$39,B45,MATCH(A50&C47,Calc_TransProb!$Z$5:$AJ$5,0)),0) -> 0 | D50: =IFERROR(INDEX(Calc_TransProb!$Z$6:$AJ$39,B45,MATCH(A50&D47,Calc_TransProb!$Z$5:$AJ$5,0)),0) -> 0.9200444146 | E50: =IFERROR(INDEX(Calc_TransProb!$Z$6:$AJ$39,B45,MATCH(A50&E47,Calc_TransProb!$Z$5:$AJ$5,0)),0) -> 0.006588281736 | F50: =SUM(B50:E50) -> 1 | H50: R | I50: 0.9175079642 | J50: 4.570480522e-07 | K50: 1.56039302e-07 | L50: 0.08249142272 | M50: =SUM(I50:L50) -> 1
A51: D | B51: =IFERROR(INDEX(Calc_TransProb!$Z$6:$AJ$39,B45,MATCH(A51&B47,Calc_TransProb!$Z$5:$AJ$5,0)),0) -> 0 | C51: =IFERROR(INDEX(Calc_TransProb!$Z$6:$AJ$39,B45,MATCH(A51&C47,Calc_TransProb!$Z$5:$AJ$5,0)),0) -> 0 | D51: =IFERROR(INDEX(Calc_TransProb!$Z$6:$AJ$39,B45,MATCH(A51&D47,Calc_TransProb!$Z$5:$AJ$5,0)),0) -> 0 | E51: =IFERROR(INDEX(Calc_TransProb!$Z$6:$AJ$39,B45,MATCH(A51&E47,Calc_TransProb!$Z$5:$AJ$5,0)),0) -> 1 | F51: =SUM(B51:E51) -> 1 | H51: D | I51: 0 | J51: 0 | K51: 0 | L51: 1 | M51: =SUM(I51:L51) -> 1
A53: Year | B53: =B44+1 -> 2022 | I53: Qx | J53: =L57 -> 0.0001040224459 | K53: Pr(D[365] | H[0] )
A54: Match Year | B54: =MATCH(B53,[1]TransProb!$A$12:$A$45) -> 6
B56: H | C56: S | D56: R | E56: D | I56: H | J56: S | K56: R | L56: D
A57: H | B57: =IFERROR(INDEX(Calc_TransProb!$Z$6:$AJ$39,B54,MATCH(A57&B56,Calc_TransProb!$Z$5:$AJ$5,0)),0) -> 0.9999996567 | C57: =IFERROR(INDEX(Calc_TransProb!$Z$6:$AJ$39,B54,MATCH(A57&C56,Calc_TransProb!$Z$5:$AJ$5,0)),0) -> 4.576426688e-08 | D57: =IFERROR(INDEX(Calc_TransProb!$Z$6:$AJ$39,B54,MATCH(A57&D56,Calc_TransProb!$Z$5:$AJ$5,0)),0) -> 1.523782789e-08 | E57: =IFERROR(INDEX(Calc_TransProb!$Z$6:$AJ$39,B54,MATCH(A57&E56,Calc_TransProb!$Z$5:$AJ$5,0)),0) -> 2.823304497e-07 | F57: =SUM(B57:E57) -> 1 | H57: H | I57: =powermatrix(B57:E60,$B$4) -> 0.9998953061 | J57: 4.808572002e-07 | K57: 1.905593817e-07 | L57: 0.0001040224459 | M57: =SUM(I57:L57) -> 1
A58: S | B58: =IFERROR(INDEX(Calc_TransProb!$Z$6:$AJ$39,B54,MATCH(A58&B56,Calc_TransProb!$Z$5:$AJ$5,0)),0) -> 0.09202605111 | C58: =IFERROR(INDEX(Calc_TransProb!$Z$6:$AJ$39,B54,MATCH(A58&C56,Calc_TransProb!$Z$5:$AJ$5,0)),0) -> 0.904837418 | D58: =IFERROR(INDEX(Calc_TransProb!$Z$6:$AJ$39,B54,MATCH(A58&D56,Calc_TransProb!$Z$5:$AJ$5,0)),0) -> 0 | E58: =IFERROR(INDEX(Calc_TransProb!$Z$6:$AJ$39,B54,MATCH(A58&E56,Calc_TransProb!$Z$5:$AJ$5,0)),0) -> 0.003136530852 | F58: =SUM(B58:E58) -> 1 | H58: S | I58: 0.9669419463 | J58: 4.650096809e-07 | K58: 1.842791523e-07 | L58: 0.03305740441 | M58: =SUM(I58:L58) -> 1
A59: R | B59: =IFERROR(INDEX(Calc_TransProb!$Z$6:$AJ$39,B54,MATCH(A59&B56,Calc_TransProb!$Z$5:$AJ$5,0)),0) -> 0.07336730363 | C59: =IFERROR(INDEX(Calc_TransProb!$Z$6:$AJ$39,B54,MATCH(A59&C56,Calc_TransProb!$Z$5:$AJ$5,0)),0) -> 0 | D59: =IFERROR(INDEX(Calc_TransProb!$Z$6:$AJ$39,B54,MATCH(A59&D56,Calc_TransProb!$Z$5:$AJ$5,0)),0) -> 0.9200444146 | E59: =IFERROR(INDEX(Calc_TransProb!$Z$6:$AJ$39,B54,MATCH(A59&E56,Calc_TransProb!$Z$5:$AJ$5,0)),0) -> 0.006588281736 | F59: =SUM(B59:E59) -> 1 | H59: R | I59: 0.917507936 | J59: 4.41236492e-07 | K59: 1.748581132e-07 | L59: 0.08249144791 | M59: =SUM(I59:L59) -> 1
A60: D | B60: =IFERROR(INDEX(Calc_TransProb!$Z$6:$AJ$39,B54,MATCH(A60&B56,Calc_TransProb!$Z$5:$AJ$5,0)),0) -> 0 | C60: =IFERROR(INDEX(Calc_TransProb!$Z$6:$AJ$39,B54,MATCH(A60&C56,Calc_TransProb!$Z$5:$AJ$5,0)),0) -> 0 | D60: =IFERROR(INDEX(Calc_TransProb!$Z$6:$AJ$39,B54,MATCH(A60&D56,Calc_TransProb!$Z$5:$AJ$5,0)),0) -> 0 | E60: =IFERROR(INDEX(Calc_TransProb!$Z$6:$AJ$39,B54,MATCH(A60&E56,Calc_TransProb!$Z$5:$AJ$5,0)),0) -> 1 | F60: =SUM(B60:E60) -> 1 | H60: D | I60: 0 | J60: 0 | K60: 0 | L60: 1 | M60: =SUM(I60:L60) -> 1
A62: Year | B62: =B53+1 -> 2023 | I62: Qx | J62: =L66 -> 0.0001040509161 | K62: Pr(D[365] | H[0] )
A63: Match Year | B63: =MATCH(B62,[1]TransProb!$A$12:$A$45) -> 7
B65: H | C65: S | D65: R | E65: D | I65: H | J65: S | K65: R | L65: D
A66: H | B66: =IFERROR(INDEX(Calc_TransProb!$Z$6:$AJ$39,B63,MATCH(A66&B65,Calc_TransProb!$Z$5:$AJ$5,0)),0) -> 0.9999996567 | C66: =IFERROR(INDEX(Calc_TransProb!$Z$6:$AJ$39,B63,MATCH(A66&C65,Calc_TransProb!$Z$5:$AJ$5,0)),0) -> 4.412432126e-08 | D66: =IFERROR(INDEX(Calc_TransProb!$Z$6:$AJ$39,B63,MATCH(A66&D65,Calc_TransProb!$Z$5:$AJ$5,0)),0) -> 1.687777462e-08 | E66: =IFERROR(INDEX(Calc_TransProb!$Z$6:$AJ$39,B63,MATCH(A66&E65,Calc_TransProb!$Z$5:$AJ$5,0)),0) -> 2.823304549e-07 | F66: =SUM(B66:E66) -> 1 | H66: H | I66: =powermatrix(B66:E69,$B$4) -> 0.9998952744 | J66: 4.636258455e-07 | K66: 2.110680222e-07 | L66: 0.0001040509161 | M66: =SUM(I66:L66) -> 1
A67: S | B67: =IFERROR(INDEX(Calc_TransProb!$Z$6:$AJ$39,B63,MATCH(A67&B65,Calc_TransProb!$Z$5:$AJ$5,0)),0) -> 0.09202605111 | C67: =IFERROR(INDEX(Calc_TransProb!$Z$6:$AJ$39,B63,MATCH(A67&C65,Calc_TransProb!$Z$5:$AJ$5,0)),0) -> 0.904837418 | D67: =IFERROR(INDEX(Calc_TransProb!$Z$6:$AJ$39,B63,MATCH(A67&D65,Calc_TransProb!$Z$5:$AJ$5,0)),0) -> 0 | E67: =IFERROR(INDEX(Calc_TransProb!$Z$6:$AJ$39,B63,MATCH(A67&E65,Calc_TransProb!$Z$5:$AJ$5,0)),0) -> 0.003136530852 | F67: =SUM(B67:E67) -> 1 | H67: S | I67: 0.9669419164 | J67: 4.48346217e-07 | K67: 2.041118937e-07 | L67: 0.03305743112 | M67: =SUM(I67:L67) -> 1
A68: R | B68: =IFERROR(INDEX(Calc_TransProb!$Z$6:$AJ$39,B63,MATCH(A68&B65,Calc_TransProb!$Z$5:$AJ$5,0)),0) -> 0.07336730363 | C68: =IFERROR(INDEX(Calc_TransProb!$Z$6:$AJ$39,B63,MATCH(A68&C65,Calc_TransProb!$Z$5:$AJ$5,0)),0) -> 0 | D68: =IFERROR(INDEX(Calc_TransProb!$Z$6:$AJ$39,B63,MATCH(A68&D65,Calc_TransProb!$Z$5:$AJ$5,0)),0) -> 0.9200444146 | E68: =IFERROR(INDEX(Calc_TransProb!$Z$6:$AJ$39,B63,MATCH(A68&E65,Calc_TransProb!$Z$5:$AJ$5,0)),0) -> 0.006588281736 | F68: 1 | H68: R | I68: 0.9175079078 | J68: 4.254249324e-07 | K68: 1.936769241e-07 | L68: 0.08249147311 | M68: =SUM(I68:L68) -> 1
A69: D | B69: =IFERROR(INDEX(Calc_TransProb!$Z$6:$AJ$39,B63,MATCH(A69&B65,Calc_TransProb!$Z$5:$AJ$5,0)),0) -> 0 | C69: =IFERROR(INDEX(Calc_TransProb!$Z$6:$AJ$39,B63,MATCH(A69&C65,Calc_TransProb!$Z$5:$AJ$5,0)),0) -> 0 | D69: =IFERROR(INDEX(Calc_TransProb!$Z$6:$AJ$39,B63,MATCH(A69&D65,Calc_TransProb!$Z$5:$AJ$5,0)),0) -> 0 | E69: =IFERROR(INDEX(Calc_TransProb!$Z$6:$AJ$39,B63,MATCH(A69&E65,Calc_TransProb!$Z$5:$AJ$5,0)),0) -> 1 | F69: 1 | H69: D | I69: 0 | J69: 0 | K69: 0 | L69: 1 | M69: =SUM(I69:L69) -> 1
A71: Year | B71: =B62+1 -> 2024 | I71: Qx | J71: =L75 -> 0.0001040793863 | K71: Pr(D[365] | H[0] )
A72: Match Year | B72: =MATCH(B71,[1]TransProb!$A$12:$A$45) -> 8
B74: H | C74: S | D74: R | E74: D | I74: H | J74: S | K74: R | L74: D
A75: H | B75: =IFERROR(INDEX(Calc_TransProb!$Z$6:$AJ$39,B72,MATCH(A75&B74,Calc_TransProb!$Z$5:$AJ$5,0)),0) -> 0.9999996567 | C75: =IFERROR(INDEX(Calc_TransProb!$Z$6:$AJ$39,B72,MATCH(A75&C74,Calc_TransProb!$Z$5:$AJ$5,0)),0) -> 4.248437558e-08 | D75: =IFERROR(INDEX(Calc_TransProb!$Z$6:$AJ$39,B72,MATCH(A75&D74,Calc_TransProb!$Z$5:$AJ$5,0)),0) -> 1.85177214e-08 | E75: =IFERROR(INDEX(Calc_TransProb!$Z$6:$AJ$39,B72,MATCH(A75&E74,Calc_TransProb!$Z$5:$AJ$5,0)),0) -> 2.8233046e-07 | F75: =SUM(B75:E75) -> 1 | H75: H | I75: =powermatrix(B75:E78,$B$4) -> 0.9998952426 | J75: 4.463944913e-07 | K75: 2.315766623e-07 | L75: 0.0001040793863 | M75: =SUM(I75:L75) -> 1
A76: S | B76: =IFERROR(INDEX(Calc_TransProb!$Z$6:$AJ$39,B72,MATCH(A76&B74,Calc_TransProb!$Z$5:$AJ$5,0)),0) -> 0.09202605111 | C76: =IFERROR(INDEX(Calc_TransProb!$Z$6:$AJ$39,B72,MATCH(A76&C74,Calc_TransProb!$Z$5:$AJ$5,0)),0) -> 0.904837418 | D76: =IFERROR(INDEX(Calc_TransProb!$Z$6:$AJ$39,B72,MATCH(A76&D74,Calc_TransProb!$Z$5:$AJ$5,0)),0) -> 0 | E76: =IFERROR(INDEX(Calc_TransProb!$Z$6:$AJ$39,B72,MATCH(A76&E74,Calc_TransProb!$Z$5:$AJ$5,0)),0) -> 0.003136530852 | F76: =SUM(B76:E76) -> 1 | H76: S | I76: 0.9669418865 | J76: 4.316827536e-07 | K76: 2.239446345e-07 | L76: 0.03305745783 | M76: =SUM(I76:L76) -> 1
A77: R | B77: =IFERROR(INDEX(Calc_TransProb!$Z$6:$AJ$39,B72,MATCH(A77&B74,Calc_TransProb!$Z$5:$AJ$5,0)),0) -> 0.07336730363 | C77: =IFERROR(INDEX(Calc_TransProb!$Z$6:$AJ$39,B72,MATCH(A77&C74,Calc_TransProb!$Z$5:$AJ$5,0)),0) -> 0 | D77: =IFERROR(INDEX(Calc_TransProb!$Z$6:$AJ$39,B72,MATCH(A77&D74,Calc_TransProb!$Z$5:$AJ$5,0)),0) -> 0.9200444146 | E77: =IFERROR(INDEX(Calc_TransProb!$Z$6:$AJ$39,B72,MATCH(A77&E74,Calc_TransProb!$Z$5:$AJ$5,0)),0) -> 0.006588281736 | F77: =SUM(B77:E77) -> 1 | H77: R | I77: 0.9175078796 | J77: 4.096133732e-07 | K77: 2.124957345e-07 | L77: 0.0824914983 | M77: =SUM(I77:L77) -> 1
A78: D | B78: =IFERROR(INDEX(Calc_TransProb!$Z$6:$AJ$39,B72,MATCH(A78&B74,Calc_TransProb!$Z$5:$AJ$5,0)),0) -> 0 | C78: =IFERROR(INDEX(Calc_TransProb!$Z$6:$AJ$39,B72,MATCH(A78&C74,Calc_TransProb!$Z$5:$AJ$5,0)),0) -> 0 | D78: =IFERROR(INDEX(Calc_TransProb!$Z$6:$AJ$39,B72,MATCH(A78&D74,Calc_TransProb!$Z$5:$AJ$5,0)),0) -> 0 | E78: =IFERROR(INDEX(Calc_TransProb!$Z$6:$AJ$39,B72,MATCH(A78&E74,Calc_TransProb!$Z$5:$AJ$5,0)),0) -> 1 | F78: =SUM(B78:E78) -> 1 | H78: D | I78: 0 | J78: 0 | K78: 0 | L78: 1 | M78: =SUM(I78:L78) -> 1
A80: Year | B80: =B71+1 -> 2025 | I80: Qx | J80: =L84 -> 0.0001041078565 | K80: Pr(D[365] | H[0] )
A81: Match Year | B81: =MATCH(B80,[1]TransProb!$A$12:$A$45) -> 9
B83: H | C83: S | D83: R | E83: D | I83: H | J83: S | K83: R | L83: D
A84: H | B84: =IFERROR(INDEX(Calc_TransProb!$Z$6:$AJ$39,B81,MATCH(A84&B83,Calc_TransProb!$Z$5:$AJ$5,0)),0) -> 0.9999996567 | C84: =IFERROR(INDEX(Calc_TransProb!$Z$6:$AJ$39,B81,MATCH(A84&C83,Calc_TransProb!$Z$5:$AJ$5,0)),0) -> 4.084442984e-08 | D84: =IFERROR(INDEX(Calc_TransProb!$Z$6:$AJ$39,B81,MATCH(A84&D83,Calc_TransProb!$Z$5:$AJ$5,0)),0) -> 2.015766824e-08 | E84: =IFERROR(INDEX(Calc_TransProb!$Z$6:$AJ$39,B81,MATCH(A84&E83,Calc_TransProb!$Z$5:$AJ$5,0)),0) -> 2.823304651e-07 | F84: =SUM(B84:E84) -> 1 | H84: H | I84: =powermatrix(B84:E87,$B$4) -> 0.9998952109 | J84: 4.291631375e-07 | K84: 2.520853018e-07 | L84: 0.0001041078565 | M84: =SUM(I84:L84) -> 1
A85: S | B85: =IFERROR(INDEX(Calc_TransProb!$Z$6:$AJ$39,B81,MATCH(A85&B83,Calc_TransProb!$Z$5:$AJ$5,0)),0) -> 0.09202605111 | C85: =IFERROR(INDEX(Calc_TransProb!$Z$6:$AJ$39,B81,MATCH(A85&C83,Calc_TransProb!$Z$5:$AJ$5,0)),0) -> 0.904837418 | D85: =IFERROR(INDEX(Calc_TransProb!$Z$6:$AJ$39,B81,MATCH(A85&D83,Calc_TransProb!$Z$5:$AJ$5,0)),0) -> 0 | E85: =IFERROR(INDEX(Calc_TransProb!$Z$6:$AJ$39,B81,MATCH(A85&E83,Calc_TransProb!$Z$5:$AJ$5,0)),0) -> 0.003136530852 | F85: =SUM(B85:E85) -> 1 | H85: S | I85: 0.9669418567 | J85: 4.150192906e-07 | K85: 2.43777375e-07 | L85: 0.03305748454 | M85: =SUM(I85:L85) -> 1
A86: R | B86: =IFERROR(INDEX(Calc_TransProb!$Z$6:$AJ$39,B81,MATCH(A86&B83,Calc_TransProb!$Z$5:$AJ$5,0)),0) -> 0.07336730363 | C86: =IFERROR(INDEX(Calc_TransProb!$Z$6:$AJ$39,B81,MATCH(A86&C83,Calc_TransProb!$Z$5:$AJ$5,0)),0) -> 0 | D86: =IFERROR(INDEX(Calc_TransProb!$Z$6:$AJ$39,B81,MATCH(A86&D83,Calc_TransProb!$Z$5:$AJ$5,0)),0) -> 0.9200444146 | E86: =IFERROR(INDEX(Calc_TransProb!$Z$6:$AJ$39,B81,MATCH(A86&E83,Calc_TransProb!$Z$5:$AJ$5,0)),0) -> 0.006588281736 | F86: =SUM(B86:E86) -> 1 | H86: R | I86: 0.9175078514 | J86: 3.938018143e-07 | K86: 2.313145445e-07 | L86: 0.08249152349 | M86: =SUM(I86:L86) -> 1
A87: D | B87: =IFERROR(INDEX(Calc_TransProb!$Z$6:$AJ$39,B81,MATCH(A87&B83,Calc_TransProb!$Z$5:$AJ$5,0)),0) -> 0 | C87: =IFERROR(INDEX(Calc_TransProb!$Z$6:$AJ$39,B81,MATCH(A87&C83,Calc_TransProb!$Z$5:$AJ$5,0)),0) -> 0 | D87: =IFERROR(INDEX(Calc_TransProb!$Z$6:$AJ$39,B81,MATCH(A87&D83,Calc_TransProb!$Z$5:$AJ$5,0)),0) -> 0 | E87: =IFERROR(INDEX(Calc_TransProb!$Z$6:$AJ$39,B81,MATCH(A87&E83,Calc_TransProb!$Z$5:$AJ$5,0)),0) -> 1 | F87: =SUM(B87:E87) -> 1 | H87: D | I87: 0 | J87: 0 | K87: 0 | L87: 1 | M87: =SUM(I87:L87) -> 1
A89: Year | B89: =B80+1 -> 2026 | I89: Qx | J89: =L93 -> 0.0001041363267 | K89: Pr(D[365] | H[0] )
A90: Match Year | B90: =MATCH(B89,[1]TransProb!$A$12:$A$45) -> 10
B92: H | C92: S | D92: R | E92: D | I92: H | J92: S | K92: R | L92: D
A93: H | B93: =IFERROR(INDEX(Calc_TransProb!$Z$6:$AJ$39,B90,MATCH(A93&B92,Calc_TransProb!$Z$5:$AJ$5,0)),0) -> 0.9999996567 | C93: =IFERROR(INDEX(Calc_TransProb!$Z$6:$AJ$39,B90,MATCH(A93&C92,Calc_TransProb!$Z$5:$AJ$5,0)),0) -> 3.920448404e-08 | D93: =IFERROR(INDEX(Calc_TransProb!$Z$6:$AJ$39,B90,MATCH(A93&D92,Calc_TransProb!$Z$5:$AJ$5,0)),0) -> 2.179761514e-08 | E93: =IFERROR(INDEX(Calc_TransProb!$Z$6:$AJ$39,B90,MATCH(A93&E92,Calc_TransProb!$Z$5:$AJ$5,0)),0) -> 2.823304702e-07 | F93: =SUM(B93:E93) -> 1 | H93: H | I93: =powermatrix(B93:E96,$B$4) -> 0.9998951791 | J93: 4.119317841e-07 | K93: 2.725939408e-07 | L93: 0.0001041363267 | M93: =SUM(I93:L93) -> 1
A94: S | B94: =IFERROR(INDEX(Calc_TransProb!$Z$6:$AJ$39,B90,MATCH(A94&B92,Calc_TransProb!$Z$5:$AJ$5,0)),0) -> 0.09202605111 | C94: =IFERROR(INDEX(Calc_TransProb!$Z$6:$AJ$39,B90,MATCH(A94&C92,Calc_TransProb!$Z$5:$AJ$5,0)),0) -> 0.904837418 | D94: =IFERROR(INDEX(Calc_TransProb!$Z$6:$AJ$39,B90,MATCH(A94&D92,Calc_TransProb!$Z$5:$AJ$5,0)),0) -> 0 | E94: =IFERROR(INDEX(Calc_TransProb!$Z$6:$AJ$39,B90,MATCH(A94&E92,Calc_TransProb!$Z$5:$AJ$5,0)),0) -> 0.003136530852 | F94: =SUM(B94:E94) -> 1 | H94: S | I94: 0.9669418268 | J94: 3.98355828e-07 | K94: 2.636101149e-07 | L94: 0.03305751124 | M94: =SUM(I94:L94) -> 1
A95: R | B95: =IFERROR(INDEX(Calc_TransProb!$Z$6:$AJ$39,B90,MATCH(A95&B92,Calc_TransProb!$Z$5:$AJ$5,0)),0) -> 0.07336730363 | C95: =IFERROR(INDEX(Calc_TransProb!$Z$6:$AJ$39,B90,MATCH(A95&C92,Calc_TransProb!$Z$5:$AJ$5,0)),0) -> 0 | D95: =IFERROR(INDEX(Calc_TransProb!$Z$6:$AJ$39,B90,MATCH(A95&D92,Calc_TransProb!$Z$5:$AJ$5,0)),0) -> 0.9200444146 | E95: =IFERROR(INDEX(Calc_TransProb!$Z$6:$AJ$39,B90,MATCH(A95&E92,Calc_TransProb!$Z$5:$AJ$5,0)),0) -> 0.006588281736 | F95: 1 | H95: R | I95: 0.9175078232 | J95: 3.779902558e-07 | K95: 2.501333541e-07 | L95: 0.08249154869 | M95: =SUM(I95:L95) -> 1
A96: D | B96: =IFERROR(INDEX(Calc_TransProb!$Z$6:$AJ$39,B90,MATCH(A96&B92,Calc_TransProb!$Z$5:$AJ$5,0)),0) -> 0 | C96: =IFERROR(INDEX(Calc_TransProb!$Z$6:$AJ$39,B90,MATCH(A96&C92,Calc_TransProb!$Z$5:$AJ$5,0)),0) -> 0 | D96: =IFERROR(INDEX(Calc_TransProb!$Z$6:$AJ$39,B90,MATCH(A96&D92,Calc_TransProb!$Z$5:$AJ$5,0)),0) -> 0 | E96: =IFERROR(INDEX(Calc_TransProb!$Z$6:$AJ$39,B90,MATCH(A96&E92,Calc_TransProb!$Z$5:$AJ$5,0)),0) -> 1 | F96: 1 | H96: D | I96: 0 | J96: 0 | K96: 0 | L96: 1 | M96: =SUM(I96:L96) -> 1
A98: Year | B98: =B89+1 -> 2027 | I98: Qx | J98: =L102 -> 0.0001041647969 | K98: Pr(D[365] | H[0] )
A99: Match Year | B99: =MATCH(B98,[1]TransProb!$A$12:$A$45) -> 11
B101: H | C101: S | D101: R | E101: D | I101: H | J101: S | K101: R | L101: D
A102: H | B102: =IFERROR(INDEX(Calc_TransProb!$Z$6:$AJ$39,B99,MATCH(A102&B101,Calc_TransProb!$Z$5:$AJ$5,0)),0) -> 0.9999996567 | C102: =IFERROR(INDEX(Calc_TransProb!$Z$6:$AJ$39,B99,MATCH(A102&C101,Calc_TransProb!$Z$5:$AJ$5,0)),0) -> 3.756453819e-08 | D102: =IFERROR(INDEX(Calc_TransProb!$Z$6:$AJ$39,B99,MATCH(A102&D101,Calc_TransProb!$Z$5:$AJ$5,0)),0) -> 2.343756211e-08 | E102: =IFERROR(INDEX(Calc_TransProb!$Z$6:$AJ$39,B99,MATCH(A102&E101,Calc_TransProb!$Z$5:$AJ$5,0)),0) -> 2.823304753e-07 | F102: =SUM(B102:E102) -> 1 | H102: H | I102: =powermatrix(B102:E105,$B$4) -> 0.9998951474 | J102: 3.947004312e-07 | K102: 2.931025792e-07 | L102: 0.0001041647969 | M102: =SUM(I102:L102) -> 1
A103: S | B103: =IFERROR(INDEX(Calc_TransProb!$Z$6:$AJ$39,B99,MATCH(A103&B101,Calc_TransProb!$Z$5:$AJ$5,0)),0) -> 0.09202605111 | C103: =IFERROR(INDEX(Calc_TransProb!$Z$6:$AJ$39,B99,MATCH(A103&C101,Calc_TransProb!$Z$5:$AJ$5,0)),0) -> 0.904837418 | D103: =IFERROR(INDEX(Calc_TransProb!$Z$6:$AJ$39,B99,MATCH(A103&D101,Calc_TransProb!$Z$5:$AJ$5,0)),0) -> 0 | E103: =IFERROR(INDEX(Calc_TransProb!$Z$6:$AJ$39,B99,MATCH(A103&E101,Calc_TransProb!$Z$5:$AJ$5,0)),0) -> 0.003136530852 | F103: =SUM(B103:E103) -> 1 | H103: S | I103: 0.9669417969 | J103: 3.816923657e-07 | K103: 2.834428544e-07 | L103: 0.03305753795 | M103: =SUM(I103:L103) -> 1
A104: R | B104: =IFERROR(INDEX(Calc_TransProb!$Z$6:$AJ$39,B99,MATCH(A104&B101,Calc_TransProb!$Z$5:$AJ$5,0)),0) -> 0.07336730363 | C104: =IFERROR(INDEX(Calc_TransProb!$Z$6:$AJ$39,B99,MATCH(A104&C101,Calc_TransProb!$Z$5:$AJ$5,0)),0) -> 0 | D104: =IFERROR(INDEX(Calc_TransProb!$Z$6:$AJ$39,B99,MATCH(A104&D101,Calc_TransProb!$Z$5:$AJ$5,0)),0) -> 0.9200444146 | E104: =IFERROR(INDEX(Calc_TransProb!$Z$6:$AJ$39,B99,MATCH(A104&E101,Calc_TransProb!$Z$5:$AJ$5,0)),0) -> 0.006588281736 | F104: =SUM(B104:E104) -> 1 | H104: R | I104: 0.917507795 | J104: 3.621786977e-07 | K104: 2.689521632e-07 | L104: 0.08249157388 | M104: =SUM(I104:L104) -> 1
A105: D | B105: =IFERROR(INDEX(Calc_TransProb!$Z$6:$AJ$39,B99,MATCH(A105&B101,Calc_TransProb!$Z$5:$AJ$5,0)),0) -> 0 | C105: =IFERROR(INDEX(Calc_TransProb!$Z$6:$AJ$39,B99,MATCH(A105&C101,Calc_TransProb!$Z$5:$AJ$5,0)),0) -> 0 | D105: =IFERROR(INDEX(Calc_TransProb!$Z$6:$AJ$39,B99,MATCH(A105&D101,Calc_TransProb!$Z$5:$AJ$5,0)),0) -> 0 | E105: =IFERROR(INDEX(Calc_TransProb!$Z$6:$AJ$39,B99,MATCH(A105&E101,Calc_TransProb!$Z$5:$AJ$5,0)),0) -> 1 | F105: =SUM(B105:E105) -> 1 | H105: D | I105: 0 | J105: 0 | K105: 0 | L105: 1 | M105: =SUM(I105:L105) -> 1
A107: Year | B107: =B98+1 -> 2028 | I107: Qx | J107: =L111 -> 0.0001041932671 | K107: Pr(D[365] | H[0] )
A108: Match Year | B108: =MATCH(B107,[1]TransProb!$A$12:$A$45) -> 12
B110: H | C110: S | D110: R | E110: D | I110: H | J110: S | K110: R | L110: D
A111: H | B111: =IFERROR(INDEX(Calc_TransProb!$Z$6:$AJ$39,B108,MATCH(A111&B110,Calc_TransProb!$Z$5:$AJ$5,0)),0) -> 0.9999996567 | C111: =IFERROR(INDEX(Calc_TransProb!$Z$6:$AJ$39,B108,MATCH(A111&C110,Calc_TransProb!$Z$5:$AJ$5,0)),0) -> 3.592459227e-08 | D111: =IFERROR(INDEX(Calc_TransProb!$Z$6:$AJ$39,B108,MATCH(A111&D110,Calc_TransProb!$Z$5:$AJ$5,0)),0) -> 2.507750913e-08 | E111: =IFERROR(INDEX(Calc_TransProb!$Z$6:$AJ$39,B108,MATCH(A111&E110,Calc_TransProb!$Z$5:$AJ$5,0)),0) -> 2.823304804e-07 | F111: =SUM(B111:E111) -> 1 | H111: H | I111: =powermatrix(B111:E114,$B$4) -> 0.9998951157 | J111: 3.774690787e-07 | K111: 3.136112172e-07 | L111: 0.0001041932671 | M111: =SUM(I111:L111) -> 1
A112: S | B112: =IFERROR(INDEX(Calc_TransProb!$Z$6:$AJ$39,B108,MATCH(A112&B110,Calc_TransProb!$Z$5:$AJ$5,0)),0) -> 0.09202605111 | C112: =IFERROR(INDEX(Calc_TransProb!$Z$6:$AJ$39,B108,MATCH(A112&C110,Calc_TransProb!$Z$5:$AJ$5,0)),0) -> 0.904837418 | D112: =IFERROR(INDEX(Calc_TransProb!$Z$6:$AJ$39,B108,MATCH(A112&D110,Calc_TransProb!$Z$5:$AJ$5,0)),0) -> 0 | E112: =IFERROR(INDEX(Calc_TransProb!$Z$6:$AJ$39,B108,MATCH(A112&E110,Calc_TransProb!$Z$5:$AJ$5,0)),0) -> 0.003136530852 | F112: =SUM(B112:E112) -> 1 | H112: S | I112: 0.966941767 | J112: 3.650289039e-07 | K112: 3.032755934e-07 | L112: 0.03305756466 | M112: =SUM(I112:L112) -> 1
A113: R | B113: =IFERROR(INDEX(Calc_TransProb!$Z$6:$AJ$39,B108,MATCH(A113&B110,Calc_TransProb!$Z$5:$AJ$5,0)),0) -> 0.07336730363 | C113: =IFERROR(INDEX(Calc_TransProb!$Z$6:$AJ$39,B108,MATCH(A113&C110,Calc_TransProb!$Z$5:$AJ$5,0)),0) -> 0 | D113: =IFERROR(INDEX(Calc_TransProb!$Z$6:$AJ$39,B108,MATCH(A113&D110,Calc_TransProb!$Z$5:$AJ$5,0)),0) -> 0.9200444146 | E113: =IFERROR(INDEX(Calc_TransProb!$Z$6:$AJ$39,B108,MATCH(A113&E110,Calc_TransProb!$Z$5:$AJ$5,0)),0) -> 0.006588281736 | F113: =SUM(B113:E113) -> 1 | H113: R | I113: 0.9175077668 | J113: 3.463671399e-07 | K113: 2.877709719e-07 | L113: 0.08249159908 | M113: =SUM(I113:L113) -> 1
A114: D | B114: =IFERROR(INDEX(Calc_TransProb!$Z$6:$AJ$39,B108,MATCH(A114&B110,Calc_TransProb!$Z$5:$AJ$5,0)),0) -> 0 | C114: =IFERROR(INDEX(Calc_TransProb!$Z$6:$AJ$39,B108,MATCH(A114&C110,Calc_TransProb!$Z$5:$AJ$5,0)),0) -> 0 | D114: =IFERROR(INDEX(Calc_TransProb!$Z$6:$AJ$39,B108,MATCH(A114&D110,Calc_TransProb!$Z$5:$AJ$5,0)),0) -> 0 | E114: =IFERROR(INDEX(Calc_TransProb!$Z$6:$AJ$39,B108,MATCH(A114&E110,Calc_TransProb!$Z$5:$AJ$5,0)),0) -> 1 | F114: =SUM(B114:E114) -> 1 | H114: D | I114: 0 | J114: 0 | K114: 0 | L114: 1 | M114: =SUM(I114:L114) -> 1
A116: Year | B116: =B107+1 -> 2029 | I116: Qx | J116: =L120 -> 0.0001042217372 | K116: Pr(D[365] | H[0] )
A117: Match Year | B117: =MATCH(B116,[1]TransProb!$A$12:$A$45) -> 13
B119: H | C119: S | D119: R | E119: D | I119: H | J119: S | K119: R | L119: D
A120: H | B120: =IFERROR(INDEX(Calc_TransProb!$Z$6:$AJ$39,B117,MATCH(A120&B119,Calc_TransProb!$Z$5:$AJ$5,0)),0) -> 0.9999996567 | C120: =IFERROR(INDEX(Calc_TransProb!$Z$6:$AJ$39,B117,MATCH(A120&C119,Calc_TransProb!$Z$5:$AJ$5,0)),0) -> 3.428464629e-08 | D120: =IFERROR(INDEX(Calc_TransProb!$Z$6:$AJ$39,B117,MATCH(A120&D119,Calc_TransProb!$Z$5:$AJ$5,0)),0) -> 2.671745621e-08 | E120: =IFERROR(INDEX(Calc_TransProb!$Z$6:$AJ$39,B117,MATCH(A120&E119,Calc_TransProb!$Z$5:$AJ$5,0)),0) -> 2.823304855e-07 | F120: =SUM(B120:E120) -> 1 | H120: H | I120: =powermatrix(B120:E123,$B$4) -> 0.9998950839 | J120: 3.602377266e-07 | K120: 3.341198546e-07 | L120: 0.0001042217372 | M120: =SUM(I120:L120) -> 1
A121: S | B121: =IFERROR(INDEX(Calc_TransProb!$Z$6:$AJ$39,B117,MATCH(A121&B119,Calc_TransProb!$Z$5:$AJ$5,0)),0) -> 0.09202605111 | C121: =IFERROR(INDEX(Calc_TransProb!$Z$6:$AJ$39,B117,MATCH(A121&C119,Calc_TransProb!$Z$5:$AJ$5,0)),0) -> 0.904837418 | D121: =IFERROR(INDEX(Calc_TransProb!$Z$6:$AJ$39,B117,MATCH(A121&D119,Calc_TransProb!$Z$5:$AJ$5,0)),0) -> 0 | E121: =IFERROR(INDEX(Calc_TransProb!$Z$6:$AJ$39,B117,MATCH(A121&E119,Calc_TransProb!$Z$5:$AJ$5,0)),0) -> 0.003136530852 | F121: =SUM(B121:E121) -> 1 | H121: S | I121: 0.9669417372 | J121: 3.483654425e-07 | K121: 3.231083319e-07 | L121: 0.03305759137 | M121: =SUM(I121:L121) -> 1
A122: R | B122: =IFERROR(INDEX(Calc_TransProb!$Z$6:$AJ$39,B117,MATCH(A122&B119,Calc_TransProb!$Z$5:$AJ$5,0)),0) -> 0.07336730363 | C122: =IFERROR(INDEX(Calc_TransProb!$Z$6:$AJ$39,B117,MATCH(A122&C119,Calc_TransProb!$Z$5:$AJ$5,0)),0) -> 0 | D122: =IFERROR(INDEX(Calc_TransProb!$Z$6:$AJ$39,B117,MATCH(A122&D119,Calc_TransProb!$Z$5:$AJ$5,0)),0) -> 0.9200444146 | E122: =IFERROR(INDEX(Calc_TransProb!$Z$6:$AJ$39,B117,MATCH(A122&E119,Calc_TransProb!$Z$5:$AJ$5,0)),0) -> 0.006588281736 | F122: 1 | H122: R | I122: 0.9175077386 | J122: 3.305555825e-07 | K122: 3.065897801e-07 | L122: 0.08249162427 | M122: =SUM(I122:L122) -> 1
A123: D | B123: =IFERROR(INDEX(Calc_TransProb!$Z$6:$AJ$39,B117,MATCH(A123&B119,Calc_TransProb!$Z$5:$AJ$5,0)),0) -> 0 | C123: =IFERROR(INDEX(Calc_TransProb!$Z$6:$AJ$39,B117,MATCH(A123&C119,Calc_TransProb!$Z$5:$AJ$5,0)),0) -> 0 | D123: =IFERROR(INDEX(Calc_TransProb!$Z$6:$AJ$39,B117,MATCH(A123&D119,Calc_TransProb!$Z$5:$AJ$5,0)),0) -> 0 | E123: =IFERROR(INDEX(Calc_TransProb!$Z$6:$AJ$39,B117,MATCH(A123&E119,Calc_TransProb!$Z$5:$AJ$5,0)),0) -> 1 | F123: 1 | H123: D | I123: 0 | J123: 0 | K123: 0 | L123: 1 | M123: =SUM(I123:L123) -> 1
A125: Year | B125: =B116+1 -> 2030 | I125: Qx | J125: =L129 -> 0.0001042502074 | K125: Pr(D[365] | H[0] )
A126: Match Year | B126: =MATCH(B125,[1]TransProb!$A$12:$A$45) -> 14
B128: H | C128: S | D128: R | E128: D | I128: H | J128: S | K128: R | L128: D
A129: H | B129: =IFERROR(INDEX(Calc_TransProb!$Z$6:$AJ$39,B126,MATCH(A129&B128,Calc_TransProb!$Z$5:$AJ$5,0)),0) -> 0.9999996567 | C129: =IFERROR(INDEX(Calc_TransProb!$Z$6:$AJ$39,B126,MATCH(A129&C128,Calc_TransProb!$Z$5:$AJ$5,0)),0) -> 3.264470026e-08 | D129: =IFERROR(INDEX(Calc_TransProb!$Z$6:$AJ$39,B126,MATCH(A129&D128,Calc_TransProb!$Z$5:$AJ$5,0)),0) -> 2.835740335e-08 | E129: =IFERROR(INDEX(Calc_TransProb!$Z$6:$AJ$39,B126,MATCH(A129&E128,Calc_TransProb!$Z$5:$AJ$5,0)),0) -> 2.823304906e-07 | F129: =SUM(B129:E129) -> 1 | H129: H | I129: =powermatrix(B129:E132,$B$4) -> 0.9998950522 | J129: 3.43006375e-07 | K129: 3.546284916e-07 | L129: 0.0001042502074 | M129: =SUM(I129:L129) -> 1
A130: S | B130: =IFERROR(INDEX(Calc_TransProb!$Z$6:$AJ$39,B126,MATCH(A130&B128,Calc_TransProb!$Z$5:$AJ$5,0)),0) -> 0.09202605111 | C130: =IFERROR(INDEX(Calc_TransProb!$Z$6:$AJ$39,B126,MATCH(A130&C128,Calc_TransProb!$Z$5:$AJ$5,0)),0) -> 0.904837418 | D130: =IFERROR(INDEX(Calc_TransProb!$Z$6:$AJ$39,B126,MATCH(A130&D128,Calc_TransProb!$Z$5:$AJ$5,0)),0) -> 0 | E130: =IFERROR(INDEX(Calc_TransProb!$Z$6:$AJ$39,B126,MATCH(A130&E128,Calc_TransProb!$Z$5:$AJ$5,0)),0) -> 0.003136530852 | F130: =SUM(B130:E130) -> 1 | H130: S | I130: 0.9669417073 | J130: 3.317019814e-07 | K130: 3.4294107e-07 | L130: 0.03305761808 | M130: =SUM(I130:L130) -> 1
A131: R | B131: =IFERROR(INDEX(Calc_TransProb!$Z$6:$AJ$39,B126,MATCH(A131&B128,Calc_TransProb!$Z$5:$AJ$5,0)),0) -> 0.07336730363 | C131: =IFERROR(INDEX(Calc_TransProb!$Z$6:$AJ$39,B126,MATCH(A131&C128,Calc_TransProb!$Z$5:$AJ$5,0)),0) -> 0 | D131: =IFERROR(INDEX(Calc_TransProb!$Z$6:$AJ$39,B126,MATCH(A131&D128,Calc_TransProb!$Z$5:$AJ$5,0)),0) -> 0.9200444146 | E131: =IFERROR(INDEX(Calc_TransProb!$Z$6:$AJ$39,B126,MATCH(A131&E128,Calc_TransProb!$Z$5:$AJ$5,0)),0) -> 0.006588281736 | F131: =SUM(B131:E131) -> 1 | H131: R | I131: 0.9175077104 | J131: 3.147440255e-07 | K131: 3.254085879e-07 | L131: 0.08249164946 | M131: =SUM(I131:L131) -> 1
A132: D | B132: =IFERROR(INDEX(Calc_TransProb!$Z$6:$AJ$39,B126,MATCH(A132&B128,Calc_TransProb!$Z$5:$AJ$5,0)),0) -> 0 | C132: =IFERROR(INDEX(Calc_TransProb!$Z$6:$AJ$39,B126,MATCH(A132&C128,Calc_TransProb!$Z$5:$AJ$5,0)),0) -> 0 | D132: =IFERROR(INDEX(Calc_TransProb!$Z$6:$AJ$39,B126,MATCH(A132&D128,Calc_TransProb!$Z$5:$AJ$5,0)),0) -> 0 | E132: =IFERROR(INDEX(Calc_TransProb!$Z$6:$AJ$39,B126,MATCH(A132&E128,Calc_TransProb!$Z$5:$AJ$5,0)),0) -> 1 | F132: =SUM(B132:E132) -> 1 | H132: D | I132: 0 | J132: 0 | K132: 0 | L132: 1 | M132: =SUM(I132:L132) -> 1
A134: Year | B134: =B125+1 -> 2031 | I134: Qx | J134: =L138 -> 0.0001042786776 | K134: Pr(D[365] | H[0] )
A135: Match Year | B135: =MATCH(B134,[1]TransProb!$A$12:$A$45) -> 15
B137: H | C137: S | D137: R | E137: D | I137: H | J137: S | K137: R | L137: D
A138: H | B138: =IFERROR(INDEX(Calc_TransProb!$Z$6:$AJ$39,B135,MATCH(A138&B137,Calc_TransProb!$Z$5:$AJ$5,0)),0) -> 0.9999996567 | C138: =IFERROR(INDEX(Calc_TransProb!$Z$6:$AJ$39,B135,MATCH(A138&C137,Calc_TransProb!$Z$5:$AJ$5,0)),0) -> 3.100475416e-08 | D138: =IFERROR(INDEX(Calc_TransProb!$Z$6:$AJ$39,B135,MATCH(A138&D137,Calc_TransProb!$Z$5:$AJ$5,0)),0) -> 2.999735055e-08 | E138: =IFERROR(INDEX(Calc_TransProb!$Z$6:$AJ$39,B135,MATCH(A138&E137,Calc_TransProb!$Z$5:$AJ$5,0)),0) -> 2.823304958e-07 | F138: =SUM(B138:E138) -> 1 | H138: H | I138: =powermatrix(B138:E141,$B$4) -> 0.9998950204 | J138: 3.257750239e-07 | K138: 3.75137128e-07 | L138: 0.0001042786776 | M138: =SUM(I138:L138) -> 1
A139: S | B139: =IFERROR(INDEX(Calc_TransProb!$Z$6:$AJ$39,B135,MATCH(A139&B137,Calc_TransProb!$Z$5:$AJ$5,0)),0) -> 0.09202605111 | C139: =IFERROR(INDEX(Calc_TransProb!$Z$6:$AJ$39,B135,MATCH(A139&C137,Calc_TransProb!$Z$5:$AJ$5,0)),0) -> 0.904837418 | D139: =IFERROR(INDEX(Calc_TransProb!$Z$6:$AJ$39,B135,MATCH(A139&D137,Calc_TransProb!$Z$5:$AJ$5,0)),0) -> 0 | E139: =IFERROR(INDEX(Calc_TransProb!$Z$6:$AJ$39,B135,MATCH(A139&E137,Calc_TransProb!$Z$5:$AJ$5,0)),0) -> 0.003136530852 | F139: =SUM(B139:E139) -> 1 | H139: S | I139: 0.9669416774 | J139: 3.150385208e-07 | K139: 3.627738076e-07 | L139: 0.03305764478 | M139: =SUM(I139:L139) -> 1
A140: R | B140: =IFERROR(INDEX(Calc_TransProb!$Z$6:$AJ$39,B135,MATCH(A140&B137,Calc_TransProb!$Z$5:$AJ$5,0)),0) -> 0.07336730363 | C140: =IFERROR(INDEX(Calc_TransProb!$Z$6:$AJ$39,B135,MATCH(A140&C137,Calc_TransProb!$Z$5:$AJ$5,0)),0) -> 0 | D140: =IFERROR(INDEX(Calc_TransProb!$Z$6:$AJ$39,B135,MATCH(A140&D137,Calc_TransProb!$Z$5:$AJ$5,0)),0) -> 0.9200444146 | E140: =IFERROR(INDEX(Calc_TransProb!$Z$6:$AJ$39,B135,MATCH(A140&E137,Calc_TransProb!$Z$5:$AJ$5,0)),0) -> 0.006588281736 | F140: =SUM(B140:E140) -> 1 | H140: R | I140: 0.9175076822 | J140: 2.989324689e-07 | K140: 3.442273953e-07 | L140: 0.08249167466 | M140: =SUM(I140:L140) -> 1
A141: D | B141: =IFERROR(INDEX(Calc_TransProb!$Z$6:$AJ$39,B135,MATCH(A141&B137,Calc_TransProb!$Z$5:$AJ$5,0)),0) -> 0 | C141: =IFERROR(INDEX(Calc_TransProb!$Z$6:$AJ$39,B135,MATCH(A141&C137,Calc_TransProb!$Z$5:$AJ$5,0)),0) -> 0 | D141: =IFERROR(INDEX(Calc_TransProb!$Z$6:$AJ$39,B135,MATCH(A141&D137,Calc_TransProb!$Z$5:$AJ$5,0)),0) -> 0 | E141: =IFERROR(INDEX(Calc_TransProb!$Z$6:$AJ$39,B135,MATCH(A141&E137,Calc_TransProb!$Z$5:$AJ$5,0)),0) -> 1 | F141: =SUM(B141:E141) -> 1 | H141: D | I141: 0 | J141: 0 | K141: 0 | L141: 1 | M141: =SUM(I141:L141) -> 1
A143: Year | B143: =B134+1 -> 2032 | I143: Qx | J143: =L147 -> 0.0001043071478 | K143: Pr(D[365] | H[0] )
A144: Match Year | B144: =MATCH(B143,[1]TransProb!$A$12:$A$45) -> 16
B146: H | C146: S | D146: R | E146: D | I146: H | J146: S | K146: R | L146: D
A147: H | B147: =IFERROR(INDEX(Calc_TransProb!$Z$6:$AJ$39,B144,MATCH(A147&B146,Calc_TransProb!$Z$5:$AJ$5,0)),0) -> 0.9999996567 | C147: =IFERROR(INDEX(Calc_TransProb!$Z$6:$AJ$39,B144,MATCH(A147&C146,Calc_TransProb!$Z$5:$AJ$5,0)),0) -> 2.9364808e-08 | D147: =IFERROR(INDEX(Calc_TransProb!$Z$6:$AJ$39,B144,MATCH(A147&D146,Calc_TransProb!$Z$5:$AJ$5,0)),0) -> 3.163729779e-08 | E147: =IFERROR(INDEX(Calc_TransProb!$Z$6:$AJ$39,B144,MATCH(A147&E146,Calc_TransProb!$Z$5:$AJ$5,0)),0) -> 2.823305008e-07 | F147: =SUM(B147:E147) -> 1 | H147: H | I147: =powermatrix(B147:E150,$B$4) -> 0.9998949887 | J147: 3.085436731e-07 | K147: 3.956457637e-07 | L147: 0.0001043071478 | M147: =SUM(I147:L147) -> 1
A148: S | B148: =IFERROR(INDEX(Calc_TransProb!$Z$6:$AJ$39,B144,MATCH(A148&B146,Calc_TransProb!$Z$5:$AJ$5,0)),0) -> 0.09202605111 | C148: =IFERROR(INDEX(Calc_TransProb!$Z$6:$AJ$39,B144,MATCH(A148&C146,Calc_TransProb!$Z$5:$AJ$5,0)),0) -> 0.904837418 | D148: =IFERROR(INDEX(Calc_TransProb!$Z$6:$AJ$39,B144,MATCH(A148&D146,Calc_TransProb!$Z$5:$AJ$5,0)),0) -> 0 | E148: =IFERROR(INDEX(Calc_TransProb!$Z$6:$AJ$39,B144,MATCH(A148&E146,Calc_TransProb!$Z$5:$AJ$5,0)),0) -> 0.003136530852 | F148: =SUM(B148:E148) -> 1 | H148: S | I148: 0.9669416475 | J148: 2.983750605e-07 | K148: 3.826065446e-07 | L148: 0.03305767149 | M148: =SUM(I148:L148) -> 1
A149: R | B149: =IFERROR(INDEX(Calc_TransProb!$Z$6:$AJ$39,B144,MATCH(A149&B146,Calc_TransProb!$Z$5:$AJ$5,0)),0) -> 0.07336730363 | C149: =IFERROR(INDEX(Calc_TransProb!$Z$6:$AJ$39,B144,MATCH(A149&C146,Calc_TransProb!$Z$5:$AJ$5,0)),0) -> 0 | D149: =IFERROR(INDEX(Calc_TransProb!$Z$6:$AJ$39,B144,MATCH(A149&D146,Calc_TransProb!$Z$5:$AJ$5,0)),0) -> 0.9200444146 | E149: =IFERROR(INDEX(Calc_TransProb!$Z$6:$AJ$39,B144,MATCH(A149&E146,Calc_TransProb!$Z$5:$AJ$5,0)),0) -> 0.006588281736 | F149: 1 | H149: R | I149: 0.917507654 | J149: 2.831209125e-07 | K149: 3.630462021e-07 | L149: 0.08249169985 | M149: =SUM(I149:L149) -> 1
A150: D | B150: =IFERROR(INDEX(Calc_TransProb!$Z$6:$AJ$39,B144,MATCH(A150&B146,Calc_TransProb!$Z$5:$AJ$5,0)),0) -> 0 | C150: =IFERROR(INDEX(Calc_TransProb!$Z$6:$AJ$39,B144,MATCH(A150&C146,Calc_TransProb!$Z$5:$AJ$5,0)),0) -> 0 | D150: =IFERROR(INDEX(Calc_TransProb!$Z$6:$AJ$39,B144,MATCH(A150&D146,Calc_TransProb!$Z$5:$AJ$5,0)),0) -> 0 | E150: =IFERROR(INDEX(Calc_TransProb!$Z$6:$AJ$39,B144,MATCH(A150&E146,Calc_TransProb!$Z$5:$AJ$5,0)),0) -> 1 | F150: 1 | H150: D | I150: 0 | J150: 0 | K150: 0 | L150: 1 | M150: =SUM(I150:L150) -> 1
A152: Year | B152: =B143+1 -> 2033 | I152: Qx | J152: =L156 -> 0.000104335618 | K152: Pr(D[365] | H[0] )
A153: Match Year | B153: =MATCH(B152,[1]TransProb!$A$12:$A$45) -> 17
B155: H | C155: S | D155: R | E155: D | I155: H | J155: S | K155: R | L155: D
A156: H | B156: =IFERROR(INDEX(Calc_TransProb!$Z$6:$AJ$39,B153,MATCH(A156&B155,Calc_TransProb!$Z$5:$AJ$5,0)),0) -> 0.9999996567 | C156: =IFERROR(INDEX(Calc_TransProb!$Z$6:$AJ$39,B153,MATCH(A156&C155,Calc_TransProb!$Z$5:$AJ$5,0)),0) -> 2.772486179e-08 | D156: =IFERROR(INDEX(Calc_TransProb!$Z$6:$AJ$39,B153,MATCH(A156&D155,Calc_TransProb!$Z$5:$AJ$5,0)),0) -> 3.327724511e-08 | E156: =IFERROR(INDEX(Calc_TransProb!$Z$6:$AJ$39,B153,MATCH(A156&E155,Calc_TransProb!$Z$5:$AJ$5,0)),0) -> 2.823305059e-07 | F156: =SUM(B156:E156) -> 1 | H156: H | I156: =powermatrix(B156:E159,$B$4) -> 0.9998949569 | J156: 2.913123228e-07 | K156: 4.161543991e-07 | L156: 0.000104335618 | M156: =SUM(I156:L156) -> 1
A157: S | B157: =IFERROR(INDEX(Calc_TransProb!$Z$6:$AJ$39,B153,MATCH(A157&B155,Calc_TransProb!$Z$5:$AJ$5,0)),0) -> 0.09202605111 | C157: =IFERROR(INDEX(Calc_TransProb!$Z$6:$AJ$39,B153,MATCH(A157&C155,Calc_TransProb!$Z$5:$AJ$5,0)),0) -> 0.904837418 | D157: =IFERROR(INDEX(Calc_TransProb!$Z$6:$AJ$39,B153,MATCH(A157&D155,Calc_TransProb!$Z$5:$AJ$5,0)),0) -> 0 | E157: =IFERROR(INDEX(Calc_TransProb!$Z$6:$AJ$39,B153,MATCH(A157&E155,Calc_TransProb!$Z$5:$AJ$5,0)),0) -> 0.003136530852 | F157: =SUM(B157:E157) -> 1 | H157: S | I157: 0.9669416176 | J157: 2.817116006e-07 | K157: 4.024392813e-07 | L157: 0.0330576982 | M157: =SUM(I157:L157) -> 1
A158: R | B158: =IFERROR(INDEX(Calc_TransProb!$Z$6:$AJ$39,B153,MATCH(A158&B155,Calc_TransProb!$Z$5:$AJ$5,0)),0) -> 0.07336730363 | C158: =IFERROR(INDEX(Calc_TransProb!$Z$6:$AJ$39,B153,MATCH(A158&C155,Calc_TransProb!$Z$5:$AJ$5,0)),0) -> 0 | D158: =IFERROR(INDEX(Calc_TransProb!$Z$6:$AJ$39,B153,MATCH(A158&D155,Calc_TransProb!$Z$5:$AJ$5,0)),0) -> 0.9200444146 | E158: =IFERROR(INDEX(Calc_TransProb!$Z$6:$AJ$39,B153,MATCH(A158&E155,Calc_TransProb!$Z$5:$AJ$5,0)),0) -> 0.006588281736 | F158: =SUM(B158:E158) -> 1 | H158: R | I158: 0.9175076258 | J158: 2.673093566e-07 | K158: 3.818650086e-07 | L158: 0.08249172505 | M158: =SUM(I158:L158) -> 1
A159: D | B159: =IFERROR(INDEX(Calc_TransProb!$Z$6:$AJ$39,B153,MATCH(A159&B155,Calc_TransProb!$Z$5:$AJ$5,0)),0) -> 0 | C159: =IFERROR(INDEX(Calc_TransProb!$Z$6:$AJ$39,B153,MATCH(A159&C155,Calc_TransProb!$Z$5:$AJ$5,0)),0) -> 0 | D159: =IFERROR(INDEX(Calc_TransProb!$Z$6:$AJ$39,B153,MATCH(A159&D155,Calc_TransProb!$Z$5:$AJ$5,0)),0) -> 0 | E159: =IFERROR(INDEX(Calc_TransProb!$Z$6:$AJ$39,B153,MATCH(A159&E155,Calc_TransProb!$Z$5:$AJ$5,0)),0) -> 1 | F159: =SUM(B159:E159) -> 1 | H159: D | I159: 0 | J159: 0 | K159: 0 | L159: 1 | M159: =SUM(I159:L159) -> 1
A161: Year | B161: =B152+1 -> 2034 | I161: Qx | J161: =L165 -> 0.0001043640881 | K161: Pr(D[365] | H[0] )
A162: Match Year | B162: =MATCH(B161,[1]TransProb!$A$12:$A$45) -> 18
B164: H | C164: S | D164: R | E164: D | I164: H | J164: S | K164: R | L164: D
A165: H | B165: =IFERROR(INDEX(Calc_TransProb!$Z$6:$AJ$39,B162,MATCH(A165&B164,Calc_TransProb!$Z$5:$AJ$5,0)),0) -> 0.9999996567 | C165: =IFERROR(INDEX(Calc_TransProb!$Z$6:$AJ$39,B162,MATCH(A165&C164,Calc_TransProb!$Z$5:$AJ$5,0)),0) -> 2.608491551e-08 | D165: =IFERROR(INDEX(Calc_TransProb!$Z$6:$AJ$39,B162,MATCH(A165&D164,Calc_TransProb!$Z$5:$AJ$5,0)),0) -> 3.491719249e-08 | E165: =IFERROR(INDEX(Calc_TransProb!$Z$6:$AJ$39,B162,MATCH(A165&E164,Calc_TransProb!$Z$5:$AJ$5,0)),0) -> 2.82330511e-07 | F165: =SUM(B165:E165) -> 1 | H165: H | I165: =powermatrix(B165:E168,$B$4) -> 0.9998949252 | J165: 2.740809729e-07 | K165: 4.366630339e-07 | L165: 0.0001043640881 | M165: =SUM(I165:L165) -> 1
A166: S | B166: =IFERROR(INDEX(Calc_TransProb!$Z$6:$AJ$39,B162,MATCH(A166&B164,Calc_TransProb!$Z$5:$AJ$5,0)),0) -> 0.09202605111 | C166: =IFERROR(INDEX(Calc_TransProb!$Z$6:$AJ$39,B162,MATCH(A166&C164,Calc_TransProb!$Z$5:$AJ$5,0)),0) -> 0.904837418 | D166: =IFERROR(INDEX(Calc_TransProb!$Z$6:$AJ$39,B162,MATCH(A166&D164,Calc_TransProb!$Z$5:$AJ$5,0)),0) -> 0 | E166: =IFERROR(INDEX(Calc_TransProb!$Z$6:$AJ$39,B162,MATCH(A166&E164,Calc_TransProb!$Z$5:$AJ$5,0)),0) -> 0.003136530852 | F166: =SUM(B166:E166) -> 1 | H166: S | I166: 0.9669415878 | J166: 2.650481412e-07 | K166: 4.222720175e-07 | L166: 0.03305772491 | M166: =SUM(I166:L166) -> 1
A167: R | B167: =IFERROR(INDEX(Calc_TransProb!$Z$6:$AJ$39,B162,MATCH(A167&B164,Calc_TransProb!$Z$5:$AJ$5,0)),0) -> 0.07336730363 | C167: =IFERROR(INDEX(Calc_TransProb!$Z$6:$AJ$39,B162,MATCH(A167&C164,Calc_TransProb!$Z$5:$AJ$5,0)),0) -> 0 | D167: =IFERROR(INDEX(Calc_TransProb!$Z$6:$AJ$39,B162,MATCH(A167&D164,Calc_TransProb!$Z$5:$AJ$5,0)),0) -> 0.9200444146 | E167: =IFERROR(INDEX(Calc_TransProb!$Z$6:$AJ$39,B162,MATCH(A167&E164,Calc_TransProb!$Z$5:$AJ$5,0)),0) -> 0.006588281736 | F167: =SUM(B167:E167) -> 1 | H167: R | I167: 0.9175075976 | J167: 2.514978011e-07 | K167: 4.006838147e-07 | L167: 0.08249175024 | M167: =SUM(I167:L167) -> 1
A168: D | B168: =IFERROR(INDEX(Calc_TransProb!$Z$6:$AJ$39,B162,MATCH(A168&B164,Calc_TransProb!$Z$5:$AJ$5,0)),0) -> 0 | C168: =IFERROR(INDEX(Calc_TransProb!$Z$6:$AJ$39,B162,MATCH(A168&C164,Calc_TransProb!$Z$5:$AJ$5,0)),0) -> 0 | D168: =IFERROR(INDEX(Calc_TransProb!$Z$6:$AJ$39,B162,MATCH(A168&D164,Calc_TransProb!$Z$5:$AJ$5,0)),0) -> 0 | E168: =IFERROR(INDEX(Calc_TransProb!$Z$6:$AJ$39,B162,MATCH(A168&E164,Calc_TransProb!$Z$5:$AJ$5,0)),0) -> 1 | F168: =SUM(B168:E168) -> 1 | H168: D | I168: 0 | J168: 0 | K168: 0 | L168: 1 | M168: =SUM(I168:L168) -> 1
A170: Year | B170: =B161+1 -> 2035 | I170: Qx | J170: =L174 -> 0.0001043925583 | K170: Pr(D[365] | H[0] )
A171: Match Year | B171: =MATCH(B170,[1]TransProb!$A$12:$A$45) -> 19
B173: H | C173: S | D173: R | E173: D | I173: H | J173: S | K173: R | L173: D
A174: H | B174: =IFERROR(INDEX(Calc_TransProb!$Z$6:$AJ$39,B171,MATCH(A174&B173,Calc_TransProb!$Z$5:$AJ$5,0)),0) -> 0.9999996567 | C174: =IFERROR(INDEX(Calc_TransProb!$Z$6:$AJ$39,B171,MATCH(A174&C173,Calc_TransProb!$Z$5:$AJ$5,0)),0) -> 2.444496918e-08 | D174: =IFERROR(INDEX(Calc_TransProb!$Z$6:$AJ$39,B171,MATCH(A174&D173,Calc_TransProb!$Z$5:$AJ$5,0)),0) -> 3.655713992e-08 | E174: =IFERROR(INDEX(Calc_TransProb!$Z$6:$AJ$39,B171,MATCH(A174&E173,Calc_TransProb!$Z$5:$AJ$5,0)),0) -> 2.823305161e-07 | F174: =SUM(B174:E174) -> 1 | H174: H | I174: =powermatrix(B174:E177,$B$4) -> 0.9998948934 | J174: 2.568496235e-07 | K174: 4.571716682e-07 | L174: 0.0001043925583 | M174: =SUM(I174:L174) -> 1
A175: S | B175: =IFERROR(INDEX(Calc_TransProb!$Z$6:$AJ$39,B171,MATCH(A175&B173,Calc_TransProb!$Z$5:$AJ$5,0)),0) -> 0.09202605111 | C175: =IFERROR(INDEX(Calc_TransProb!$Z$6:$AJ$39,B171,MATCH(A175&C173,Calc_TransProb!$Z$5:$AJ$5,0)),0) -> 0.904837418 | D175: =IFERROR(INDEX(Calc_TransProb!$Z$6:$AJ$39,B171,MATCH(A175&D173,Calc_TransProb!$Z$5:$AJ$5,0)),0) -> 0 | E175: =IFERROR(INDEX(Calc_TransProb!$Z$6:$AJ$39,B171,MATCH(A175&E173,Calc_TransProb!$Z$5:$AJ$5,0)),0) -> 0.003136530852 | F175: =SUM(B175:E175) -> 1 | H175: S | I175: 0.9669415579 | J175: 2.483846821e-07 | K175: 4.421047532e-07 | L175: 0.03305775162 | M175: =SUM(I175:L175) -> 1
A176: R | B176: =IFERROR(INDEX(Calc_TransProb!$Z$6:$AJ$39,B171,MATCH(A176&B173,Calc_TransProb!$Z$5:$AJ$5,0)),0) -> 0.07336730363 | C176: =IFERROR(INDEX(Calc_TransProb!$Z$6:$AJ$39,B171,MATCH(A176&C173,Calc_TransProb!$Z$5:$AJ$5,0)),0) -> 0 | D176: =IFERROR(INDEX(Calc_TransProb!$Z$6:$AJ$39,B171,MATCH(A176&D173,Calc_TransProb!$Z$5:$AJ$5,0)),0) -> 0.9200444146 | E176: =IFERROR(INDEX(Calc_TransProb!$Z$6:$AJ$39,B171,MATCH(A176&E173,Calc_TransProb!$Z$5:$AJ$5,0)),0) -> 0.006588281736 | F176: 1 | H176: R | I176: 0.9175075694 | J176: 2.35686246e-07 | K176: 4.195026203e-07 | L176: 0.08249177543 | M176: =SUM(I176:L176) -> 1
A177: D | B177: =IFERROR(INDEX(Calc_TransProb!$Z$6:$AJ$39,B171,MATCH(A177&B173,Calc_TransProb!$Z$5:$AJ$5,0)),0) -> 0 | C177: =IFERROR(INDEX(Calc_TransProb!$Z$6:$AJ$39,B171,MATCH(A177&C173,Calc_TransProb!$Z$5:$AJ$5,0)),0) -> 0 | D177: =IFERROR(INDEX(Calc_TransProb!$Z$6:$AJ$39,B171,MATCH(A177&D173,Calc_TransProb!$Z$5:$AJ$5,0)),0) -> 0 | E177: =IFERROR(INDEX(Calc_TransProb!$Z$6:$AJ$39,B171,MATCH(A177&E173,Calc_TransProb!$Z$5:$AJ$5,0)),0) -> 1 | F177: 1 | H177: D | I177: 0 | J177: 0 | K177: 0 | L177: 1 | M177: =SUM(I177:L177) -> 1
A179: Year | B179: =B170+1 -> 2036 | I179: Qx | J179: =L183 -> 0.0001044210285 | K179: Pr(D[365] | H[0] )
A180: Match Year | B180: =MATCH(B179,[1]TransProb!$A$12:$A$45) -> 20
B182: H | C182: S | D182: R | E182: D | I182: H | J182: S | K182: R | L182: D
A183: H | B183: =IFERROR(INDEX(Calc_TransProb!$Z$6:$AJ$39,B180,MATCH(A183&B182,Calc_TransProb!$Z$5:$AJ$5,0)),0) -> 0.9999996567 | C183: =IFERROR(INDEX(Calc_TransProb!$Z$6:$AJ$39,B180,MATCH(A183&C182,Calc_TransProb!$Z$5:$AJ$5,0)),0) -> 2.280502279e-08 | D183: =IFERROR(INDEX(Calc_TransProb!$Z$6:$AJ$39,B180,MATCH(A183&D182,Calc_TransProb!$Z$5:$AJ$5,0)),0) -> 3.819708742e-08 | E183: =IFERROR(INDEX(Calc_TransProb!$Z$6:$AJ$39,B180,MATCH(A183&E182,Calc_TransProb!$Z$5:$AJ$5,0)),0) -> 2.823305212e-07 | F183: =SUM(B183:E183) -> 1 | H183: H | I183: =powermatrix(B183:E186,$B$4) -> 0.9998948617 | J183: 2.396182746e-07 | K183: 4.77680302e-07 | L183: 0.0001044210285 | M183: =SUM(I183:L183) -> 1
A184: S | B184: =IFERROR(INDEX(Calc_TransProb!$Z$6:$AJ$39,B180,MATCH(A184&B182,Calc_TransProb!$Z$5:$AJ$5,0)),0) -> 0.09202605111 | C184: =IFERROR(INDEX(Calc_TransProb!$Z$6:$AJ$39,B180,MATCH(A184&C182,Calc_TransProb!$Z$5:$AJ$5,0)),0) -> 0.904837418 | D184: =IFERROR(INDEX(Calc_TransProb!$Z$6:$AJ$39,B180,MATCH(A184&D182,Calc_TransProb!$Z$5:$AJ$5,0)),0) -> 0 | E184: =IFERROR(INDEX(Calc_TransProb!$Z$6:$AJ$39,B180,MATCH(A184&E182,Calc_TransProb!$Z$5:$AJ$5,0)),0) -> 0.003136530852 | F184: =SUM(B184:E184) -> 1 | H184: S | I184: 0.966941528 | J184: 2.317212235e-07 | K184: 4.619374885e-07 | L184: 0.03305777832 | M184: =SUM(I184:L184) -> 1
A185: R | B185: =IFERROR(INDEX(Calc_TransProb!$Z$6:$AJ$39,B180,MATCH(A185&B182,Calc_TransProb!$Z$5:$AJ$5,0)),0) -> 0.07336730363 | C185: =IFERROR(INDEX(Calc_TransProb!$Z$6:$AJ$39,B180,MATCH(A185&C182,Calc_TransProb!$Z$5:$AJ$5,0)),0) -> 0 | D185: =IFERROR(INDEX(Calc_TransProb!$Z$6:$AJ$39,B180,MATCH(A185&D182,Calc_TransProb!$Z$5:$AJ$5,0)),0) -> 0.9200444146 | E185: =IFERROR(INDEX(Calc_TransProb!$Z$6:$AJ$39,B180,MATCH(A185&E182,Calc_TransProb!$Z$5:$AJ$5,0)),0) -> 0.006588281736 | F185: =SUM(B185:E185) -> 1 | H185: R | I185: 0.9175075412 | J185: 2.198746912e-07 | K185: 4.383214254e-07 | L185: 0.08249180063 | M185: =SUM(I185:L185) -> 1
A186: D | B186: =IFERROR(INDEX(Calc_TransProb!$Z$6:$AJ$39,B180,MATCH(A186&B182,Calc_TransProb!$Z$5:$AJ$5,0)),0) -> 0 | C186: =IFERROR(INDEX(Calc_TransProb!$Z$6:$AJ$39,B180,MATCH(A186&C182,Calc_TransProb!$Z$5:$AJ$5,0)),0) -> 0 | D186: =IFERROR(INDEX(Calc_TransProb!$Z$6:$AJ$39,B180,MATCH(A186&D182,Calc_TransProb!$Z$5:$AJ$5,0)),0) -> 0 | E186: =IFERROR(INDEX(Calc_TransProb!$Z$6:$AJ$39,B180,MATCH(A186&E182,Calc_TransProb!$Z$5:$AJ$5,0)),0) -> 1 | F186: =SUM(B186:E186) -> 1 | H186: D | I186: 0 | J186: 0 | K186: 0 | L186: 1 | M186: =SUM(I186:L186) -> 1
A188: Year | B188: =B179+1 -> 2037 | I188: Qx | J188: =L192 -> 0.0001044494987 | K188: Pr(D[365] | H[0] )
A189: Match Year | B189: =MATCH(B188,[1]TransProb!$A$12:$A$45) -> 21
B191: H | C191: S | D191: R | E191: D | I191: H | J191: S | K191: R | L191: D
A192: H | B192: =IFERROR(INDEX(Calc_TransProb!$Z$6:$AJ$39,B189,MATCH(A192&B191,Calc_TransProb!$Z$5:$AJ$5,0)),0) -> 0.9999996567 | C192: =IFERROR(INDEX(Calc_TransProb!$Z$6:$AJ$39,B189,MATCH(A192&C191,Calc_TransProb!$Z$5:$AJ$5,0)),0) -> 2.116507634e-08 | D192: =IFERROR(INDEX(Calc_TransProb!$Z$6:$AJ$39,B189,MATCH(A192&D191,Calc_TransProb!$Z$5:$AJ$5,0)),0) -> 3.983703498e-08 | E192: =IFERROR(INDEX(Calc_TransProb!$Z$6:$AJ$39,B189,MATCH(A192&E191,Calc_TransProb!$Z$5:$AJ$5,0)),0) -> 2.823305263e-07 | F192: =SUM(B192:E192) -> 1 | H192: H | I192: =powermatrix(B192:E195,$B$4) -> 0.9998948299 | J192: 2.223869261e-07 | K192: 4.981889353e-07 | L192: 0.0001044494987 | M192: =SUM(I192:L192) -> 1
A193: S | B193: =IFERROR(INDEX(Calc_TransProb!$Z$6:$AJ$39,B189,MATCH(A193&B191,Calc_TransProb!$Z$5:$AJ$5,0)),0) -> 0.09202605111 | C193: =IFERROR(INDEX(Calc_TransProb!$Z$6:$AJ$39,B189,MATCH(A193&C191,Calc_TransProb!$Z$5:$AJ$5,0)),0) -> 0.904837418 | D193: =IFERROR(INDEX(Calc_TransProb!$Z$6:$AJ$39,B189,MATCH(A193&D191,Calc_TransProb!$Z$5:$AJ$5,0)),0) -> 0 | E193: =IFERROR(INDEX(Calc_TransProb!$Z$6:$AJ$39,B189,MATCH(A193&E191,Calc_TransProb!$Z$5:$AJ$5,0)),0) -> 0.003136530852 | F193: =SUM(B193:E193) -> 1 | H193: S | I193: 0.9669414981 | J193: 2.150577653e-07 | K193: 4.817702233e-07 | L193: 0.03305780503 | M193: =SUM(I193:L193) -> 1
A194: R | B194: =IFERROR(INDEX(Calc_TransProb!$Z$6:$AJ$39,B189,MATCH(A194&B191,Calc_TransProb!$Z$5:$AJ$5,0)),0) -> 0.07336730363 | C194: =IFERROR(INDEX(Calc_TransProb!$Z$6:$AJ$39,B189,MATCH(A194&C191,Calc_TransProb!$Z$5:$AJ$5,0)),0) -> 0 | D194: =IFERROR(INDEX(Calc_TransProb!$Z$6:$AJ$39,B189,MATCH(A194&D191,Calc_TransProb!$Z$5:$AJ$5,0)),0) -> 0.9200444146 | E194: =IFERROR(INDEX(Calc_TransProb!$Z$6:$AJ$39,B189,MATCH(A194&E191,Calc_TransProb!$Z$5:$AJ$5,0)),0) -> 0.006588281736 | F194: =SUM(B194:E194) -> 1 | H194: R | I194: 0.917507513 | J194: 2.040631368e-07 | K194: 4.571402302e-07 | L194: 0.08249182582 | M194: =SUM(I194:L194) -> 1
A195: D | B195: =IFERROR(INDEX(Calc_TransProb!$Z$6:$AJ$39,B189,MATCH(A195&B191,Calc_TransProb!$Z$5:$AJ$5,0)),0) -> 0 | C195: =IFERROR(INDEX(Calc_TransProb!$Z$6:$AJ$39,B189,MATCH(A195&C191,Calc_TransProb!$Z$5:$AJ$5,0)),0) -> 0 | D195: =IFERROR(INDEX(Calc_TransProb!$Z$6:$AJ$39,B189,MATCH(A195&D191,Calc_TransProb!$Z$5:$AJ$5,0)),0) -> 0 | E195: =IFERROR(INDEX(Calc_TransProb!$Z$6:$AJ$39,B189,MATCH(A195&E191,Calc_TransProb!$Z$5:$AJ$5,0)),0) -> 1 | F195: =SUM(B195:E195) -> 1 | H195: D | I195: 0 | J195: 0 | K195: 0 | L195: 1 | M195: =SUM(I195:L195) -> 1
A197: Year | B197: =B188+1 -> 2038 | I197: Qx | J197: =L201 -> 0.0001044779689 | K197: Pr(D[365] | H[0] )
A198: Match Year | B198: =MATCH(B197,[1]TransProb!$A$12:$A$45) -> 22
B200: H | C200: S | D200: R | E200: D | I200: H | J200: S | K200: R | L200: D
A201: H | B201: =IFERROR(INDEX(Calc_TransProb!$Z$6:$AJ$39,B198,MATCH(A201&B200,Calc_TransProb!$Z$5:$AJ$5,0)),0) -> 0.9999996567 | C201: =IFERROR(INDEX(Calc_TransProb!$Z$6:$AJ$39,B198,MATCH(A201&C200,Calc_TransProb!$Z$5:$AJ$5,0)),0) -> 1.952512983e-08 | D201: =IFERROR(INDEX(Calc_TransProb!$Z$6:$AJ$39,B198,MATCH(A201&D200,Calc_TransProb!$Z$5:$AJ$5,0)),0) -> 4.147698259e-08 | E201: =IFERROR(INDEX(Calc_TransProb!$Z$6:$AJ$39,B198,MATCH(A201&E200,Calc_TransProb!$Z$5:$AJ$5,0)),0) -> 2.823305314e-07 | F201: =SUM(B201:E201) -> 1 | H201: H | I201: =powermatrix(B201:E204,$B$4) -> 0.9998947982 | J201: 2.05155578e-07 | K201: 5.186975681e-07 | L201: 0.0001044779689 | M201: =SUM(I201:L201) -> 1
A202: S | B202: =IFERROR(INDEX(Calc_TransProb!$Z$6:$AJ$39,B198,MATCH(A202&B200,Calc_TransProb!$Z$5:$AJ$5,0)),0) -> 0.09202605111 | C202: =IFERROR(INDEX(Calc_TransProb!$Z$6:$AJ$39,B198,MATCH(A202&C200,Calc_TransProb!$Z$5:$AJ$5,0)),0) -> 0.904837418 | D202: =IFERROR(INDEX(Calc_TransProb!$Z$6:$AJ$39,B198,MATCH(A202&D200,Calc_TransProb!$Z$5:$AJ$5,0)),0) -> 0 | E202: =IFERROR(INDEX(Calc_TransProb!$Z$6:$AJ$39,B198,MATCH(A202&E200,Calc_TransProb!$Z$5:$AJ$5,0)),0) -> 0.003136530852 | F202: =SUM(B202:E202) -> 1 | H202: S | I202: 0.9669414683 | J202: 1.983943074e-07 | K202: 5.016029576e-07 | L202: 0.03305783174 | M202: =SUM(I202:L202) -> 1
A203: R | B203: =IFERROR(INDEX(Calc_TransProb!$Z$6:$AJ$39,B198,MATCH(A203&B200,Calc_TransProb!$Z$5:$AJ$5,0)),0) -> 0.07336730363 | C203: =IFERROR(INDEX(Calc_TransProb!$Z$6:$AJ$39,B198,MATCH(A203&C200,Calc_TransProb!$Z$5:$AJ$5,0)),0) -> 0 | D203: =IFERROR(INDEX(Calc_TransProb!$Z$6:$AJ$39,B198,MATCH(A203&D200,Calc_TransProb!$Z$5:$AJ$5,0)),0) -> 0.9200444146 | E203: =IFERROR(INDEX(Calc_TransProb!$Z$6:$AJ$39,B198,MATCH(A203&E200,Calc_TransProb!$Z$5:$AJ$5,0)),0) -> 0.006588281736 | F203: 1 | H203: R | I203: 0.9175074848 | J203: 1.882515828e-07 | K203: 4.759590345e-07 | L203: 0.08249185102 | M203: =SUM(I203:L203) -> 1
A204: D | B204: =IFERROR(INDEX(Calc_TransProb!$Z$6:$AJ$39,B198,MATCH(A204&B200,Calc_TransProb!$Z$5:$AJ$5,0)),0) -> 0 | C204: =IFERROR(INDEX(Calc_TransProb!$Z$6:$AJ$39,B198,MATCH(A204&C200,Calc_TransProb!$Z$5:$AJ$5,0)),0) -> 0 | D204: =IFERROR(INDEX(Calc_TransProb!$Z$6:$AJ$39,B198,MATCH(A204&D200,Calc_TransProb!$Z$5:$AJ$5,0)),0) -> 0 | E204: =IFERROR(INDEX(Calc_TransProb!$Z$6:$AJ$39,B198,MATCH(A204&E200,Calc_TransProb!$Z$5:$AJ$5,0)),0) -> 1 | F204: 1 | H204: D | I204: 0 | J204: 0 | K204: 0 | L204: 1 | M204: =SUM(I204:L204) -> 1
A206: Year | B206: =B197+1 -> 2039 | I206: Qx | J206: =L210 -> 0.0001045064391 | K206: Pr(D[365] | H[0] )
A207: Match Year | B207: =MATCH(B206,[1]TransProb!$A$12:$A$45) -> 23
B209: H | C209: S | D209: R | E209: D | I209: H | J209: S | K209: R | L209: D
A210: H | B210: =IFERROR(INDEX(Calc_TransProb!$Z$6:$AJ$39,B207,MATCH(A210&B209,Calc_TransProb!$Z$5:$AJ$5,0)),0) -> 0.9999996567 | C210: =IFERROR(INDEX(Calc_TransProb!$Z$6:$AJ$39,B207,MATCH(A210&C209,Calc_TransProb!$Z$5:$AJ$5,0)),0) -> 1.788518326e-08 | D210: =IFERROR(INDEX(Calc_TransProb!$Z$6:$AJ$39,B207,MATCH(A210&D209,Calc_TransProb!$Z$5:$AJ$5,0)),0) -> 4.311693026e-08 | E210: =IFERROR(INDEX(Calc_TransProb!$Z$6:$AJ$39,B207,MATCH(A210&E209,Calc_TransProb!$Z$5:$AJ$5,0)),0) -> 2.823305366e-07 | F210: =SUM(B210:E210) -> 1 | H210: H | I210: =powermatrix(B210:E213,$B$4) -> 0.9998947664 | J210: 1.879242304e-07 | K210: 5.392062003e-07 | L210: 0.0001045064391 | M210: =SUM(I210:L210) -> 1
A211: S | B211: =IFERROR(INDEX(Calc_TransProb!$Z$6:$AJ$39,B207,MATCH(A211&B209,Calc_TransProb!$Z$5:$AJ$5,0)),0) -> 0.09202605111 | C211: =IFERROR(INDEX(Calc_TransProb!$Z$6:$AJ$39,B207,MATCH(A211&C209,Calc_TransProb!$Z$5:$AJ$5,0)),0) -> 0.904837418 | D211: =IFERROR(INDEX(Calc_TransProb!$Z$6:$AJ$39,B207,MATCH(A211&D209,Calc_TransProb!$Z$5:$AJ$5,0)),0) -> 0 | E211: =IFERROR(INDEX(Calc_TransProb!$Z$6:$AJ$39,B207,MATCH(A211&E209,Calc_TransProb!$Z$5:$AJ$5,0)),0) -> 0.003136530852 | F211: =SUM(B211:E211) -> 1 | H211: S | I211: 0.9669414384 | J211: 1.8173085e-07 | K211: 5.214356915e-07 | L211: 0.03305785845 | M211: =SUM(I211:L211) -> 1
A212: R | B212: =IFERROR(INDEX(Calc_TransProb!$Z$6:$AJ$39,B207,MATCH(A212&B209,Calc_TransProb!$Z$5:$AJ$5,0)),0) -> 0.07336730363 | C212: =IFERROR(INDEX(Calc_TransProb!$Z$6:$AJ$39,B207,MATCH(A212&C209,Calc_TransProb!$Z$5:$AJ$5,0)),0) -> 0 | D212: =IFERROR(INDEX(Calc_TransProb!$Z$6:$AJ$39,B207,MATCH(A212&D209,Calc_TransProb!$Z$5:$AJ$5,0)),0) -> 0.9200444146 | E212: =IFERROR(INDEX(Calc_TransProb!$Z$6:$AJ$39,B207,MATCH(A212&E209,Calc_TransProb!$Z$5:$AJ$5,0)),0) -> 0.006588281736 | F212: =SUM(B212:E212) -> 1 | H212: R | I212: 0.9175074566 | J212: 1.724400291e-07 | K212: 4.947778384e-07 | L212: 0.08249187621 | M212: =SUM(I212:L212) -> 1
A213: D | B213: =IFERROR(INDEX(Calc_TransProb!$Z$6:$AJ$39,B207,MATCH(A213&B209,Calc_TransProb!$Z$5:$AJ$5,0)),0) -> 0 | C213: =IFERROR(INDEX(Calc_TransProb!$Z$6:$AJ$39,B207,MATCH(A213&C209,Calc_TransProb!$Z$5:$AJ$5,0)),0) -> 0 | D213: =IFERROR(INDEX(Calc_TransProb!$Z$6:$AJ$39,B207,MATCH(A213&D209,Calc_TransProb!$Z$5:$AJ$5,0)),0) -> 0 | E213: =IFERROR(INDEX(Calc_TransProb!$Z$6:$AJ$39,B207,MATCH(A213&E209,Calc_TransProb!$Z$5:$AJ$5,0)),0) -> 1 | F213: =SUM(B213:E213) -> 1 | H213: D | I213: 0 | J213: 0 | K213: 0 | L213: 1 | M213: =SUM(I213:L213) -> 1
A215: Year | B215: =B206+1 -> 2040 | I215: Qx | J215: =L219 -> 0.0001045349093 | K215: Pr(D[365] | H[0] )
A216: Match Year | B216: =MATCH(B215,[1]TransProb!$A$12:$A$45) -> 24
B218: H | C218: S | D218: R | E218: D | I218: H | J218: S | K218: R | L218: D
A219: H | B219: =IFERROR(INDEX(Calc_TransProb!$Z$6:$AJ$39,B216,MATCH(A219&B218,Calc_TransProb!$Z$5:$AJ$5,0)),0) -> 0.9999996567 | C219: =IFERROR(INDEX(Calc_TransProb!$Z$6:$AJ$39,B216,MATCH(A219&C218,Calc_TransProb!$Z$5:$AJ$5,0)),0) -> 1.624523663e-08 | D219: =IFERROR(INDEX(Calc_TransProb!$Z$6:$AJ$39,B216,MATCH(A219&D218,Calc_TransProb!$Z$5:$AJ$5,0)),0) -> 4.4756878e-08 | E219: =IFERROR(INDEX(Calc_TransProb!$Z$6:$AJ$39,B216,MATCH(A219&E218,Calc_TransProb!$Z$5:$AJ$5,0)),0) -> 2.823305417e-07 | F219: =SUM(B219:E219) -> 1 | H219: H | I219: =powermatrix(B219:E222,$B$4) -> 0.9998947347 | J219: 1.706928832e-07 | K219: 5.597148321e-07 | L219: 0.0001045349093 | M219: =SUM(I219:L219) -> 1
A220: S | B220: =IFERROR(INDEX(Calc_TransProb!$Z$6:$AJ$39,B216,MATCH(A220&B218,Calc_TransProb!$Z$5:$AJ$5,0)),0) -> 0.09202605111 | C220: =IFERROR(INDEX(Calc_TransProb!$Z$6:$AJ$39,B216,MATCH(A220&C218,Calc_TransProb!$Z$5:$AJ$5,0)),0) -> 0.904837418 | D220: =IFERROR(INDEX(Calc_TransProb!$Z$6:$AJ$39,B216,MATCH(A220&D218,Calc_TransProb!$Z$5:$AJ$5,0)),0) -> 0 | E220: =IFERROR(INDEX(Calc_TransProb!$Z$6:$AJ$39,B216,MATCH(A220&E218,Calc_TransProb!$Z$5:$AJ$5,0)),0) -> 0.003136530852 | F220: =SUM(B220:E220) -> 1 | H220: S | I220: 0.9669414085 | J220: 1.650673929e-07 | K220: 5.412684249e-07 | L220: 0.03305788516 | M220: =SUM(I220:L220) -> 1
A221: R | B221: =IFERROR(INDEX(Calc_TransProb!$Z$6:$AJ$39,B216,MATCH(A221&B218,Calc_TransProb!$Z$5:$AJ$5,0)),0) -> 0.07336730363 | C221: =IFERROR(INDEX(Calc_TransProb!$Z$6:$AJ$39,B216,MATCH(A221&C218,Calc_TransProb!$Z$5:$AJ$5,0)),0) -> 0 | D221: =IFERROR(INDEX(Calc_TransProb!$Z$6:$AJ$39,B216,MATCH(A221&D218,Calc_TransProb!$Z$5:$AJ$5,0)),0) -> 0.9200444146 | E221: =IFERROR(INDEX(Calc_TransProb!$Z$6:$AJ$39,B216,MATCH(A221&E218,Calc_TransProb!$Z$5:$AJ$5,0)),0) -> 0.006588281736 | F221: =SUM(B221:E221) -> 1 | H221: R | I221: 0.9175074284 | J221: 1.566284758e-07 | K221: 5.135966418e-07 | L221: 0.0824919014 | M221: =SUM(I221:L221) -> 1
A222: D | B222: =IFERROR(INDEX(Calc_TransProb!$Z$6:$AJ$39,B216,MATCH(A222&B218,Calc_TransProb!$Z$5:$AJ$5,0)),0) -> 0 | C222: =IFERROR(INDEX(Calc_TransProb!$Z$6:$AJ$39,B216,MATCH(A222&C218,Calc_TransProb!$Z$5:$AJ$5,0)),0) -> 0 | D222: =IFERROR(INDEX(Calc_TransProb!$Z$6:$AJ$39,B216,MATCH(A222&D218,Calc_TransProb!$Z$5:$AJ$5,0)),0) -> 0 | E222: =IFERROR(INDEX(Calc_TransProb!$Z$6:$AJ$39,B216,MATCH(A222&E218,Calc_TransProb!$Z$5:$AJ$5,0)),0) -> 1 | F222: =SUM(B222:E222) -> 1 | H222: D | I222: 0 | J222: 0 | K222: 0 | L222: 1 | M222: =SUM(I222:L222) -> 1
A224: Year | B224: =B215+1 -> 2041 | I224: Qx | J224: =L228 -> 0.0001045633795 | K224: Pr(D[365] | H[0] )
A225: Match Year | B225: =MATCH(B224,[1]TransProb!$A$12:$A$45) -> 25
B227: H | C227: S | D227: R | E227: D | I227: H | J227: S | K227: R | L227: D
A228: H | B228: =IFERROR(INDEX(Calc_TransProb!$Z$6:$AJ$39,B225,MATCH(A228&B227,Calc_TransProb!$Z$5:$AJ$5,0)),0) -> 0.9999996567 | C228: =IFERROR(INDEX(Calc_TransProb!$Z$6:$AJ$39,B225,MATCH(A228&C227,Calc_TransProb!$Z$5:$AJ$5,0)),0) -> 1.460528995e-08 | D228: =IFERROR(INDEX(Calc_TransProb!$Z$6:$AJ$39,B225,MATCH(A228&D227,Calc_TransProb!$Z$5:$AJ$5,0)),0) -> 4.639682579e-08 | E228: =IFERROR(INDEX(Calc_TransProb!$Z$6:$AJ$39,B225,MATCH(A228&E227,Calc_TransProb!$Z$5:$AJ$5,0)),0) -> 2.823305468e-07 | F228: =SUM(B228:E228) -> 1 | H228: H | I228: =powermatrix(B228:E231,$B$4) -> 0.9998947029 | J228: 1.534615364e-07 | K228: 5.802234633e-07 | L228: 0.0001045633795 | M228: =SUM(I228:L228) -> 1
A229: S | B229: =IFERROR(INDEX(Calc_TransProb!$Z$6:$AJ$39,B225,MATCH(A229&B227,Calc_TransProb!$Z$5:$AJ$5,0)),0) -> 0.09202605111 | C229: =IFERROR(INDEX(Calc_TransProb!$Z$6:$AJ$39,B225,MATCH(A229&C227,Calc_TransProb!$Z$5:$AJ$5,0)),0) -> 0.904837418 | D229: =IFERROR(INDEX(Calc_TransProb!$Z$6:$AJ$39,B225,MATCH(A229&D227,Calc_TransProb!$Z$5:$AJ$5,0)),0) -> 0 | E229: =IFERROR(INDEX(Calc_TransProb!$Z$6:$AJ$39,B225,MATCH(A229&E227,Calc_TransProb!$Z$5:$AJ$5,0)),0) -> 0.003136530852 | F229: =SUM(B229:E229) -> 1 | H229: S | I229: 0.9669413786 | J229: 1.484039363e-07 | K229: 5.611011578e-07 | L229: 0.03305791186 | M229: =SUM(I229:L229) -> 1
A230: R | B230: =IFERROR(INDEX(Calc_TransProb!$Z$6:$AJ$39,B225,MATCH(A230&B227,Calc_TransProb!$Z$5:$AJ$5,0)),0) -> 0.07336730363 | C230: =IFERROR(INDEX(Calc_TransProb!$Z$6:$AJ$39,B225,MATCH(A230&C227,Calc_TransProb!$Z$5:$AJ$5,0)),0) -> 0 | D230: =IFERROR(INDEX(Calc_TransProb!$Z$6:$AJ$39,B225,MATCH(A230&D227,Calc_TransProb!$Z$5:$AJ$5,0)),0) -> 0.9200444146 | E230: =IFERROR(INDEX(Calc_TransProb!$Z$6:$AJ$39,B225,MATCH(A230&E227,Calc_TransProb!$Z$5:$AJ$5,0)),0) -> 0.006588281736 | F230: 1 | H230: R | I230: 0.9175074002 | J230: 1.408169229e-07 | K230: 5.324154448e-07 | L230: 0.0824919266 | M230: =SUM(I230:L230) -> 1
A231: D | B231: =IFERROR(INDEX(Calc_TransProb!$Z$6:$AJ$39,B225,MATCH(A231&B227,Calc_TransProb!$Z$5:$AJ$5,0)),0) -> 0 | C231: =IFERROR(INDEX(Calc_TransProb!$Z$6:$AJ$39,B225,MATCH(A231&C227,Calc_TransProb!$Z$5:$AJ$5,0)),0) -> 0 | D231: =IFERROR(INDEX(Calc_TransProb!$Z$6:$AJ$39,B225,MATCH(A231&D227,Calc_TransProb!$Z$5:$AJ$5,0)),0) -> 0 | E231: =IFERROR(INDEX(Calc_TransProb!$Z$6:$AJ$39,B225,MATCH(A231&E227,Calc_TransProb!$Z$5:$AJ$5,0)),0) -> 1 | F231: 1 | H231: D | I231: 0 | J231: 0 | K231: 0 | L231: 1 | M231: =SUM(I231:L231) -> 1
A233: Year | B233: =B224+1 -> 2042 | I233: Qx | J233: =L237 -> 0.0001045918496 | K233: Pr(D[365] | H[0] )
A234: Match Year | B234: =MATCH(B233,[1]TransProb!$A$12:$A$45) -> 26
B236: H | C236: S | D236: R | E236: D | I236: H | J236: S | K236: R | L236: D
A237: H | B237: =IFERROR(INDEX(Calc_TransProb!$Z$6:$AJ$39,B234,MATCH(A237&B236,Calc_TransProb!$Z$5:$AJ$5,0)),0) -> 0.9999996567 | C237: =IFERROR(INDEX(Calc_TransProb!$Z$6:$AJ$39,B234,MATCH(A237&C236,Calc_TransProb!$Z$5:$AJ$5,0)),0) -> 1.29653432e-08 | D237: =IFERROR(INDEX(Calc_TransProb!$Z$6:$AJ$39,B234,MATCH(A237&D236,Calc_TransProb!$Z$5:$AJ$5,0)),0) -> 4.803677363e-08 | E237: =IFERROR(INDEX(Calc_TransProb!$Z$6:$AJ$39,B234,MATCH(A237&E236,Calc_TransProb!$Z$5:$AJ$5,0)),0) -> 2.823305518e-07 | F237: =SUM(B237:E237) -> 1 | H237: H | I237: =powermatrix(B237:E240,$B$4) -> 0.9998946712 | J237: 1.362301901e-07 | K237: 6.007320938e-07 | L237: 0.0001045918496 | M237: =SUM(I237:L237) -> 1
A238: S | B238: =IFERROR(INDEX(Calc_TransProb!$Z$6:$AJ$39,B234,MATCH(A238&B236,Calc_TransProb!$Z$5:$AJ$5,0)),0) -> 0.09202605111 | C238: =IFERROR(INDEX(Calc_TransProb!$Z$6:$AJ$39,B234,MATCH(A238&C236,Calc_TransProb!$Z$5:$AJ$5,0)),0) -> 0.904837418 | D238: =IFERROR(INDEX(Calc_TransProb!$Z$6:$AJ$39,B234,MATCH(A238&D236,Calc_TransProb!$Z$5:$AJ$5,0)),0) -> 0 | E238: =IFERROR(INDEX(Calc_TransProb!$Z$6:$AJ$39,B234,MATCH(A238&E236,Calc_TransProb!$Z$5:$AJ$5,0)),0) -> 0.003136530852 | F238: =SUM(B238:E238) -> 1 | H238: S | I238: 0.9669413488 | J238: 1.3174048e-07 | K238: 5.809338901e-07 | L238: 0.03305793857 | M238: =SUM(I238:L238) -> 1
A239: R | B239: =IFERROR(INDEX(Calc_TransProb!$Z$6:$AJ$39,B234,MATCH(A239&B236,Calc_TransProb!$Z$5:$AJ$5,0)),0) -> 0.07336730363 | C239: =IFERROR(INDEX(Calc_TransProb!$Z$6:$AJ$39,B234,MATCH(A239&C236,Calc_TransProb!$Z$5:$AJ$5,0)),0) -> 0 | D239: =IFERROR(INDEX(Calc_TransProb!$Z$6:$AJ$39,B234,MATCH(A239&D236,Calc_TransProb!$Z$5:$AJ$5,0)),0) -> 0.9200444146 | E239: =IFERROR(INDEX(Calc_TransProb!$Z$6:$AJ$39,B234,MATCH(A239&E236,Calc_TransProb!$Z$5:$AJ$5,0)),0) -> 0.006588281736 | F239: =SUM(B239:E239) -> 1 | H239: R | I239: 0.917507372 | J239: 1.250053704e-07 | K239: 5.512342472e-07 | L239: 0.08249195179 | M239: =SUM(I239:L239) -> 1
A240: D | B240: =IFERROR(INDEX(Calc_TransProb!$Z$6:$AJ$39,B234,MATCH(A240&B236,Calc_TransProb!$Z$5:$AJ$5,0)),0) -> 0 | C240: =IFERROR(INDEX(Calc_TransProb!$Z$6:$AJ$39,B234,MATCH(A240&C236,Calc_TransProb!$Z$5:$AJ$5,0)),0) -> 0 | D240: =IFERROR(INDEX(Calc_TransProb!$Z$6:$AJ$39,B234,MATCH(A240&D236,Calc_TransProb!$Z$5:$AJ$5,0)),0) -> 0 | E240: =IFERROR(INDEX(Calc_TransProb!$Z$6:$AJ$39,B234,MATCH(A240&E236,Calc_TransProb!$Z$5:$AJ$5,0)),0) -> 1 | F240: =SUM(B240:E240) -> 1 | H240: D | I240: 0 | J240: 0 | K240: 0 | L240: 1 | M240: =SUM(I240:L240) -> 1
A242: Year | B242: =B233+1 -> 2043 | I242: Qx | J242: =L246 -> 0.0001046203198 | K242: Pr(D[365] | H[0] )
A243: Match Year | B243: =MATCH(B242,[1]TransProb!$A$12:$A$45) -> 27
B245: H | C245: S | D245: R | E245: D | I245: H | J245: S | K245: R | L245: D
A246: H | B246: =IFERROR(INDEX(Calc_TransProb!$Z$6:$AJ$39,B243,MATCH(A246&B245,Calc_TransProb!$Z$5:$AJ$5,0)),0) -> 0.9999996567 | C246: =IFERROR(INDEX(Calc_TransProb!$Z$6:$AJ$39,B243,MATCH(A246&C245,Calc_TransProb!$Z$5:$AJ$5,0)),0) -> 1.132539639e-08 | D246: =IFERROR(INDEX(Calc_TransProb!$Z$6:$AJ$39,B243,MATCH(A246&D245,Calc_TransProb!$Z$5:$AJ$5,0)),0) -> 4.967672154e-08 | E246: =IFERROR(INDEX(Calc_TransProb!$Z$6:$AJ$39,B243,MATCH(A246&E245,Calc_TransProb!$Z$5:$AJ$5,0)),0) -> 2.823305569e-07 | F246: =SUM(B246:E246) -> 1 | H246: H | I246: =powermatrix(B246:E249,$B$4) -> 0.9998946394 | J246: 1.189988442e-07 | K246: 6.21240724e-07 | L246: 0.0001046203198 | M246: =SUM(I246:L246) -> 1
A247: S | B247: =IFERROR(INDEX(Calc_TransProb!$Z$6:$AJ$39,B243,MATCH(A247&B245,Calc_TransProb!$Z$5:$AJ$5,0)),0) -> 0.09202605111 | C247: =IFERROR(INDEX(Calc_TransProb!$Z$6:$AJ$39,B243,MATCH(A247&C245,Calc_TransProb!$Z$5:$AJ$5,0)),0) -> 0.904837418 | D247: =IFERROR(INDEX(Calc_TransProb!$Z$6:$AJ$39,B243,MATCH(A247&D245,Calc_TransProb!$Z$5:$AJ$5,0)),0) -> 0 | E247: =IFERROR(INDEX(Calc_TransProb!$Z$6:$AJ$39,B243,MATCH(A247&E245,Calc_TransProb!$Z$5:$AJ$5,0)),0) -> 0.003136530852 | F247: =SUM(B247:E247) -> 1 | H247: S | I247: 0.9669413189 | J247: 1.150770241e-07 | K247: 6.007666221e-07 | L247: 0.03305796528 | M247: =SUM(I247:L247) -> 1
A248: R | B248: =IFERROR(INDEX(Calc_TransProb!$Z$6:$AJ$39,B243,MATCH(A248&B245,Calc_TransProb!$Z$5:$AJ$5,0)),0) -> 0.07336730363 | C248: =IFERROR(INDEX(Calc_TransProb!$Z$6:$AJ$39,B243,MATCH(A248&C245,Calc_TransProb!$Z$5:$AJ$5,0)),0) -> 0 | D248: =IFERROR(INDEX(Calc_TransProb!$Z$6:$AJ$39,B243,MATCH(A248&D245,Calc_TransProb!$Z$5:$AJ$5,0)),0) -> 0.9200444146 | E248: =IFERROR(INDEX(Calc_TransProb!$Z$6:$AJ$39,B243,MATCH(A248&E245,Calc_TransProb!$Z$5:$AJ$5,0)),0) -> 0.006588281736 | F248: =SUM(B248:E248) -> 1 | H248: R | I248: 0.9175073438 | J248: 1.091938182e-07 | K248: 5.700530493e-07 | L248: 0.08249197698 | M248: =SUM(I248:L248) -> 1
A249: D | B249: =IFERROR(INDEX(Calc_TransProb!$Z$6:$AJ$39,B243,MATCH(A249&B245,Calc_TransProb!$Z$5:$AJ$5,0)),0) -> 0 | C249: =IFERROR(INDEX(Calc_TransProb!$Z$6:$AJ$39,B243,MATCH(A249&C245,Calc_TransProb!$Z$5:$AJ$5,0)),0) -> 0 | D249: =IFERROR(INDEX(Calc_TransProb!$Z$6:$AJ$39,B243,MATCH(A249&D245,Calc_TransProb!$Z$5:$AJ$5,0)),0) -> 0 | E249: =IFERROR(INDEX(Calc_TransProb!$Z$6:$AJ$39,B243,MATCH(A249&E245,Calc_TransProb!$Z$5:$AJ$5,0)),0) -> 1 | F249: =SUM(B249:E249) -> 1 | H249: D | I249: 0 | J249: 0 | K249: 0 | L249: 1 | M249: =SUM(I249:L249) -> 1
A251: Year | B251: =B242+1 -> 2044 | I251: Qx | J251: =L255 -> 0.00010464879 | K251: Pr(D[365] | H[0] )
A252: Match Year | B252: =MATCH(B251,[1]TransProb!$A$12:$A$45) -> 28
B254: H | C254: S | D254: R | E254: D | I254: H | J254: S | K254: R | L254: D
A255: H | B255: =IFERROR(INDEX(Calc_TransProb!$Z$6:$AJ$39,B252,MATCH(A255&B254,Calc_TransProb!$Z$5:$AJ$5,0)),0) -> 0.9999996567 | C255: =IFERROR(INDEX(Calc_TransProb!$Z$6:$AJ$39,B252,MATCH(A255&C254,Calc_TransProb!$Z$5:$AJ$5,0)),0) -> 9.685449523e-09 | D255: =IFERROR(INDEX(Calc_TransProb!$Z$6:$AJ$39,B252,MATCH(A255&D254,Calc_TransProb!$Z$5:$AJ$5,0)),0) -> 5.131666951e-08 | E255: =IFERROR(INDEX(Calc_TransProb!$Z$6:$AJ$39,B252,MATCH(A255&E254,Calc_TransProb!$Z$5:$AJ$5,0)),0) -> 2.82330562e-07 | F255: =SUM(B255:E255) -> 1 | H255: H | I255: =powermatrix(B255:E258,$B$4) -> 0.9998946077 | J255: 1.017674988e-07 | K255: 6.417493536e-07 | L255: 0.00010464879 | M255: =SUM(I255:L255) -> 1
A256: S | B256: =IFERROR(INDEX(Calc_TransProb!$Z$6:$AJ$39,B252,MATCH(A256&B254,Calc_TransProb!$Z$5:$AJ$5,0)),0) -> 0.09202605111 | C256: =IFERROR(INDEX(Calc_TransProb!$Z$6:$AJ$39,B252,MATCH(A256&C254,Calc_TransProb!$Z$5:$AJ$5,0)),0) -> 0.904837418 | D256: =IFERROR(INDEX(Calc_TransProb!$Z$6:$AJ$39,B252,MATCH(A256&D254,Calc_TransProb!$Z$5:$AJ$5,0)),0) -> 0 | E256: =IFERROR(INDEX(Calc_TransProb!$Z$6:$AJ$39,B252,MATCH(A256&E254,Calc_TransProb!$Z$5:$AJ$5,0)),0) -> 0.003136530852 | F256: =SUM(B256:E256) -> 1 | H256: S | I256: 0.966941289 | J256: 9.841356865e-08 | K256: 6.205993536e-07 | L256: 0.03305799199 | M256: =SUM(I256:L256) -> 1
A257: R | B257: =IFERROR(INDEX(Calc_TransProb!$Z$6:$AJ$39,B252,MATCH(A257&B254,Calc_TransProb!$Z$5:$AJ$5,0)),0) -> 0.07336730363 | C257: =IFERROR(INDEX(Calc_TransProb!$Z$6:$AJ$39,B252,MATCH(A257&C254,Calc_TransProb!$Z$5:$AJ$5,0)),0) -> 0 | D257: =IFERROR(INDEX(Calc_TransProb!$Z$6:$AJ$39,B252,MATCH(A257&D254,Calc_TransProb!$Z$5:$AJ$5,0)),0) -> 0.9200444146 | E257: =IFERROR(INDEX(Calc_TransProb!$Z$6:$AJ$39,B252,MATCH(A257&E254,Calc_TransProb!$Z$5:$AJ$5,0)),0) -> 0.006588281736 | F257: 1 | H257: R | I257: 0.9175073156 | J257: 9.338226641e-08 | K257: 5.888718509e-07 | L257: 0.08249200218 | M257: =SUM(I257:L257) -> 1
A258: D | B258: =IFERROR(INDEX(Calc_TransProb!$Z$6:$AJ$39,B252,MATCH(A258&B254,Calc_TransProb!$Z$5:$AJ$5,0)),0) -> 0 | C258: =IFERROR(INDEX(Calc_TransProb!$Z$6:$AJ$39,B252,MATCH(A258&C254,Calc_TransProb!$Z$5:$AJ$5,0)),0) -> 0 | D258: =IFERROR(INDEX(Calc_TransProb!$Z$6:$AJ$39,B252,MATCH(A258&D254,Calc_TransProb!$Z$5:$AJ$5,0)),0) -> 0 | E258: =IFERROR(INDEX(Calc_TransProb!$Z$6:$AJ$39,B252,MATCH(A258&E254,Calc_TransProb!$Z$5:$AJ$5,0)),0) -> 1 | F258: 1 | H258: D | I258: 0 | J258: 0 | K258: 0 | L258: 1 | M258: =SUM(I258:L258) -> 1
... 42 more rows

Sheet Output
A1: Output Results
A2: This worksheet reproduces the projected number of infections, deaths and days spent in hospital with the infection alongside the matrix results on the variance to qx
A4: Scenario Inputs
A5: =Input_Scen!A18 -> Age Group | B5: =Input_Scen!B18 -> 1-14 yrs
A6: =Input_Scen!A19 -> Resistance Profile | B6: =Input_Scen!B19 -> 100% Resistance by 2050
A7: =Input_Scen!A20 -> Relative mortality rate of resistance against susceptible infection | B7: =Input_Scen!B20 -> 2.5
A8: =Input_Scen!A21 -> Average hospitalised days with susceptible infection | B8: =Input_Scen!B21 -> 10
A9: =Input_Scen!A22 -> Average hospitalised days with resistant infection | B9: =Input_Scen!B22 -> 12
A11: Scenario Results
A13: Year | B13: Average Infections | C13: Average Deaths | D13: Average Bed Days | E13: qx | F13: Annual Variance in qx | G13: Cumulative Variance in qx
A14: =Input_Scen!B13 -> 2017 | B14: =Calc_TransProfile!E29 -> 202.0625 | C14: =Calc_TransProfile!K29 -> 943 | D14: =Calc_TransProb!K6+Calc_TransProb!L6 -> 2067.250784 | E14: =INDEX(Calc_Matrix!$J$8:$J$312,MATCH($A14,Calc_Matrix!$B$8:$B$312,0)) -> 0.0001038800951
A15: =A14+1 -> 2018 | B15: =Calc_TransProfile!E30 -> 202.0625 | C15: =Calc_TransProfile!K30 -> 943.2685624 | D15: =Calc_TransProb!K7+Calc_TransProb!L7 -> 2078.115055 | E15: =INDEX(Calc_Matrix!$J$8:$J$312,MATCH($A15,Calc_Matrix!$B$8:$B$312,0)) -> 0.0001039085652 | F15: =E15/E14-1 -> 0.000274067761 | G15: =E15/E$14-1 -> 0.000274067761
A16: =A15+1 -> 2019 | B16: =Calc_TransProfile!E31 -> 202.0625 | C16: =Calc_TransProfile!K31 -> 943.5371248 | D16: =Calc_TransProb!K8+Calc_TransProb!L8 -> 2088.979327 | E16: =INDEX(Calc_Matrix!$J$8:$J$312,MATCH($A16,Calc_Matrix!$B$8:$B$312,0)) -> 0.0001039370354 | F16: =E16/E15-1 -> 0.0002739926695 | G16: =E16/E$14-1 -> 0.0005481355231
A17: 2020 | B17: =Calc_TransProfile!E32 -> 202.0625 | C17: =Calc_TransProfile!K32 -> 943.8056873 | D17: =Calc_TransProb!K9+Calc_TransProb!L9 -> 2099.843599 | E17: =INDEX(Calc_Matrix!$J$8:$J$312,MATCH($A17,Calc_Matrix!$B$8:$B$312,0)) -> 0.0001039655056 | F17: 0.0002739176192 | G17: 0.0008222032863
A18: 2021 | B18: =Calc_TransProfile!E33 -> 202.0625 | C18: =Calc_TransProfile!K33 -> 944.0742497 | D18: =Calc_TransProb!K10+Calc_TransProb!L10 -> 2110.707871 | E18: =INDEX(Calc_Matrix!$J$8:$J$312,MATCH($A18,Calc_Matrix!$B$8:$B$312,0)) -> 0.0001039939758 | F18: 0.0002738426099 | G18: 0.00109627105
A19: 2022 | B19: =Calc_TransProfile!E34 -> 202.0625 | C19: =Calc_TransProfile!K34 -> 944.3428121 | D19: =Calc_TransProb!K11+Calc_TransProb!L11 -> 2121.572143 | E19: =INDEX(Calc_Matrix!$J$8:$J$312,MATCH($A19,Calc_Matrix!$B$8:$B$312,0)) -> 0.0001040224459 | F19: 0.0002737673183 | G19: 0.001370338492
A20: 2023 | B20: =Calc_TransProfile!E35 -> 202.0625 | C20: =Calc_TransProfile!K35 -> 944.6113745 | D20: =Calc_TransProb!K12+Calc_TransProb!L12 -> 2132.436415 | E20: =INDEX(Calc_Matrix!$J$8:$J$312,MATCH($A20,Calc_Matrix!$B$8:$B$312,0)) -> 0.0001040509161 | F20: 0.0002736927145 | G20: 0.001644406258
A21: 2024 | B21: =Calc_TransProfile!E36 -> 202.0625 | C21: =Calc_TransProfile!K36 -> 944.8799369 | D21: =Calc_TransProb!K13+Calc_TransProb!L13 -> 2143.300687 | E21: =INDEX(Calc_Matrix!$J$8:$J$312,MATCH($A21,Calc_Matrix!$B$8:$B$312,0)) -> 0.0001040793863 | F21: 0.0002736178284 | G21: 0.001918474025
A22: 2025 | B22: =Calc_TransProfile!E37 -> 202.0625 | C22: =Calc_TransProfile!K37 -> 945.1484993 | D22: =Calc_TransProb!K14+Calc_TransProb!L14 -> 2154.164959 | E22: =INDEX(Calc_Matrix!$J$8:$J$312,MATCH($A22,Calc_Matrix!$B$8:$B$312,0)) -> 0.0001041078565 | F22: 0.0002735429832 | G22: 0.002192541794
A23: 2026 | B23: =Calc_TransProfile!E38 -> 202.0625 | C23: =Calc_TransProfile!K38 -> 945.4170618 | D23: =Calc_TransProb!K15+Calc_TransProb!L15 -> 2165.029231 | E23: =INDEX(Calc_Matrix!$J$8:$J$312,MATCH($A23,Calc_Matrix!$B$8:$B$312,0)) -> 0.0001041363267 | F23: 0.0002734681789 | G23: 0.002466609563
A24: 2027 | B24: =Calc_TransProfile!E39 -> 202.0625 | C24: =Calc_TransProfile!K39 -> 945.6856242 | D24: =Calc_TransProb!K16+Calc_TransProb!L16 -> 2175.893503 | E24: =INDEX(Calc_Matrix!$J$8:$J$312,MATCH($A24,Calc_Matrix!$B$8:$B$312,0)) -> 0.0001041647969 | F24: 0.0002733934155 | G24: 0.002740677333
A25: 2028 | B25: =Calc_TransProfile!E40 -> 202.0625 | C25: =Calc_TransProfile!K40 -> 945.9541866 | D25: =Calc_TransProb!K17+Calc_TransProb!L17 -> 2186.757775 | E25: =INDEX(Calc_Matrix!$J$8:$J$312,MATCH($A25,Calc_Matrix!$B$8:$B$312,0)) -> 0.0001041932671 | F25: 0.0002733186931 | G25: 0.003014745105
A26: 2029 | B26: =Calc_TransProfile!E41 -> 202.0625 | C26: =Calc_TransProfile!K41 -> 946.222749 | D26: =Calc_TransProb!K18+Calc_TransProb!L18 -> 2197.622047 | E26: =INDEX(Calc_Matrix!$J$8:$J$312,MATCH($A26,Calc_Matrix!$B$8:$B$312,0)) -> 0.0001042217372 | F26: 0.0002732440114 | G26: 0.003288812877
A27: 2030 | B27: =Calc_TransProfile!E42 -> 202.0625 | C27: =Calc_TransProfile!K42 -> 946.4913114 | D27: =Calc_TransProb!K19+Calc_TransProb!L19 -> 2208.486319 | E27: =INDEX(Calc_Matrix!$J$8:$J$312,MATCH($A27,Calc_Matrix!$B$8:$B$312,0)) -> 0.0001042502074 | F27: 0.0002731693706 | G27: 0.003562880651
A28: 2031 | B28: =Calc_TransProfile!E43 -> 202.0625 | C28: =Calc_TransProfile!K43 -> 946.7598738 | D28: =Calc_TransProb!K20+Calc_TransProb!L20 -> 2219.350591 | E28: =INDEX(Calc_Matrix!$J$8:$J$312,MATCH($A28,Calc_Matrix!$B$8:$B$312,0)) -> 0.0001042786776 | F28: 0.0002730947705 | G28: 0.003836948425
A29: 2032 | B29: =Calc_TransProfile!E44 -> 202.0625 | C29: =Calc_TransProfile!K44 -> 947.0284363 | D29: =Calc_TransProb!K21+Calc_TransProb!L21 -> 2230.214863 | E29: =INDEX(Calc_Matrix!$J$8:$J$312,MATCH($A29,Calc_Matrix!$B$8:$B$312,0)) -> 0.0001043071478 | F29: 0.0002730198877 | G29: 0.004111015876
A30: 2033 | B30: =Calc_TransProfile!E45 -> 202.0625 | C30: =Calc_TransProfile!K45 -> 947.2969987 | D30: =Calc_TransProb!K22+Calc_TransProb!L22 -> 2241.079135 | E30: =INDEX(Calc_Matrix!$J$8:$J$312,MATCH($A30,Calc_Matrix!$B$8:$B$312,0)) -> 0.000104335618 | F30: 0.0002729456925 | G30: 0.004385083653
A31: 2034 | B31: =Calc_TransProfile!E46 -> 202.0625 | C31: =Calc_TransProfile!K46 -> 947.5655611 | D31: =Calc_TransProb!K23+Calc_TransProb!L23 -> 2251.943406 | E31: =INDEX(Calc_Matrix!$J$8:$J$312,MATCH($A31,Calc_Matrix!$B$8:$B$312,0)) -> 0.0001043640881 | F31: 0.0002728712145 | G31: 0.00465915143
A32: 2035 | B32: =Calc_TransProfile!E47 -> 202.0625 | C32: =Calc_TransProfile!K47 -> 947.8341235 | D32: =Calc_TransProb!K24+Calc_TransProb!L24 -> 2262.807678 | E32: =INDEX(Calc_Matrix!$J$8:$J$312,MATCH($A32,Calc_Matrix!$B$8:$B$312,0)) -> 0.0001043925583 | F32: 0.0002727967771 | G32: 0.004933219209
A33: 2036 | B33: =Calc_TransProfile!E48 -> 202.0625 | C33: =Calc_TransProfile!K48 -> 948.1026859 | D33: =Calc_TransProb!K25+Calc_TransProb!L25 -> 2273.67195 | E33: =INDEX(Calc_Matrix!$J$8:$J$312,MATCH($A33,Calc_Matrix!$B$8:$B$312,0)) -> 0.0001044210285 | F33: 0.0002727223804 | G33: 0.005207286989
A34: 2037 | B34: =Calc_TransProfile!E49 -> 202.0625 | C34: =Calc_TransProfile!K49 -> 948.3712484 | D34: =Calc_TransProb!K26+Calc_TransProb!L26 -> 2284.536222 | E34: =INDEX(Calc_Matrix!$J$8:$J$312,MATCH($A34,Calc_Matrix!$B$8:$B$312,0)) -> 0.0001044494987 | F34: 0.0002726480242 | G34: 0.005481354769
A35: 2038 | B35: =Calc_TransProfile!E50 -> 202.0625 | C35: =Calc_TransProfile!K50 -> 948.6398108 | D35: =Calc_TransProb!K27+Calc_TransProb!L27 -> 2295.400494 | E35: =INDEX(Calc_Matrix!$J$8:$J$312,MATCH($A35,Calc_Matrix!$B$8:$B$312,0)) -> 0.0001044779689 | F35: 0.0002725737086 | G35: 0.005755422551
A36: 2039 | B36: =Calc_TransProfile!E51 -> 202.0625 | C36: =Calc_TransProfile!K51 -> 948.9083732 | D36: =Calc_TransProb!K28+Calc_TransProb!L28 -> 2306.264766 | E36: =INDEX(Calc_Matrix!$J$8:$J$312,MATCH($A36,Calc_Matrix!$B$8:$B$312,0)) -> 0.0001045064391 | F36: 0.0002724994335 | G36: 0.006029490334
A37: 2040 | B37: =Calc_TransProfile!E52 -> 202.0625 | C37: =Calc_TransProfile!K52 -> 949.1769356 | D37: =Calc_TransProb!K29+Calc_TransProb!L29 -> 2317.129038 | E37: =INDEX(Calc_Matrix!$J$8:$J$312,MATCH($A37,Calc_Matrix!$B$8:$B$312,0)) -> 0.0001045349093 | F37: 0.0002724251988 | G37: 0.006303558118
A38: 2041 | B38: =Calc_TransProfile!E53 -> 202.0625 | C38: =Calc_TransProfile!K53 -> 949.445498 | D38: =Calc_TransProb!K30+Calc_TransProb!L30 -> 2327.99331 | E38: =INDEX(Calc_Matrix!$J$8:$J$312,MATCH($A38,Calc_Matrix!$B$8:$B$312,0)) -> 0.0001045633795 | F38: 0.0002723510045 | G38: 0.006577625903
A39: 2042 | B39: =Calc_TransProfile!E54 -> 202.0625 | C39: =Calc_TransProfile!K54 -> 949.7140604 | D39: =Calc_TransProb!K31+Calc_TransProb!L31 -> 2338.857582 | E39: =INDEX(Calc_Matrix!$J$8:$J$312,MATCH($A39,Calc_Matrix!$B$8:$B$312,0)) -> 0.0001045918496 | F39: 0.0002722765273 | G39: 0.006851693363
A40: =A39+1 -> 2043 | B40: =Calc_TransProfile!E55 -> 202.0625 | C40: =Calc_TransProfile!K55 -> 949.9826229 | D40: =Calc_TransProb!K32+Calc_TransProb!L32 -> 2349.721854 | E40: =INDEX(Calc_Matrix!$J$8:$J$312,MATCH($A40,Calc_Matrix!$B$8:$B$312,0)) -> 0.0001046203198 | F40: 0.0002722027372 | G40: 0.00712576115
A41: 2044 | B41: =Calc_TransProfile!E56 -> 202.0625 | C41: =Calc_TransProfile!K56 -> 950.2511853 | D41: =Calc_TransProb!K33+Calc_TransProb!L33 -> 2360.586126 | E41: =INDEX(Calc_Matrix!$J$8:$J$312,MATCH($A41,Calc_Matrix!$B$8:$B$312,0)) -> 0.00010464879 | F41: 0.0002721286641 | G41: 0.007399828938
A42: 2045 | B42: =Calc_TransProfile!E57 -> 202.0625 | C42: =Calc_TransProfile!K57 -> 950.5197477 | D42: =Calc_TransProb!K34+Calc_TransProb!L34 -> 2371.450398 | E42: =INDEX(Calc_Matrix!$J$8:$J$312,MATCH($A42,Calc_Matrix!$B$8:$B$312,0)) -> 0.0001046772602 | F42: 0.0002720546313 | G42: 0.007673896727
A43: 2046 | B43: =Calc_TransProfile!E58 -> 202.0625 | C43: =Calc_TransProfile!K58 -> 950.7883101 | D43: =Calc_TransProb!K35+Calc_TransProb!L35 -> 2382.31467 | E43: =INDEX(Calc_Matrix!$J$8:$J$312,MATCH($A43,Calc_Matrix!$B$8:$B$312,0)) -> 0.0001047057304 | F43: 0.0002719806387 | G43: 0.007947964517
A44: 2047 | B44: =Calc_TransProfile!E59 -> 202.0625 | C44: =Calc_TransProfile!K59 -> 951.0568725 | D44: =Calc_TransProb!K36+Calc_TransProb!L36 -> 2393.178942 | E44: =INDEX(Calc_Matrix!$J$8:$J$312,MATCH($A44,Calc_Matrix!$B$8:$B$312,0)) -> 0.0001047342005 | F44: 0.0002719066864 | G44: 0.008222032308
A45: 2048 | B45: =Calc_TransProfile!E60 -> 202.0625 | C45: =Calc_TransProfile!K60 -> 951.3254349 | D45: =Calc_TransProb!K37+Calc_TransProb!L37 -> 2404.043214 | E45: =INDEX(Calc_Matrix!$J$8:$J$312,MATCH($A45,Calc_Matrix!$B$8:$B$312,0)) -> 0.0001047626707 | F45: 0.0002718327743 | G45: 0.008496100101
A46: 2049 | B46: =Calc_TransProfile!E61 -> 202.0625 | C46: =Calc_TransProfile!K61 -> 951.5939974 | D46: =Calc_TransProb!K38+Calc_TransProb!L38 -> 2414.907486 | E46: =INDEX(Calc_Matrix!$J$8:$J$312,MATCH($A46,Calc_Matrix!$B$8:$B$312,0)) -> 0.0001047911409 | F46: 0.0002717589023 | G46: 0.008770167894
A47: 2050 | B47: =Calc_TransProfile!E62 -> 202.0625 | C47: =Calc_TransProfile!K62 -> 951.8373022 | D47: =Calc_TransProb!K39+Calc_TransProb!L39 -> 2424.75 | E47: =INDEX(Calc_Matrix!$J$8:$J$312,MATCH($A47,Calc_Matrix!$B$8:$B$312,0)) -> 0.0001048169335 | F47: 0.0002461335352 | G47: 0.009018460061
